Workbook

Sheet Main
B10: 2022-05-11
B12: Sheet No. | C12: Template Name | D12: Summary
B13: 1 | C13: Future Intra | D13: For Intraday trading in F&O segment
B14: 2 | C14: Cash Intra | D14: For Intraday trading in cash market segment
B15: 3 | C15: Mid-cap Intra | D15: For Intraday trading in Mid-cap stocks
B16: 4 | C16: Bulk Deals | D16: Reveals Bulk Deals carried on NSE & BSE
B17: 5 | C17: Call Tracker
K27: `

Sheet Future Intra
M5: Back to Main Page
A6: FOR INTRA DAY TRADING | L6: =Main!B10 -> 2022-05-11
A9: Sr.no | B9: Sector | C9: Scrip | D9: Expiry Date | E9: CLOSE RATE | F9: Pivot Point | G9: Supports | J9: Resistances
E10: Point | F10: Point | G10: S1 | H10: S2 | I10: S3 | J10: R1 | K10: R2 | L10: R3 | M10: HIGH | N10: LOW | O10: OI | P10: % Change in OI
A11: 1 | B11: Index | C11: NIFTY | D11: 2022-05-26 | E11: 16247.10 | F11: 16288.75 | G11: 16167.35 | H11: 16087.60 | I11: 15966.20 | J11: 16368.50 | K11: 16489.90 | L11: 16569.65 | M11: 16410.15 | N11: 16209 | O11: 12893700 | P11: -4.96%
A12: 2 | B12: Index | C12: BANKNIFTY | D12: 2022-05-26 | E12: 34515.80 | F12: 34516.93 | G12: 34216.87 | H12: 33917.93 | I12: 33617.87 | J12: 34815.87 | K12: 35115.93 | L12: 35414.87 | M12: 34817 | N12: 34218 | O12: 3591150 | P12: 5.62%
A13: 3 | B13: Index | C13: FINNIFTY | D13: 2022-05-31 | E13: 15960.55 | F13: 15976.53 | G13: 15855.07 | H13: 15749.58 | I13: 15628.12 | J13: 16082.02 | K13: 16203.48 | L13: 16308.97 | M13: 16098 | N13: 15871.05 | O13: 5680 | P13: 4.41%
A14: 4 | B14: Index | C14: MIDCPNIFTY | D14: 2022-05-31 | E14: 6620.00 | F14: 6606.72 | G14: 6513.38 | H14: 6406.77 | I14: 6313.43 | J14: 6713.33 | K14: 6806.67 | L14: 6913.28 | M14: 6700.05 | N14: 6500.1 | O14: 2100 | P14: 0.00%
A15: 5 | B15: Chemical | C15: AARTIIND | D15: 2022-05-26 | E15: 770.65 | F15: 776.93 | G15: 760.72 | H15: 750.78 | I15: 734.57 | J15: 786.87 | K15: 803.08 | L15: 813.02 | M15: 793.15 | N15: 767 | O15: 3072750 | P15: 1.01%
A16: 6 | B16: Capital_Goods | C16: ABB | D16: 2022-05-26 | E16: 2234.35 | F16: 2209.42 | G16: 2118.83 | H16: 2003.32 | I16: 1912.73 | J16: 2324.93 | K16: 2415.52 | L16: 2531.03 | M16: 2300 | N16: 2093.9 | O16: 415500 | P16: -9.72%
A17: 7 | B17: Pharma | C17: ABBOTINDIA | D17: 2022-05-26 | E17: 16672.00 | F17: 16716.12 | G17: 16432.23 | H17: 16192.47 | I17: 15908.58 | J17: 16955.88 | K17: 17239.77 | L17: 17479.53 | M17: 17000 | N17: 16476.35 | O17: 30165 | P17: -0.41%
A18: 8 | B18: Others | C18: ABCAPITAL | D18: 2022-05-26 | E18: 104.25 | F18: 105.27 | G18: 102.63 | H18: 101.02 | I18: 98.38 | J18: 106.88 | K18: 109.52 | L18: 111.13 | M18: 107.9 | N18: 103.65 | O18: 20785000 | P18: 0.20%
A19: 9 | B19: Textile | C19: ABFRL | D19: 2022-05-26 | E19: 257.90 | F19: 260.93 | G19: 253.52 | H19: 249.13 | I19: 241.72 | J19: 265.32 | K19: 272.73 | L19: 277.12 | M19: 268.35 | N19: 256.55 | O19: 9760400 | P19: 0.27%
A20: 10 | B20: Cement | C20: ACC | D20: 2022-05-26 | E20: 2200.75 | F20: 2217.60 | G20: 2177.00 | H20: 2153.25 | I20: 2112.65 | J20: 2241.35 | K20: 2281.95 | L20: 2305.70 | M20: 2258.2 | N20: 2193.85 | O20: 2477500 | P20: 0.16%
A21: 11 | B21: Others | C21: ADANIENT | D21: 2022-05-26 | E21: 2115.15 | F21: 2148.57 | G21: 2071.18 | H21: 2027.22 | I21: 1949.83 | J21: 2192.53 | K21: 2269.92 | L21: 2313.88 | M21: 2225.95 | N21: 2104.6 | O21: 19483000 | P21: 1.65%
A22: 12 | B22: Others | C22: ADANIPORTS | D22: 2022-05-26 | E22: 772.05 | F22: 782.35 | G22: 757.70 | H22: 743.35 | I22: 718.70 | J22: 796.70 | K22: 821.35 | L22: 835.70 | M22: 807 | N22: 768 | O22: 77641250 | P22: -0.02%
A23: 13 | B23: Pharma | C23: ALKEM | D23: 2022-05-26 | E23: 2978.30 | F23: 3019.62 | G23: 2921.33 | H23: 2864.37 | I23: 2766.08 | J23: 3076.58 | K23: 3174.87 | L23: 3231.83 | M23: 3117.9 | N23: 2962.65 | O23: 296400 | P23: 11.60%
A24: 14 | B24: Automobile | C24: AMARAJABAT | D24: 2022-05-26 | E24: 513.55 | F24: 518.47 | G24: 507.38 | H24: 501.22 | I24: 490.13 | J24: 524.63 | K24: 535.72 | L24: 541.88 | M24: 529.55 | N24: 512.3 | O24: 6954000 | P24: 1.44%
A25: 15 | B25: Cement | C25: AMBUJACEM | D25: 2022-05-26 | E25: 359.50 | F25: 363.65 | G25: 352.40 | H25: 345.30 | I25: 334.05 | J25: 370.75 | K25: 382.00 | L25: 389.10 | M25: 374.9 | N25: 356.55 | O25: 41612700 | P25: 0.33%
A26: 16 | B26: Pharma | C26: APLLTD | D26: 2022-05-26 | E26: 720.50 | F26: 723.87 | G26: 714.33 | H26: 708.17 | I26: 698.63 | J26: 730.03 | K26: 739.57 | L26: 745.73 | M26: 733.4 | N26: 717.7 | O26: 1470000 | P26: -2.37%
A27: 17 | B27: Others | C27: APOLLOHOSP | D27: 2022-05-26 | E27: 3693.50 | F27: 3721.92 | G27: 3646.63 | H27: 3599.77 | I27: 3524.48 | J27: 3768.78 | K27: 3844.07 | L27: 3890.93 | M27: 3797.2 | N27: 3675.05 | O27: 2440250 | P27: 1.24%
A28: 18 | B28: Automobile | C28: APOLLOTYRE | D28: 2022-05-26 | E28: 198.75 | F28: 198.92 | G28: 193.83 | H28: 188.92 | I28: 183.83 | J28: 203.83 | K28: 208.92 | L28: 213.83 | M28: 204 | N28: 194 | O28: 13027500 | P28: -3.56%
A29: 19 | B29: Automobile | C29: ASHOKLEY | D29: 2022-05-26 | E29: 119.00 | F29: 119.45 | G29: 117.00 | H29: 115.00 | I29: 112.55 | J29: 121.45 | K29: 123.90 | L29: 125.90 | M29: 121.9 | N29: 117.45 | O29: 32306000 | P29: 4.39%
A30: 20 | B30: FMCG | C30: ASIANPAINT | D30: 2022-05-26 | E30: 3097.30 | F30: 3093.97 | G30: 3044.28 | H30: 2991.27 | I30: 2941.58 | J30: 3146.98 | K30: 3196.67 | L30: 3249.68 | M30: 3143.65 | N30: 3040.95 | O30: 4967050 | P30: -1.20%
A31: 21 | B31: Others | C31: ASTRAL | D31: 2022-05-26 | E31: 1834.75 | F31: 1849.47 | G31: 1813.93 | H31: 1793.12 | I31: 1757.58 | J31: 1870.28 | K31: 1905.82 | L31: 1926.63 | M31: 1885 | N31: 1828.65 | O31: 588500 | P31: 3.83%
A32: 22 | B32: Others | C32: ATUL | D32: 2022-05-26 | E32: 8269.90 | F32: 8317.28 | G32: 8154.62 | H32: 8039.33 | I32: 7876.67 | J32: 8432.57 | K32: 8595.23 | L32: 8710.52 | M32: 8479.95 | N32: 8202 | O32: 187725 | P32: -2.15%
A33: 23 | B33: Banking | C33: AUBANK | D33: 2022-05-26 | E33: 1267.90 | F33: 1278.40 | G33: 1253.80 | H33: 1239.70 | I33: 1215.10 | J33: 1292.50 | K33: 1317.10 | L33: 1331.20 | M33: 1303 | N33: 1264.3 | O33: 2967500 | P33: 6.30%
A34: 24 | B34: Pharma | C34: AUROPHARMA | D34: 2022-05-26 | E34: 604.10 | F34: 609.40 | G34: 596.15 | H34: 588.20 | I34: 574.95 | J34: 617.35 | K34: 630.60 | L34: 638.55 | M34: 622.65 | N34: 601.45 | O34: 15195000 | P34: 0.27%
A35: 25 | B35: Banking | C35: AXISBANK | D35: 2022-05-26 | E35: 662.10 | F35: 665.33 | G35: 656.77 | H35: 651.43 | I35: 642.87 | J35: 670.67 | K35: 679.23 | L35: 684.57 | M35: 673.9 | N35: 660 | O35: 64896000 | P35: 3.49%
A36: 26 | B36: Automobile | C36: BAJAJ-AUTO | D36: 2022-05-26 | E36: 3573.45 | F36: 3571.78 | G36: 3516.32 | H36: 3459.18 | I36: 3403.72 | J36: 3628.92 | K36: 3684.38 | L36: 3741.52 | M36: 3627.25 | N36: 3514.65 | O36: 2782250 | P36: 0.86%
A37: 27 | B37: Finance | C37: BAJAJFINSV | D37: 2022-05-26 | E37: 13684.65 | F37: 13764.88 | G37: 13530.87 | H37: 13377.08 | I37: 13143.07 | J37: 13918.67 | K37: 14152.68 | L37: 14306.47 | M37: 13998.9 | N37: 13611.1 | O37: 699900 | P37: -0.81%
A38: 28 | B38: Finance | C38: BAJFINANCE | D38: 2022-05-26 | E38: 5946.45 | F38: 5996.50 | G38: 5868.50 | H38: 5790.55 | I38: 5662.55 | J38: 6074.45 | K38: 6202.45 | L38: 6280.40 | M38: 6124.5 | N38: 5918.55 | O38: 5333625 | P38: 0.80%
A39: 29 | B39: Automobile | C39: BALKRISIND | D39: 2022-05-26 | E39: 1955.45 | F39: 1971.78 | G39: 1931.77 | H39: 1908.08 | I39: 1868.07 | J39: 1995.47 | K39: 2035.48 | L39: 2059.17 | M39: 2011.8 | N39: 1948.1 | O39: 1257800 | P39: 1.37%
A40: 30 | B40: Others | C40: BALRAMCHIN | D40: 2022-05-26 | E40: 398.30 | F40: 405.65 | G40: 389.20 | H40: 380.10 | I40: 363.65 | J40: 414.75 | K40: 431.20 | L40: 440.30 | M40: 422.1 | N40: 396.55 | O40: 7464000 | P40: 3.74%
A41: 31 | B41: Banking | C41: BANDHANBNK | D41: 2022-05-26 | E41: 314.60 | F41: 315.42 | G41: 310.43 | H41: 306.27 | I41: 301.28 | J41: 319.58 | K41: 324.57 | L41: 328.73 | M41: 320.4 | N41: 311.25 | O41: 37870200 | P41: 6.06%
A42: 32 | B42: Banking | C42: BANKBARODA | D42: 2022-05-26 | E42: 101.20 | F42: 102.42 | G42: 99.33 | H42: 97.47 | I42: 94.38 | J42: 104.28 | K42: 107.37 | L42: 109.23 | M42: 105.5 | N42: 100.55 | O42: 119497950 | P42: -0.62%
A43: 33 | B43: FMCG | C43: BATAINDIA | D43: 2022-05-26 | E43: 1767.50 | F43: 1785.95 | G43: 1736.50 | H43: 1705.50 | I43: 1656.05 | J43: 1816.95 | K43: 1866.40 | L43: 1897.40 | M43: 1835.4 | N43: 1754.95 | O43: 1351350 | P43: -2.33%
A44: 34 | B44: Capital_Goods | C44: BEL | D44: 2022-05-26 | E44: 223.05 | F44: 225.03 | G44: 220.32 | H44: 217.58 | I44: 212.87 | J44: 227.77 | K44: 232.48 | L44: 235.22 | M44: 229.75 | N44: 222.3 | O44: 33291800 | P44: 1.10%
A45: 35 | B45: FMCG | C45: BERGEPAINT | D45: 2022-05-26 | E45: 676.90 | F45: 678.90 | G45: 668.80 | H45: 660.70 | I45: 650.60 | J45: 687.00 | K45: 697.10 | L45: 705.20 | M45: 689 | N45: 670.8 | O45: 4064500 | P45: 0.76%
A46: 36 | B46: Automobile | C46: BHARATFORG | D46: 2022-05-26 | E46: 632.80 | F46: 638.12 | G46: 625.53 | H46: 618.27 | I46: 605.68 | J46: 645.38 | K46: 657.97 | L46: 665.23 | M46: 650.7 | N46: 630.85 | O46: 5685250 | P46: -0.24%
A47: 37 | B47: Telecom | C47: BHARTIARTL | D47: 2022-05-26 | E47: 719.40 | F47: 720.07 | G47: 711.73 | H47: 704.07 | I47: 695.73 | J47: 727.73 | K47: 736.07 | L47: 743.73 | M47: 728.4 | N47: 712.4 | O47: 47977850 | P47: -1.24%
A48: 38 | B48: Capital_Goods | C48: BHEL | D48: 2022-05-26 | E48: 48.40 | F48: 49.07 | G48: 47.48 | H48: 46.57 | I48: 44.98 | J48: 49.98 | K48: 51.57 | L48: 52.48 | M48: 50.65 | N48: 48.15 | O48: 111478500 | P48: 2.10%
A49: 39 | B49: Pharma | C49: BIOCON | D49: 2022-05-26 | E49: 331.70 | F49: 334.47 | G49: 325.58 | H49: 319.47 | I49: 310.58 | J49: 340.58 | K49: 349.47 | L49: 355.58 | M49: 343.35 | N49: 328.35 | O49: 12201500 | P49: 3.78%
A50: 40 | B50: Automobile | C50: BOSCHLTD | D50: 2022-05-26 | E50: 13500.95 | F50: 13620.45 | G50: 13345.50 | H50: 13190.05 | I50: 12915.10 | J50: 13775.90 | K50: 14050.85 | L50: 14206.30 | M50: 13895.4 | N50: 13465 | O50: 128850 | P50: -1.00%
A51: 41 | B51: Oil_Gas | C51: BPCL | D51: 2022-05-26 | E51: 353.65 | F51: 354.57 | G51: 350.83 | H51: 348.02 | I51: 344.28 | J51: 357.38 | K51: 361.12 | L51: 363.93 | M51: 358.3 | N51: 351.75 | O51: 16916400 | P51: -1.64%
A52: 42 | B52: FMCG | C52: BRITANNIA | D52: 2022-05-26 | E52: 3259.10 | F52: 3276.43 | G52: 3231.72 | H52: 3204.33 | I52: 3159.62 | J52: 3303.82 | K52: 3348.53 | L52: 3375.92 | M52: 3321.15 | N52: 3249.05 | O52: 1488800 | P52: 1.58%
A53: 43 | B53: Technology | C53: BSOFT | D53: 2022-05-26 | E53: 376.75 | F53: 381.35 | G53: 369.75 | H53: 362.75 | I53: 351.15 | J53: 388.35 | K53: 399.95 | L53: 406.95 | M53: 392.95 | N53: 374.35 | O53: 3603600 | P53: 2.06%
A54: 44 | B54: Banking | C54: CANBK | D54: 2022-05-26 | E54: 199.55 | F54: 201.43 | G54: 196.87 | H54: 194.18 | I54: 189.62 | J54: 204.12 | K54: 208.68 | L54: 211.37 | M54: 206 | N54: 198.75 | O54: 47900700 | P54: -0.67%
A55: 45 | B55: Finance | C55: CANFINHOME | D55: 2022-05-26 | E55: 504.65 | F55: 508.70 | G55: 491.70 | H55: 478.75 | I55: 461.75 | J55: 521.65 | K55: 538.65 | L55: 551.60 | M55: 525.7 | N55: 495.75 | O55: 3699150 | P55: -2.14%
A56: 46 | B56: Others | C56: CHAMBLFERT | D56: 2022-05-26 | E56: 426.75 | F56: 428.68 | G56: 415.27 | H56: 403.78 | I56: 390.37 | J56: 440.17 | K56: 453.58 | L56: 465.07 | M56: 442.1 | N56: 417.2 | O56: 2334000 | P56: -0.19%
A57: 47 | B57: Finance | C57: CHOLAFIN | D57: 2022-05-26 | E57: 638.45 | F57: 640.40 | G57: 630.40 | H57: 622.35 | I57: 612.35 | J57: 648.45 | K57: 658.45 | L57: 666.50 | M57: 650.4 | N57: 632.35 | O57: 8762500 | P57: -1.24%
A58: 48 | B58: Pharma | C58: CIPLA | D58: 2022-05-26 | E58: 928.05 | F58: 929.80 | G58: 920.25 | H58: 912.45 | I58: 902.90 | J58: 937.60 | K58: 947.15 | L58: 954.95 | M58: 939.35 | N58: 922 | O58: 9560850 | P58: 2.98%
A59: 49 | B59: Others | C59: COALINDIA | D59: 2022-05-26 | E59: 170.60 | F59: 174.60 | G59: 165.30 | H59: 160.00 | I59: 150.70 | J59: 179.90 | K59: 189.20 | L59: 194.50 | M59: 183.9 | N59: 169.3 | O59: 43881600 | P59: -2.70%
A60: 50 | B60: Technology | C60: COFORGE | D60: 2022-05-26 | E60: 3657.35 | F60: 3730.68 | G60: 3568.67 | H60: 3479.98 | I60: 3317.97 | J60: 3819.37 | K60: 3981.38 | L60: 4070.07 | M60: 3892.7 | N60: 3642 | O60: 710950 | P60: 2.01%
A61: 51 | B61: FMCG | C61: COLPAL | D61: 2022-05-26 | E61: 1585.20 | F61: 1587.08 | G61: 1570.17 | H61: 1555.13 | I61: 1538.22 | J61: 1602.12 | K61: 1619.03 | L61: 1634.07 | M61: 1604 | N61: 1572.05 | O61: 2924950 | P61: 5.84%
A62: 52 | B62: Others | C62: CONCOR | D62: 2022-05-26 | E62: 613.85 | F62: 618.97 | G62: 606.23 | H62: 598.62 | I62: 585.88 | J62: 626.58 | K62: 639.32 | L62: 646.93 | M62: 631.7 | N62: 611.35 | O62: 7508800 | P62: 0.44%
A63: 53 | B63: Others | C63: COROMANDEL | D63: 2022-05-26 | E63: 882.80 | F63: 890.90 | G63: 867.45 | H63: 852.10 | I63: 828.65 | J63: 906.25 | K63: 929.70 | L63: 945.05 | M63: 914.35 | N63: 875.55 | O63: 1291925 | P63: -2.23%
A64: 54 | B64: Capital_Goods | C64: CROMPTON | D64: 2022-05-26 | E64: 345.70 | F64: 347.80 | G64: 338.10 | H64: 330.50 | I64: 320.80 | J64: 355.40 | K64: 365.10 | L64: 372.70 | M64: 357.5 | N64: 340.2 | O64: 3631700 | P64: 2.24%
A65: 55 | B65: Banking | C65: CUB | D65: 2022-05-26 | E65: 121.95 | F65: 123.05 | G65: 120.25 | H65: 118.55 | I65: 115.75 | J65: 124.75 | K65: 127.55 | L65: 129.25 | M65: 125.85 | N65: 121.35 | O65: 11561000 | P65: 1.14%
A66: 56 | B66: Capital_Goods | C66: CUMMINSIND | D66: 2022-05-26 | E66: 984.20 | F66: 990.15 | G66: 976.75 | H66: 969.30 | I66: 955.90 | J66: 997.60 | K66: 1011.00 | L66: 1018.45 | M66: 1003.55 | N66: 982.7 | O66: 1267800 | P66: -2.31%
A67: 57 | B67: FMCG | C67: DABUR | D67: 2022-05-26 | E67: 504.25 | F67: 505.25 | G67: 500.30 | H67: 496.35 | I67: 491.40 | J67: 509.20 | K67: 514.15 | L67: 518.10 | M67: 510.2 | N67: 501.3 | O67: 13157500 | P67: 4.91%
A68: 58 | B68: Cement | C68: DALBHARAT | D68: 2022-05-26 | E68: 1422.00 | F68: 1427.63 | G68: 1364.27 | H68: 1306.53 | I68: 1243.17 | J68: 1485.37 | K68: 1548.73 | L68: 1606.47 | M68: 1491 | N68: 1369.9 | O68: 1416250 | P68: -1.29%
A69: 59 | B69: Chemical | C69: DEEPAKNTR | D69: 2022-05-26 | E69: 1931.50 | F69: 1966.85 | G69: 1885.70 | H69: 1839.90 | I69: 1758.75 | J69: 2012.65 | K69: 2093.80 | L69: 2139.60 | M69: 2048 | N69: 1921.05 | O69: 1509500 | P69: -0.25%
A70: 60 | B70: Others | C70: DELTACORP | D70: 2022-05-26 | E70: 234.20 | F70: 240.30 | G70: 224.90 | H70: 215.60 | I70: 200.20 | J70: 249.60 | K70: 265.00 | L70: 274.30 | M70: 255.7 | N70: 231 | O70: 15674500 | P70: 3.12%
A71: 61 | B71: Pharma | C71: DIVISLAB | D71: 2022-05-26 | E71: 4299.70 | F71: 4280.47 | G71: 4248.93 | H71: 4198.17 | I71: 4166.63 | J71: 4331.23 | K71: 4362.77 | L71: 4413.53 | M71: 4312 | N71: 4229.7 | O71: 2144700 | P71: -1.35%
A72: 62 | B72: Others | C72: DIXON | D72: 2022-05-26 | E72: 3645.15 | F72: 3643.03 | G72: 3470.12 | H72: 3295.08 | I72: 3122.17 | J72: 3818.07 | K72: 3990.98 | L72: 4166.02 | M72: 3815.95 | N72: 3468 | O72: 931875 | P72: 10.02%
A73: 63 | B73: Realty | C73: DLF | D73: 2022-05-26 | E73: 319.05 | F73: 325.42 | G73: 311.13 | H73: 303.22 | I73: 288.93 | J73: 333.33 | K73: 347.62 | L73: 355.53 | M73: 339.7 | N73: 317.5 | O73: 42860400 | P73: 3.15%
A74: 64 | B74: Pharma | C74: DRREDDY | D74: 2022-05-26 | E74: 3915.50 | F74: 3918.03 | G74: 3893.12 | H74: 3870.73 | I74: 3845.82 | J74: 3940.42 | K74: 3965.33 | L74: 3987.72 | M74: 3942.95 | N74: 3895.65 | O74: 2685125 | P74: -0.20%
A75: 65 | B75: Automobile | C75: EICHERMOT | D75: 2022-05-26 | E75: 2416.00 | F75: 2401.22 | G75: 2358.48 | H75: 2300.97 | I75: 2258.23 | J75: 2458.73 | K75: 2501.47 | L75: 2558.98 | M75: 2443.95 | N75: 2343.7 | O75: 3351600 | P75: -1.53%
A76: 66 | B76: Automobile | C76: ESCORTS | D76: 2022-05-26 | E76: 1584.00 | F76: 1588.67 | G76: 1561.33 | H76: 1538.67 | I76: 1511.33 | J76: 1611.33 | K76: 1638.67 | L76: 1661.33 | M76: 1616 | N76: 1566 | O76: 3522750 | P76: 0.16%
A77: 67 | B77: Automobile | C77: EXIDEIND | D77: 2022-05-26 | E77: 146.05 | F77: 147.40 | G77: 144.30 | H77: 142.55 | I77: 139.45 | J77: 149.15 | K77: 152.25 | L77: 154.00 | M77: 150.5 | N77: 145.65 | O77: 22647600 | P77: 1.98%
A78: 68 | B78: Banking | C78: FEDERALBNK | D78: 2022-05-26 | E78: 92.65 | F78: 93.37 | G78: 91.33 | H78: 90.02 | I78: 87.98 | J78: 94.68 | K78: 96.72 | L78: 98.03 | M78: 95.4 | N78: 92.05 | O78: 80160000 | P78: 0.23%
A79: 69 | B79: Technology | C79: FSL | D79: 2022-05-26 | E79: 112.25 | F79: 113.25 | G79: 111.00 | H79: 109.75 | I79: 107.50 | J79: 114.50 | K79: 116.75 | L79: 118.00 | M79: 115.5 | N79: 112 | O79: 13936000 | P79: -0.85%
A80: 70 | B80: Oil_Gas | C80: GAIL | D80: 2022-05-26 | E80: 148.90 | F80: 151.33 | G80: 145.47 | H80: 142.03 | I80: 136.17 | J80: 154.77 | K80: 160.63 | L80: 164.07 | M80: 157.2 | N80: 147.9 | O80: 39747600 | P80: 0.54%
A81: 71 | B81: Pharma | C81: GLENMARK | D81: 2022-05-26 | E81: 405.20 | F81: 411.27 | G81: 397.83 | H81: 390.47 | I81: 377.03 | J81: 418.63 | K81: 432.07 | L81: 439.43 | M81: 424.7 | N81: 403.9 | O81: 6640100 | P81: 1.32%
A82: 72 | B82: Infrastructure | C82: GMRINFRA | D82: 2022-05-26 | E82: 33.60 | F82: 33.98 | G82: 33.07 | H82: 32.53 | I82: 31.62 | J82: 34.52 | K82: 35.43 | L82: 35.97 | M82: 34.9 | N82: 33.45 | O82: 98932500 | P82: -0.48%
A83: 73 | B83: Others | C83: GNFC | D83: 2022-05-26 | E83: 820.10 | F83: 820.45 | G83: 777.65 | H83: 735.20 | I83: 692.40 | J83: 862.90 | K83: 905.70 | L83: 948.15 | M83: 863.25 | N83: 778 | O83: 4173000 | P83: 4.09%
A84: 74 | B84: FMCG | C84: GODREJCP | D84: 2022-05-26 | E84: 773.60 | F84: 774.65 | G84: 757.70 | H84: 741.80 | I84: 724.85 | J84: 790.55 | K84: 807.50 | L84: 823.40 | M84: 791.6 | N84: 758.75 | O84: 5665500 | P84: -0.01%
A85: 75 | B85: Realty | C85: GODREJPROP | D85: 2022-05-26 | E85: 1361.10 | F85: 1378.50 | G85: 1334.55 | H85: 1308.00 | I85: 1264.05 | J85: 1405.05 | K85: 1449.00 | L85: 1475.55 | M85: 1422.45 | N85: 1351.95 | O85: 4182100 | P85: 2.53%
A86: 76 | B86: Pharma | C86: GRANULES | D86: 2022-05-26 | E86: 252.50 | F86: 256.20 | G86: 247.25 | H86: 242.00 | I86: 233.05 | J86: 261.45 | K86: 270.40 | L86: 275.65 | M86: 265.15 | N86: 250.95 | O86: 10658800 | P86: 0.50%
A87: 77 | B87: Cement | C87: GRASIM | D87: 2022-05-26 | E87: 1542.65 | F87: 1552.27 | G87: 1527.83 | H87: 1513.02 | I87: 1488.58 | J87: 1567.08 | K87: 1591.52 | L87: 1606.33 | M87: 1576.7 | N87: 1537.45 | O87: 9712325 | P87: -0.21%
A88: 78 | B88: Oil_Gas | C88: GSPL | D88: 2022-05-26 | E88: 254.05 | F88: 256.75 | G88: 250.20 | H88: 246.35 | I88: 239.80 | J88: 260.60 | K88: 267.15 | L88: 271.00 | M88: 263.3 | N88: 252.9 | O88: 2507500 | P88: 0.07%
A89: 79 | B89: Oil_Gas | C89: GUJGASLTD | D89: 2022-05-26 | E89: 506.15 | F89: 512.85 | G89: 496.80 | H89: 487.45 | I89: 471.40 | J89: 522.20 | K89: 538.25 | L89: 547.60 | M89: 528.9 | N89: 503.5 | O89: 3367500 | P89: -5.61%
A90: 80 | B90: Others | C90: HAL | D90: 2022-05-26 | E90: 1551.40 | F90: 1562.97 | G90: 1533.28 | H90: 1515.17 | I90: 1485.48 | J90: 1581.08 | K90: 1610.77 | L90: 1628.88 | M90: 1592.65 | N90: 1544.85 | O90: 2511325 | P90: -3.59%
A91: 81 | B91: Capital_Goods | C91: HAVELLS | D91: 2022-05-26 | E91: 1222.25 | F91: 1218.43 | G91: 1203.52 | H91: 1184.78 | I91: 1169.87 | J91: 1237.17 | K91: 1252.08 | L91: 1270.82 | M91: 1233.35 | N91: 1199.7 | O91: 4634000 | P91: -2.08%
A92: 82 | B92: Technology | C92: HCLTECH | D92: 2022-05-26 | E92: 1074.90 | F92: 1076.30 | G92: 1066.70 | H92: 1058.50 | I92: 1048.90 | J92: 1084.50 | K92: 1094.10 | L92: 1102.30 | M92: 1085.9 | N92: 1068.1 | O92: 22495200 | P92: 0.55%
A93: 83 | B93: Finance | C93: HDFC | D93: 2022-05-26 | E93: 2206.30 | F93: 2197.85 | G93: 2169.50 | H93: 2132.70 | I93: 2104.35 | J93: 2234.65 | K93: 2263.00 | L93: 2299.80 | M93: 2226.2 | N93: 2161.05 | O93: 21350700 | P93: 1.52%
A94: 84 | B94: Finance | C94: HDFCAMC | D94: 2022-05-26 | E94: 1917.35 | F94: 1927.68 | G94: 1890.87 | H94: 1864.38 | I94: 1827.57 | J94: 1954.17 | K94: 1990.98 | L94: 2017.47 | M94: 1964.5 | N94: 1901.2 | O94: 3720300 | P94: 0.64%
A95: 85 | B95: Banking | C95: HDFCBANK | D95: 2022-05-26 | E95: 1328.00 | F95: 1323.72 | G95: 1307.83 | H95: 1287.67 | I95: 1271.78 | J95: 1343.88 | K95: 1359.77 | L95: 1379.93 | M95: 1339.6 | N95: 1303.55 | O95: 90472800 | P95: -0.17%
A96: 86 | B96: Finance | C96: HDFCLIFE | D96: 2022-05-26 | E96: 561.30 | F96: 565.25 | G96: 556.15 | H96: 551.00 | I96: 541.90 | J96: 570.40 | K96: 579.50 | L96: 584.65 | M96: 574.35 | N96: 560.1 | O96: 22588500 | P96: 1.30%
A97: 87 | B97: Automobile | C97: HEROMOTOCO | D97: 2022-05-26 | E97: 2478.00 | F97: 2491.55 | G97: 2457.65 | H97: 2437.30 | I97: 2403.40 | J97: 2511.90 | K97: 2545.80 | L97: 2566.15 | M97: 2525.45 | N97: 2471.2 | O97: 3363300 | P97: -3.05%
A98: 88 | B98: Metals | C98: HINDALCO | D98: 2022-05-26 | E98: 423.60 | F98: 429.20 | G98: 415.40 | H98: 407.20 | I98: 393.40 | J98: 437.40 | K98: 451.20 | L98: 459.40 | M98: 443 | N98: 421 | O98: 39325650 | P98: -0.69%
A99: 89 | B99: Metals | C99: HINDCOPPER | D99: 2022-05-26 | E99: 93.55 | F99: 94.85 | G99: 91.85 | H99: 90.15 | I99: 87.15 | J99: 96.55 | K99: 99.55 | L99: 101.25 | M99: 97.85 | N99: 93.15 | O99: 14620000 | P99: -1.22%
A100: 90 | B100: Oil_Gas | C100: HINDPETRO | D100: 2022-05-26 | E100: 270.70 | F100: 271.40 | G100: 268.10 | H100: 265.50 | I100: 262.20 | J100: 274.00 | K100: 277.30 | L100: 279.90 | M100: 274.7 | N100: 268.8 | O100: 11542500 | P100: -5.04%
A101: 91 | B101: FMCG | C101: HINDUNILVR | D101: 2022-05-26 | E101: 2183.70 | F101: 2166.57 | G101: 2134.28 | H101: 2084.87 | I101: 2052.58 | J101: 2215.98 | K101: 2248.27 | L101: 2297.68 | M101: 2198.85 | N101: 2117.15 | O101: 10724700 | P101: -0.83%
A102: 92 | B102: Others | C102: HONAUT | D102: 2022-05-26 | E102: 38306.55 | F102: 38348.80 | G102: 37970.55 | H102: 37634.55 | I102: 37256.30 | J102: 38684.80 | K102: 39063.05 | L102: 39399.05 | M102: 38727.05 | N102: 38012.8 | O102: 7185 | P102: 6.44%
A103: 93 | B103: Finance | C103: IBULHSGFIN | D103: 2022-05-26 | E103: 140.10 | F103: 142.35 | G103: 137.10 | H103: 134.10 | I103: 128.85 | J103: 145.35 | K103: 150.60 | L103: 153.60 | M103: 147.6 | N103: 139.35 | O103: 40452200 | P103: 1.21%
A104: 94 | B104: Banking | C104: ICICIBANK | D104: 2022-05-26 | E104: 713.95 | F104: 714.68 | G104: 706.67 | H104: 699.38 | I104: 691.37 | J104: 721.97 | K104: 729.98 | L104: 737.27 | M104: 722.7 | N104: 707.4 | O104: 118985625 | P104: 2.55%
A105: 95 | B105: Finance | C105: ICICIGI | D105: 2022-05-26 | E105: 1271.95 | F105: 1271.58 | G105: 1251.52 | H105: 1231.08 | I105: 1211.02 | J105: 1292.02 | K105: 1312.08 | L105: 1332.52 | M105: 1291.65 | N105: 1251.15 | O105: 3034925 | P105: 0.06%
A106: 96 | B106: Finance | C106: ICICIPRULI | D106: 2022-05-26 | E106: 500.65 | F106: 504.65 | G106: 495.00 | H106: 489.35 | I106: 479.70 | J106: 510.30 | K106: 519.95 | L106: 525.60 | M106: 514.3 | N106: 499 | O106: 5889750 | P106: 1.42%
A107: 97 | B107: Telecom | C107: IDEA | D107: 2022-05-26 | E107: 8.75 | F107: 8.85 | G107: 8.55 | H107: 8.35 | I107: 8.05 | J107: 9.05 | K107: 9.35 | L107: 9.55 | M107: 9.15 | N107: 8.65 | O107: 754600000 | P107: -1.14%
A108: 98 | B108: Finance | C108: IDFC | D108: 2022-05-26 | E108: 52.25 | F108: 52.83 | G108: 51.42 | H108: 50.58 | I108: 49.17 | J108: 53.67 | K108: 55.08 | L108: 55.92 | M108: 54.25 | N108: 52 | O108: 105120000 | P108: -0.16%
A109: 99 | B109: Banking | C109: IDFCFIRSTB | D109: 2022-05-26 | E109: 37.55 | F109: 37.93 | G109: 37.02 | H109: 36.48 | I109: 35.57 | J109: 38.47 | K109: 39.38 | L109: 39.92 | M109: 38.85 | N109: 37.4 | O109: 234534000 | P109: 1.55%
A110: 100 | B110: Others | C110: IEX | D110: 2022-05-26 | E110: 197.15 | F110: 199.72 | G110: 193.13 | H110: 189.12 | I110: 182.53 | J110: 203.73 | K110: 210.32 | L110: 214.33 | M110: 206.3 | N110: 195.7 | O110: 51086250 | P110: 0.12%
A111: 101 | B111: Oil_Gas | C111: IGL | D111: 2022-05-26 | E111: 348.45 | F111: 352.07 | G111: 343.03 | H111: 337.62 | I111: 328.58 | J111: 357.48 | K111: 366.52 | L111: 371.93 | M111: 361.1 | N111: 346.65 | O111: 15224000 | P111: 1.45%
A112: 102 | B112: Infrastructure | C112: INDHOTEL | D112: 2022-05-26 | E112: 231.00 | F112: 233.90 | G112: 225.90 | H112: 220.80 | I112: 212.80 | J112: 239.00 | K112: 247.00 | L112: 252.10 | M112: 241.9 | N112: 228.8 | O112: 23979164 | P112: 4.65%
A113: 103 | B113: Cement | C113: INDIACEM | D113: 2022-05-26 | E113: 182.40 | F113: 183.73 | G113: 178.87 | H113: 175.33 | I113: 170.47 | J113: 187.27 | K113: 192.13 | L113: 195.67 | M113: 188.6 | N113: 180.2 | O113: 13893900 | P113: 1.91%
A114: 104 | B114: Others | C114: INDIAMART | D114: 2022-05-26 | E114: 4216.75 | F114: 4244.62 | G114: 4151.08 | H114: 4085.42 | I114: 3991.88 | J114: 4310.28 | K114: 4403.82 | L114: 4469.48 | M114: 4338.15 | N114: 4178.95 | O114: 384075 | P114: 0.22%
A115: 105 | B115: Others | C115: INDIGO | D115: 2022-05-26 | E115: 1698.65 | F115: 1718.80 | G115: 1672.65 | H115: 1646.65 | I115: 1600.50 | J115: 1744.80 | K115: 1790.95 | L115: 1816.95 | M115: 1764.95 | N115: 1692.8 | O115: 2514550 | P115: 0.71%
A116: 106 | B116: Banking | C116: INDUSINDBK | D116: 2022-05-26 | E116: 911.70 | F116: 908.13 | G116: 892.67 | H116: 873.63 | I116: 858.17 | J116: 927.17 | K116: 942.63 | L116: 961.67 | M116: 923.6 | N116: 889.1 | O116: 26843400 | P116: -0.14%
A117: 107 | B117: Telecom | C117: INDUSTOWER | D117: 2022-05-26 | E117: 208.55 | F117: 207.70 | G117: 205.70 | H117: 202.85 | I117: 200.85 | J117: 210.55 | K117: 212.55 | L117: 215.40 | M117: 209.7 | N117: 204.85 | O117: 14277200 | P117: 7.69%
A118: 108 | B118: Technology | C118: INFY | D118: 2022-05-26 | E118: 1555.40 | F118: 1558.15 | G118: 1546.00 | H118: 1536.60 | I118: 1524.45 | J118: 1567.55 | K118: 1579.70 | L118: 1589.10 | M118: 1570.3 | N118: 1548.75 | O118: 43847100 | P118: 0.68%
A119: 109 | B119: Technology | C119: INTELLECT | D119: 2022-05-26 | E119: 608.50 | F119: 625.52 | G119: 582.18 | H119: 555.87 | I119: 512.53 | J119: 651.83 | K119: 695.17 | L119: 721.48 | M119: 668.85 | N119: 599.2 | O119: 1636500 | P119: 3.76%
A120: 110 | B120: Oil_Gas | C120: IOC | D120: 2022-05-26 | E120: 122.35 | F120: 123.57 | G120: 120.73 | H120: 119.12 | I120: 116.28 | J120: 125.18 | K120: 128.02 | L120: 129.63 | M120: 126.4 | N120: 121.95 | O120: 54892500 | P120: -0.73%
A121: 111 | B121: Pharma | C121: IPCALAB | D121: 2022-05-26 | E121: 970.95 | F121: 978.03 | G121: 961.42 | H121: 951.88 | I121: 935.27 | J121: 987.57 | K121: 1004.18 | L121: 1013.72 | M121: 994.65 | N121: 968.5 | O121: 762250 | P121: 1.28%
A122: 112 | B122: Others | C122: IRCTC | D122: 2022-05-26 | E122: 656.85 | F122: 664.57 | G122: 643.13 | H122: 629.42 | I122: 607.98 | J122: 678.28 | K122: 699.72 | L122: 713.43 | M122: 686 | N122: 650.85 | O122: 15395625 | P122: 1.87%
A123: 113 | B123: FMCG | C123: ITC | D123: 2022-05-26 | E123: 256.35 | F123: 257.87 | G123: 254.23 | H123: 252.12 | I123: 248.48 | J123: 259.98 | K123: 263.62 | L123: 265.73 | M123: 261.5 | N123: 255.75 | O123: 111884800 | P123: -0.61%
A124: 114 | B124: Metals | C124: JINDALSTEL | D124: 2022-05-26 | E124: 465.60 | F124: 474.80 | G124: 451.40 | H124: 437.20 | I124: 413.80 | J124: 489.00 | K124: 512.40 | L124: 526.60 | M124: 498.2 | N124: 460.6 | O124: 29680000 | P124: -0.46%
A125: 115 | B125: Cement | C125: JKCEMENT | D125: 2022-05-26 | E125: 2331.80 | F125: 2352.53 | G125: 2300.27 | H125: 2268.73 | I125: 2216.47 | J125: 2384.07 | K125: 2436.33 | L125: 2467.87 | M125: 2404.8 | N125: 2321 | O125: 300825 | P125: 4.06%
A126: 116 | B126: Metals | C126: JSWSTEEL | D126: 2022-05-26 | E126: 647.65 | F126: 657.32 | G126: 635.68 | H126: 623.72 | I126: 602.08 | J126: 669.28 | K126: 690.92 | L126: 702.88 | M126: 678.95 | N126: 645.35 | O126: 28429650 | P126: 3.22%
A127: 117 | B127: Others | C127: JUBLFOOD | D127: 2022-05-26 | E127: 480.85 | F127: 484.27 | G127: 472.08 | H127: 463.32 | I127: 451.13 | J127: 493.03 | K127: 505.22 | L127: 513.98 | M127: 496.45 | N127: 475.5 | O127: 10343125 | P127: 6.69%
A128: 118 | B128: Banking | C128: KOTAKBANK | D128: 2022-05-26 | E128: 1798.75 | F128: 1793.72 | G128: 1777.53 | H128: 1756.32 | I128: 1740.13 | J128: 1814.93 | K128: 1831.12 | L128: 1852.33 | M128: 1809.9 | N128: 1772.5 | O128: 14188400 | P128: 1.52%
A129: 119 | B129: Finance | C129: L&TFH | D129: 2022-05-26 | E129: 80.30 | F129: 80.72 | G129: 79.23 | H129: 78.17 | I129: 76.68 | J129: 81.78 | K129: 83.27 | L129: 84.33 | M129: 82.2 | N129: 79.65 | O129: 57417016 | P129: 0.86%
A130: 120 | B130: Others | C130: LALPATHLAB | D130: 2022-05-26 | E130: 2261.70 | F130: 2294.93 | G130: 2212.07 | H130: 2162.43 | I130: 2079.57 | J130: 2344.57 | K130: 2427.43 | L130: 2477.07 | M130: 2377.8 | N130: 2245.3 | O130: 836875 | P130: 7.10%
A131: 121 | B131: Pharma | C131: LAURUSLABS | D131: 2022-05-26 | E131: 527.55 | F131: 535.83 | G131: 516.87 | H131: 506.18 | I131: 487.22 | J131: 546.52 | K131: 565.48 | L131: 576.17 | M131: 554.8 | N131: 525.15 | O131: 7662600 | P131: -0.95%
A132: 122 | B132: Finance | C132: LICHSGFIN | D132: 2022-05-26 | E132: 348.40 | F132: 349.43 | G132: 343.97 | H132: 339.53 | I132: 334.07 | J132: 353.87 | K132: 359.33 | L132: 363.77 | M132: 354.9 | N132: 345 | O132: 22700000 | P132: 1.84%
A133: 123 | B133: Capital_Goods | C133: LT | D133: 2022-05-26 | E133: 1611.25 | F133: 1616.35 | G133: 1600.05 | H133: 1588.85 | I133: 1572.55 | J133: 1627.55 | K133: 1643.85 | L133: 1655.05 | M133: 1632.65 | N133: 1605.15 | O133: 14415125 | P133: -1.43%
A134: 124 | B134: Technology | C134: LTI | D134: 2022-05-26 | E134: 4348.60 | F134: 4395.85 | G134: 4286.40 | H134: 4224.20 | I134: 4114.75 | J134: 4458.05 | K134: 4567.50 | L134: 4629.70 | M134: 4505.3 | N134: 4333.65 | O134: 2042550 | P134: 2.91%
A135: 125 | B135: Technology | C135: LTTS | D135: 2022-05-26 | E135: 3889.75 | F135: 3905.88 | G135: 3845.82 | H135: 3801.88 | I135: 3741.82 | J135: 3949.82 | K135: 4009.88 | L135: 4053.82 | M135: 3965.95 | N135: 3861.95 | O135: 857600 | P135: -2.10%
A136: 126 | B136: Pharma | C136: LUPIN | D136: 2022-05-26 | E136: 715.55 | F136: 724.33 | G136: 703.72 | H136: 691.88 | I136: 671.27 | J136: 736.17 | K136: 756.78 | L136: 768.62 | M136: 744.95 | N136: 712.5 | O136: 8329150 | P136: 6.58%
A137: 127 | B137: Automobile | C137: M&M | D137: 2022-05-26 | E137: 892.50 | F137: 897.77 | G137: 882.63 | H137: 872.77 | I137: 857.63 | J137: 907.63 | K137: 922.77 | L137: 932.63 | M137: 912.9 | N137: 887.9 | O137: 11560500 | P137: 0.03%
A138: 128 | B138: Finance | C138: M&MFIN | D138: 2022-05-26 | E138: 172.00 | F138: 174.03 | G138: 169.47 | H138: 166.93 | I138: 162.37 | J138: 176.57 | K138: 181.13 | L138: 183.67 | M138: 178.6 | N138: 171.5 | O138: 28044000 | P138: 2.05%
A139: 129 | B139: Finance | C139: MANAPPURAM | D139: 2022-05-26 | E139: 107.65 | F139: 109.15 | G139: 105.75 | H139: 103.85 | I139: 100.45 | J139: 111.05 | K139: 114.45 | L139: 116.35 | M139: 112.55 | N139: 107.25 | O139: 29298000 | P139: 1.14%
A140: 130 | B140: FMCG | C140: MARICO | D140: 2022-05-26 | E140: 502.70 | F140: 499.45 | G140: 492.95 | H140: 483.20 | I140: 476.70 | J140: 509.20 | K140: 515.70 | L140: 525.45 | M140: 505.95 | N140: 489.7 | O140: 8395400 | P140: -2.30%
A141: 131 | B141: Automobile | C141: MARUTI | D141: 2022-05-26 | E141: 7520.30 | F141: 7485.88 | G141: 7393.82 | H141: 7267.33 | I141: 7175.27 | J141: 7612.37 | K141: 7704.43 | L141: 7830.92 | M141: 7577.95 | N141: 7359.4 | O141: 2630700 | P141: -2.48%
A142: 132 | B142: FMCG | C142: MCDOWELL-N | D142: 2022-05-26 | E142: 809.00 | F142: 809.22 | G142: 796.53 | H142: 784.07 | I142: 771.38 | J142: 821.68 | K142: 834.37 | L142: 846.83 | M142: 821.9 | N142: 796.75 | O142: 13151875 | P142: -0.30%
A143: 133 | B143: Others | C143: MCX | D143: 2022-05-26 | E143: 1201.90 | F143: 1216.52 | G143: 1181.33 | H143: 1160.77 | I143: 1125.58 | J143: 1237.08 | K143: 1272.27 | L143: 1292.83 | M143: 1251.7 | N143: 1195.95 | O143: 2680850 | P143: 1.87%
A144: 134 | B144: Pharma | C144: METROPOLIS | D144: 2022-05-26 | E144: 2012.65 | F144: 2032.38 | G144: 1984.77 | H144: 1956.88 | I144: 1909.27 | J144: 2060.27 | K144: 2107.88 | L144: 2135.77 | M144: 2080 | N144: 2004.5 | O144: 345600 | P144: 1.11%
A145: 135 | B145: Finance | C145: MFSL | D145: 2022-05-26 | E145: 704.40 | F145: 707.95 | G145: 695.90 | H145: 687.40 | I145: 675.35 | J145: 716.45 | K145: 728.50 | L145: 737.00 | M145: 720 | N145: 699.45 | O145: 1922700 | P145: 1.58%
A146: 136 | B146: Oil_Gas | C146: MGL | D146: 2022-05-26 | E146: 748.15 | F146: 756.98 | G146: 734.97 | H146: 721.78 | I146: 699.77 | J146: 770.17 | K146: 792.18 | L146: 805.37 | M146: 779 | N146: 743.8 | O146: 2846400 | P146: 0.30%
A147: 137 | B147: Technology | C147: MINDTREE | D147: 2022-05-26 | E147: 3099.20 | F147: 3141.73 | G147: 3043.47 | H147: 2987.73 | I147: 2889.47 | J147: 3197.47 | K147: 3295.73 | L147: 3351.47 | M147: 3240 | N147: 3086 | O147: 2697000 | P147: -0.89%
A148: 138 | B148: Automobile | C148: MOTHERSUMI | D148: 2022-05-26 | E148: 121.75 | F148: 121.13 | G148: 119.27 | H148: 116.78 | I148: 114.92 | J148: 123.62 | K148: 125.48 | L148: 127.97 | M148: 123 | N148: 118.65 | O148: 33997500 | P148: -1.52%
A149: 139 | B149: Technology | C149: MPHASIS | D149: 2022-05-26 | E149: 2651.65 | F149: 2652.68 | G149: 2619.97 | H149: 2588.28 | I149: 2555.57 | J149: 2684.37 | K149: 2717.08 | L149: 2748.77 | M149: 2685.4 | N149: 2621 | O149: 1765225 | P149: -0.55%
A150: 140 | B150: Automobile | C150: MRF | D150: 2022-05-26 | E150: 66953.10 | F150: 67522.38 | G150: 64784.77 | H150: 62616.43 | I150: 59878.82 | J150: 69690.72 | K150: 72428.33 | L150: 74596.67 | M150: 70260 | N150: 65354.05 | O150: 122900 | P150: 4.10%
A151: 141 | B151: Finance | C151: MUTHOOTFIN | D151: 2022-05-26 | E151: 1172.40 | F151: 1186.52 | G151: 1153.83 | H151: 1135.27 | I151: 1102.58 | J151: 1205.08 | K151: 1237.77 | L151: 1256.33 | M151: 1219.2 | N151: 1167.95 | O151: 3349500 | P151: -0.38%
A152: 142 | B152: Others | C152: NAM-INDIA | D152: 2022-05-26 | E152: 278.55 | F152: 281.87 | G152: 273.68 | H152: 268.82 | I152: 260.63 | J152: 286.73 | K152: 294.92 | L152: 299.78 | M152: 290.05 | N152: 277 | O152: 3756800 | P152: -2.13%
A153: 143 | B153: Metals | C153: NATIONALUM | D153: 2022-05-26 | E153: 89.75 | F153: 91.47 | G153: 87.58 | H153: 85.42 | I153: 81.53 | J153: 93.63 | K153: 97.52 | L153: 99.68 | M153: 95.35 | N153: 89.3 | O153: 67677000 | P153: 0.33%
A154: 144 | B154: Others | C154: NAUKRI | D154: 2022-05-26 | E154: 3705.70 | F154: 3762.62 | G154: 3633.08 | H154: 3560.47 | I154: 3430.93 | J154: 3835.23 | K154: 3964.77 | L154: 4037.38 | M154: 3892.15 | N154: 3690 | O154: 1602125 | P154: 1.15%
A155: 145 | B155: Chemical | C155: NAVINFLUOR | D155: 2022-05-26 | E155: 3770.95 | F155: 3779.47 | G155: 3687.78 | H155: 3604.62 | I155: 3512.93 | J155: 3862.63 | K155: 3954.32 | L155: 4037.48 | M155: 3871.15 | N155: 3696.3 | O155: 382500 | P155: 5.59%
A156: 146 | B156: Others | C156: NBCC | D156: 2022-05-26 | E156: 34.00 | F156: 34.35 | G156: 33.50 | H156: 33.00 | I156: 32.15 | J156: 34.85 | K156: 35.70 | L156: 36.20 | M156: 35.2 | N156: 33.85 | O156: 27654000 | P156: 0.83%
A157: 147 | B157: FMCG | C157: NESTLEIND | D157: 2022-05-26 | E157: 16584.60 | F157: 16599.22 | G157: 16453.43 | H157: 16322.27 | I157: 16176.48 | J157: 16730.38 | K157: 16876.17 | L157: 17007.33 | M157: 16745 | N157: 16468.05 | O157: 352395 | P157: 2.10%
A158: 148 | B158: Metals | C158: NMDC | D158: 2022-05-26 | E158: 141.30 | F158: 143.82 | G158: 138.43 | H158: 135.57 | I158: 130.18 | J158: 146.68 | K158: 152.07 | L158: 154.93 | M158: 149.2 | N158: 140.95 | O158: 51894850 | P158: -0.07%
A159: 149 | B159: Power | C159: NTPC | D159: 2022-05-26 | E159: 155.55 | F159: 157.28 | G159: 153.12 | H159: 150.68 | I159: 146.52 | J159: 159.72 | K159: 163.88 | L159: 166.32 | M159: 161.45 | N159: 154.85 | O159: 70811100 | P159: -1.40%
A160: 150 | B160: Realty | C160: OBEROIRLTY | D160: 2022-05-26 | E160: 844.80 | F160: 856.20 | G160: 830.60 | H160: 816.40 | I160: 790.80 | J160: 870.40 | K160: 896.00 | L160: 910.20 | M160: 881.8 | N160: 842 | O160: 4389700 | P160: 0.82%
A161: 151 | B161: Technology | C161: OFSS | D161: 2022-05-26 | E161: 3582.00 | F161: 3591.62 | G161: 3551.03 | H161: 3520.07 | I161: 3479.48 | J161: 3622.58 | K161: 3663.17 | L161: 3694.13 | M161: 3632.2 | N161: 3560.65 | O161: 298575 | P161: -7.01%
A162: 152 | B162: Oil_Gas | C162: ONGC | D162: 2022-05-26 | E162: 154.70 | F162: 156.65 | G162: 151.40 | H162: 148.10 | I162: 142.85 | J162: 159.95 | K162: 165.20 | L162: 168.50 | M162: 161.9 | N162: 153.35 | O162: 45661000 | P162: -7.09%
A163: 153 | B163: Textile | C163: PAGEIND | D163: 2022-05-26 | E163: 40907.00 | F163: 41396.95 | G163: 40061.20 | H163: 39215.40 | I163: 37879.65 | J163: 42242.75 | K163: 43578.50 | L163: 44424.30 | M163: 42732.7 | N163: 40551.15 | O163: 82230 | P163: 1.07%
A164: 154 | B164: Pharma | C164: PEL | D164: 2022-05-26 | E164: 1916.25 | F164: 1937.52 | G164: 1888.58 | H164: 1860.92 | I164: 1811.98 | J164: 1965.18 | K164: 2014.12 | L164: 2041.78 | M164: 1986.45 | N164: 1909.85 | O164: 3459500 | P164: 0.48%
A165: 155 | B165: Technology | C165: PERSISTENT | D165: 2022-05-26 | E165: 3963.00 | F165: 3993.97 | G165: 3904.93 | H165: 3846.87 | I165: 3757.83 | J165: 4052.03 | K165: 4141.07 | L165: 4199.13 | M165: 4083 | N165: 3935.9 | O165: 485250 | P165: 1.22%
A166: 156 | B166: Oil_Gas | C166: PETRONET | D166: 2022-05-26 | E166: 213.45 | F166: 215.35 | G166: 210.90 | H166: 208.35 | I166: 203.90 | J166: 217.90 | K166: 222.35 | L166: 224.90 | M166: 219.8 | N166: 212.8 | O166: 14895000 | P166: 3.76%
A167: 157 | B167: Finance | C167: PFC | D167: 2022-05-26 | E167: 110.55 | F167: 111.50 | G167: 109.35 | H167: 108.15 | I167: 106.00 | J167: 112.70 | K167: 114.85 | L167: 116.05 | M167: 113.65 | N167: 110.3 | O167: 41850000 | P167: 1.83%
A168: 158 | B168: FMCG | C168: PIDILITIND | D168: 2022-05-26 | E168: 2211.10 | F168: 2216.77 | G168: 2188.53 | H168: 2165.97 | I168: 2137.73 | J168: 2239.33 | K168: 2267.57 | L168: 2290.13 | M168: 2245 | N168: 2194.2 | O168: 2969750 | P168: -1.79%
A169: 159 | B169: Chemical | C169: PIIND | D169: 2022-05-26 | E169: 2488.75 | F169: 2526.97 | G169: 2436.13 | H169: 2383.52 | I169: 2292.68 | J169: 2579.58 | K169: 2670.42 | L169: 2723.03 | M169: 2617.8 | N169: 2474.35 | O169: 1576500 | P169: 4.80%
A170: 160 | B170: Banking | C170: PNB | D170: 2022-05-26 | E170: 33.30 | F170: 33.43 | G170: 32.92 | H170: 32.53 | I170: 32.02 | J170: 33.82 | K170: 34.33 | L170: 34.72 | M170: 33.95 | N170: 33.05 | O170: 279120000 | P170: 2.89%
A171: 161 | B171: Others | C171: POLYCAB | D171: 2022-05-26 | E171: 2396.15 | F171: 2423.53 | G171: 2340.27 | H171: 2284.38 | I171: 2201.12 | J171: 2479.42 | K171: 2562.68 | L171: 2618.57 | M171: 2506.8 | N171: 2367.65 | O171: 669900 | P171: -1.24%
A172: 162 | B172: Power | C172: POWERGRID | D172: 2022-05-26 | E172: 243.50 | F172: 244.77 | G172: 241.18 | H172: 238.87 | I172: 235.28 | J172: 247.08 | K172: 250.67 | L172: 252.98 | M172: 248.35 | N172: 242.45 | O172: 51301095 | P172: 6.91%
A173: 163 | B173: Media | C173: PVR | D173: 2022-05-26 | E173: 1777.05 | F173: 1760.78 | G173: 1730.82 | H173: 1684.58 | I173: 1654.62 | J173: 1807.02 | K173: 1836.98 | L173: 1883.22 | M173: 1790.75 | N173: 1714.55 | O173: 2757832 | P173: 6.96%
A174: 164 | B174: Others | C174: RAIN | D174: 2022-05-26 | E174: 158.25 | F174: 162.95 | G174: 151.90 | H174: 145.55 | I174: 134.50 | J174: 169.30 | K174: 180.35 | L174: 186.70 | M174: 174 | N174: 156.6 | O174: 7639000 | P174: 1.22%
A175: 165 | B175: Cement | C175: RAMCOCEM | D175: 2022-05-26 | E175: 721.00 | F175: 722.50 | G175: 712.75 | H175: 704.50 | I175: 694.75 | J175: 730.75 | K175: 740.50 | L175: 748.75 | M175: 732.25 | N175: 714.25 | O175: 2431850 | P175: -2.95%
A176: 166 | B176: Banking | C176: RBLBANK | D176: 2022-05-26 | E176: 113.40 | F176: 113.58 | G176: 110.87 | H176: 108.33 | I176: 105.62 | J176: 116.12 | K176: 118.83 | L176: 121.37 | M176: 116.3 | N176: 111.05 | O176: 48406500 | P176: 3.21%
A177: 167 | B177: Power | C177: RECLTD | D177: 2022-05-26 | E177: 120.40 | F177: 121.58 | G177: 118.97 | H177: 117.53 | I177: 114.92 | J177: 123.02 | K177: 125.63 | L177: 127.07 | M177: 124.2 | N177: 120.15 | O177: 27546000 | P177: 0.28%
A178: 168 | B178: Oil_Gas | C178: RELIANCE | D178: 2022-05-26 | E178: 2482.80 | F178: 2495.55 | G178: 2455.10 | H178: 2427.40 | I178: 2386.95 | J178: 2523.25 | K178: 2563.70 | L178: 2591.40 | M178: 2536 | N178: 2467.85 | O178: 39272750 | P178: 2.52%
A179: 169 | B179: Metals | C179: SAIL | D179: 2022-05-26 | E179: 84.15 | F179: 85.47 | G179: 82.28 | H179: 80.42 | I179: 77.23 | J179: 87.33 | K179: 90.52 | L179: 92.38 | M179: 88.65 | N179: 83.6 | O179: 137464500 | P179: 0.00%
A180: 170 | B180: Banking | C180: SBICARD | D180: 2022-05-26 | E180: 768.65 | F180: 766.18 | G180: 756.87 | H180: 745.08 | I180: 735.77 | J180: 777.97 | K180: 787.28 | L180: 799.07 | M180: 775.5 | N180: 754.4 | O180: 7373900 | P180: -1.65%
A181: 171 | B181: Finance | C181: SBILIFE | D181: 2022-05-26 | E181: 1081.25 | F181: 1081.15 | G181: 1065.30 | H181: 1049.35 | I181: 1033.50 | J181: 1097.10 | K181: 1112.95 | L181: 1128.90 | M181: 1097 | N181: 1065.2 | O181: 7383750 | P181: -2.56%
A182: 172 | B182: Banking | C182: SBIN | D182: 2022-05-26 | E182: 471.50 | F182: 474.10 | G182: 467.45 | H182: 463.40 | I182: 456.75 | J182: 478.15 | K182: 484.80 | L182: 488.85 | M182: 480.75 | N182: 470.05 | O182: 62785500 | P182: 0.96%
A183: 173 | B183: Cement | C183: SHREECEM | D183: 2022-05-26 | E183: 24310.45 | F183: 24342.08 | G183: 24118.52 | H183: 23926.58 | I183: 23703.02 | J183: 24534.02 | K183: 24757.58 | L183: 24949.52 | M183: 24565.65 | N183: 24150.15 | O183: 193750 | P183: -0.90%
A184: 174 | B184: Capital_Goods | C184: SIEMENS | D184: 2022-05-26 | E184: 2257.35 | F184: 2258.10 | G184: 2199.20 | H184: 2141.05 | I184: 2082.15 | J184: 2316.25 | K184: 2375.15 | L184: 2433.30 | M184: 2317 | N184: 2199.95 | O184: 1476200 | P184: 4.70%
A185: 175 | B185: Textile | C185: SRF | D185: 2022-05-26 | E185: 2117.40 | F185: 2173.48 | G185: 2049.12 | H185: 1980.83 | I185: 1856.47 | J185: 2241.77 | K185: 2366.13 | L185: 2434.42 | M185: 2297.85 | N185: 2105.2 | O185: 4030500 | P185: 10.83%
A186: 176 | B186: Finance | C186: SRTRANSFIN | D186: 2022-05-26 | E186: 1164.00 | F186: 1163.92 | G186: 1147.13 | H186: 1130.27 | I186: 1113.48 | J186: 1180.78 | K186: 1197.57 | L186: 1214.43 | M186: 1180.7 | N186: 1147.05 | O186: 4499600 | P186: -1.70%
A187: 177 | B187: Pharma | C187: STAR | D187: 2022-05-26 | E187: 282.00 | F187: 286.90 | G187: 275.70 | H187: 269.40 | I187: 258.20 | J187: 293.20 | K187: 304.40 | L187: 310.70 | M187: 298.1 | N187: 280.6 | O187: 4537800 | P187: 0.74%
A188: 178 | B188: Pharma | C188: SUNPHARMA | D188: 2022-05-26 | E188: 862.20 | F188: 867.10 | G188: 842.55 | H188: 822.90 | I188: 798.35 | J188: 886.75 | K188: 911.30 | L188: 930.95 | M188: 891.65 | N188: 847.45 | O188: 18770500 | P188: -0.04%
A189: 179 | B189: Media | C189: SUNTV | D189: 2022-05-26 | E189: 437.00 | F189: 441.02 | G189: 431.63 | H189: 426.27 | I189: 416.88 | J189: 446.38 | K189: 455.77 | L189: 461.13 | M189: 450.4 | N189: 435.65 | O189: 12655500 | P189: -0.32%
A190: 180 | B190: Pharma | C190: SYNGENE | D190: 2022-05-26 | E190: 567.65 | F190: 565.37 | G190: 558.03 | H190: 548.42 | I190: 541.08 | J190: 574.98 | K190: 582.32 | L190: 591.93 | M190: 572.7 | N190: 555.75 | O190: 1095400 | P190: 4.63%
A191: 181 | B191: Chemical | C191: TATACHEM | D191: 2022-05-26 | E191: 968.35 | F191: 984.22 | G191: 945.73 | H191: 923.12 | I191: 884.63 | J191: 1006.83 | K191: 1045.32 | L191: 1067.93 | M191: 1022.7 | N191: 961.6 | O191: 6431000 | P191: -2.97%
A192: 182 | B192: Telecom | C192: TATACOMM | D192: 2022-05-26 | E192: 1002.65 | F192: 1013.12 | G192: 982.23 | H192: 961.82 | I192: 930.93 | J192: 1033.53 | K192: 1064.42 | L192: 1084.83 | M192: 1044 | N192: 992.7 | O192: 4762700 | P192: -1.76%
A193: 183 | B193: FMCG | C193: TATACONSUM | D193: 2022-05-26 | E193: 747.90 | F193: 754.80 | G193: 738.70 | H193: 729.50 | I193: 713.40 | J193: 764.00 | K193: 780.10 | L193: 789.30 | M193: 770.9 | N193: 745.6 | O193: 6990300 | P193: 0.34%
A194: 184 | B194: Automobile | C194: TATAMOTORS | D194: 2022-05-26 | E194: 392.05 | F194: 397.00 | G194: 384.70 | H194: 377.35 | I194: 365.05 | J194: 404.35 | K194: 416.65 | L194: 424.00 | M194: 409.3 | N194: 389.65 | O194: 82151250 | P194: 0.40%
A195: 185 | B195: Power | C195: TATAPOWER | D195: 2022-05-26 | E195: 222.40 | F195: 226.05 | G195: 217.30 | H195: 212.20 | I195: 203.45 | J195: 231.15 | K195: 239.90 | L195: 245.00 | M195: 234.8 | N195: 220.95 | O195: 103160250 | P195: 1.59%
A196: 186 | B196: Metals | C196: TATASTEEL | D196: 2022-05-26 | E196: 1169.90 | F196: 1196.70 | G196: 1135.70 | H196: 1101.50 | I196: 1040.50 | J196: 1230.90 | K196: 1291.90 | L196: 1326.10 | M196: 1257.7 | N196: 1162.5 | O196: 32209475 | P196: 8.57%
A197: 187 | B197: Technology | C197: TCS | D197: 2022-05-26 | E197: 3433.55 | F197: 3438.48 | G197: 3413.97 | H197: 3394.38 | I197: 3369.87 | J197: 3458.07 | K197: 3482.58 | L197: 3502.17 | M197: 3463 | N197: 3418.9 | O197: 11793300 | P197: -0.66%
A198: 188 | B198: Technology | C198: TECHM | D198: 2022-05-26 | E198: 1243.15 | F198: 1248.28 | G198: 1224.87 | H198: 1206.58 | I198: 1183.17 | J198: 1266.57 | K198: 1289.98 | L198: 1308.27 | M198: 1271.7 | N198: 1230 | O198: 15557400 | P198: -0.79%
A199: 189 | B199: FMCG | C199: TITAN | D199: 2022-05-26 | E199: 2140.80 | F199: 2154.58 | G199: 2118.77 | H199: 2096.73 | I199: 2060.92 | J199: 2176.62 | K199: 2212.43 | L199: 2234.47 | M199: 2190.4 | N199: 2132.55 | O199: 6361125 | P199: 1.49%
A200: 190 | B200: Pharma | C200: TORNTPHARM | D200: 2022-05-26 | E200: 2583.35 | F200: 2598.78 | G200: 2561.57 | H200: 2539.78 | I200: 2502.57 | J200: 2620.57 | K200: 2657.78 | L200: 2679.57 | M200: 2636 | N200: 2577 | O200: 617500 | P200: -2.53%
A201: 191 | B201: Power | C201: TORNTPOWER | D201: 2022-05-26 | E201: 470.20 | F201: 478.27 | G201: 457.93 | H201: 445.67 | I201: 425.33 | J201: 490.53 | K201: 510.87 | L201: 523.13 | M201: 498.6 | N201: 466 | O201: 4282500 | P201: 4.12%
A202: 192 | B202: Others | C202: TRENT | D202: 2022-05-26 | E202: 1064.05 | F202: 1078.87 | G202: 1043.28 | H202: 1022.52 | I202: 986.93 | J202: 1099.63 | K202: 1135.22 | L202: 1155.98 | M202: 1114.45 | N202: 1058.1 | O202: 3068200 | P202: 4.80%
A203: 193 | B203: Automobile | C203: TVSMOTOR | D203: 2022-05-26 | E203: 615.95 | F203: 619.07 | G203: 609.78 | H203: 603.62 | I203: 594.33 | J203: 625.23 | K203: 634.52 | L203: 640.68 | M203: 628.35 | N203: 612.9 | O203: 7950600 | P203: 1.07%
A204: 194 | B204: FMCG | C204: UBL | D204: 2022-05-26 | E204: 1455.65 | F204: 1463.73 | G204: 1442.47 | H204: 1429.28 | I204: 1408.02 | J204: 1476.92 | K204: 1498.18 | L204: 1511.37 | M204: 1485 | N204: 1450.55 | O204: 1167350 | P204: -3.92%
A205: 195 | B205: Cement | C205: ULTRACEMCO | D205: 2022-05-26 | E205: 6376.45 | F205: 6350.90 | G205: 6268.65 | H205: 6160.85 | I205: 6078.60 | J205: 6458.70 | K205: 6540.95 | L205: 6648.75 | M205: 6433.15 | N205: 6243.1 | O205: 2180400 | P205: -0.19%
A206: 196 | B206: Chemical | C206: UPL | D206: 2022-05-26 | E206: 792.10 | F206: 791.73 | G206: 780.87 | H206: 769.63 | I206: 758.77 | J206: 802.97 | K206: 813.83 | L206: 825.07 | M206: 802.6 | N206: 780.5 | O206: 23405200 | P206: -1.76%
... 21 more rows

Sheet Cash Intra
M5: Back to Main Page
A6: FOR INTRA DAY TRADING | K6: =Main!B10 -> 2022-05-11
A8: Sr.no | C8: CLOSE RATE | D8: Pivot Point | E8: Supports | H8: Resistances
E9: S1 | F9: S2 | G9: S3 | H9: R1 | I9: R2 | J9: R3 | K9: HIGH | L9: LOW | M9: Total Trade Quanity in Lakhs
A10: 1 | B10: Nifty 50 | C10: 16240.05 | D10: 16280.63 | E10: 16156.72 | F10: 16073.38 | G10: 15949.47 | H10: 16363.97 | I10: 16487.88 | J10: 16571.22 | K10: 16404.55 | L10: 16197.3
A11: 2 | B11: Nifty Bank | C11: 34482.65 | D11: 34480.42 | E11: 34179.03 | F11: 33875.42 | G11: 33574.03 | H11: 34784.03 | I11: 35085.42 | J11: 35389.03 | K11: 34781.8 | L11: 34176.8
A12: 3 | B12: Nifty CPSE | C12: 2584.1 | D12: 2612.50 | E12: 2543.85 | F12: 2503.60 | G12: 2434.95 | H12: 2652.75 | I12: 2721.40 | J12: 2761.65 | K12: 2681.15 | L12: 2572.25
A13: 4 | B13: Nifty Infra | C13: 4819.15 | D13: 4841.38 | E13: 4779.52 | F13: 4739.88 | G13: 4678.02 | H13: 4881.02 | I13: 4942.88 | J13: 4982.52 | K13: 4903.25 | L13: 4801.75
A14: 5 | B14: Nifty IT | C14: 30427.2 | D14: 30518.75 | E14: 30251.55 | F14: 30075.90 | G14: 29808.70 | H14: 30694.40 | I14: 30961.60 | J14: 31137.25 | K14: 30785.95 | L14: 30343.1
A15: 6 | B15: Nifty PSE | C15: 4100.2 | D15: 4139.25 | E15: 4044.00 | F15: 3987.80 | G15: 3892.55 | H15: 4195.45 | I15: 4290.70 | J15: 4346.90 | K15: 4234.5 | L15: 4083.05
A16: 7 | B16: Nifty Midcap 50 | C16: 7533.65 | D16: 7596.07 | E16: 7448.68 | F16: 7363.72 | G16: 7216.33 | H16: 7681.03 | I16: 7828.42 | J16: 7913.38 | K16: 7743.45 | L16: 7511.1
A17: 8 | B17: ACC | C17: 2198.55 | D17: 2210.98 | E17: 2172.57 | F17: 2146.58 | G17: 2108.17 | H17: 2236.97 | I17: 2275.38 | J17: 2301.37 | K17: 2249.4 | L17: 2185 | M17: 3.65873
A18: 9 | B18: AUBANK | C18: 1262.7 | D18: 1273.23 | E18: 1249.47 | F18: 1236.23 | G18: 1212.47 | H18: 1286.47 | I18: 1310.23 | J18: 1323.47 | K18: 1297 | L18: 1260 | M18: 10.67357
A19: 10 | B19: AARTIIND | C19: 769 | D19: 775.63 | E19: 759.57 | F19: 750.13 | G19: 734.07 | H19: 785.07 | I19: 801.13 | J19: 810.57 | K19: 791.7 | L19: 766.2 | M19: 6.3551
A20: 11 | B20: ADANIENT | C20: 2109.5 | D20: 2142.33 | E20: 2064.67 | F20: 2019.83 | G20: 1942.17 | H20: 2187.17 | I20: 2264.83 | J20: 2309.67 | K20: 2220 | L20: 2097.5 | M20: 14.71866
A21: 12 | B21: ADANIGREEN | C21: 2486.7 | D21: 2562.38 | E21: 2385.37 | F21: 2284.03 | G21: 2107.02 | H21: 2663.72 | I21: 2840.73 | J21: 2942.07 | K21: 2739.4 | L21: 2461.05 | M21: 8.18487
A22: 13 | B22: ADANIPORTS | C22: 769.1 | D22: 779.37 | E22: 754.78 | F22: 740.47 | G22: 715.88 | H22: 793.68 | I22: 818.27 | J22: 832.58 | K22: 803.95 | L22: 765.05 | M22: 53.44522
A23: 14 | B23: ATGL | C23: 2360.65 | D23: 2366.55 | E23: 2295.10 | F23: 2229.55 | G23: 2158.10 | H23: 2432.10 | I23: 2503.55 | J23: 2569.10 | K23: 2438 | L23: 2301 | M23: 4.69693
A24: 15 | B24: ADANITRANS | C24: 2482.55 | D24: 2571.82 | E24: 2354.73 | F24: 2226.92 | G24: 2009.83 | H24: 2699.63 | I24: 2916.72 | J24: 3044.53 | K24: 2788.9 | L24: 2444 | M24: 5.38084
A25: 16 | B25: ABCAPITAL | C25: 104.15 | D25: 105.03 | E25: 102.22 | F25: 100.28 | G25: 97.47 | H25: 106.97 | I25: 109.78 | J25: 111.72 | K25: 107.85 | L25: 103.1 | M25: 28.32463
A26: 17 | B26: ABFRL | C26: 257.75 | D26: 260.28 | E26: 252.47 | F26: 247.18 | G26: 239.37 | H26: 265.57 | I26: 273.38 | J26: 278.67 | K26: 268.1 | L26: 255 | M26: 12.74445
A27: 18 | B27: AJANTPHARM | C27: 1658.1 | D27: 1686.47 | E27: 1609.03 | F27: 1559.97 | G27: 1482.53 | H27: 1735.53 | I27: 1812.97 | J27: 1862.03 | K27: 1763.9 | L27: 1637.4 | M27: 2.35592
A28: 19 | B28: APLLTD | C28: 719.25 | D28: 722.92 | E28: 711.83 | F28: 704.42 | G28: 693.33 | H28: 730.33 | I28: 741.42 | J28: 748.83 | K28: 734 | L28: 715.5 | M28: 2.08656
A29: 20 | B29: ALKEM | C29: 2971.55 | D29: 3010.97 | E29: 2910.58 | F29: 2849.62 | G29: 2749.23 | H29: 3071.93 | I29: 3172.32 | J29: 3233.28 | K29: 3111.35 | L29: 2950 | M29: 2.7224
A30: 21 | B30: AMARAJABAT | C30: 513.45 | D30: 518.05 | E30: 507.40 | F30: 501.35 | G30: 490.70 | H30: 524.10 | I30: 534.75 | J30: 540.80 | K30: 528.7 | L30: 512 | M30: 5.63692
A31: 22 | B31: AMBUJACEM | C31: 358.2 | D31: 362.37 | E31: 350.83 | F31: 343.47 | G31: 331.93 | H31: 369.73 | I31: 381.27 | J31: 388.63 | K31: 373.9 | L31: 355 | M31: 63.22735
A32: 23 | B32: APOLLOHOSP | C32: 3686.9 | D32: 3710.47 | E32: 3638.23 | F32: 3589.57 | G32: 3517.33 | H32: 3759.13 | I32: 3831.37 | J32: 3880.03 | K32: 3782.7 | L32: 3661.8 | M32: 8.36241
A33: 24 | B33: APOLLOTYRE | C33: 198.75 | D33: 198.50 | E33: 193.40 | F33: 188.05 | G33: 182.95 | H33: 203.85 | I33: 208.95 | J33: 214.30 | K33: 203.6 | L33: 193.15 | M33: 78.41294
A34: 25 | B34: ASHOKLEY | C34: 118.7 | D34: 119.17 | E34: 116.73 | F34: 114.77 | G34: 112.33 | H34: 121.13 | I34: 123.57 | J34: 125.53 | K34: 121.6 | L34: 117.2 | M34: 152.08745
A35: 26 | B35: ASIANPAINT | C35: 3086.35 | D35: 3087.03 | E35: 3035.32 | F35: 2984.28 | G35: 2932.57 | H35: 3138.07 | I35: 3189.78 | J35: 3240.82 | K35: 3138.75 | L35: 3036 | M35: 24.60016
A36: 27 | B36: ASTRAL | C36: 1849.8 | D36: 1857.45 | E36: 1830.90 | F36: 1812.00 | G36: 1785.45 | H36: 1876.35 | I36: 1902.90 | J36: 1921.80 | K36: 1884 | L36: 1838.55 | M36: 3.82098
A37: 28 | B37: AUROPHARMA | C37: 603.1 | D37: 608.17 | E37: 594.93 | F37: 586.77 | G37: 573.53 | H37: 616.33 | I37: 629.57 | J37: 637.73 | K37: 621.4 | L37: 600 | M37: 9.90362
A38: 29 | B38: DMART | C38: 3414.95 | D38: 3454.12 | E38: 3362.98 | F38: 3311.02 | G38: 3219.88 | H38: 3506.08 | I38: 3597.22 | J38: 3649.18 | K38: 3545.25 | L38: 3402.15 | M38: 6.96666
A39: 30 | B39: AXISBANK | C39: 659.75 | D39: 663.13 | E39: 654.17 | F39: 648.58 | G39: 639.62 | H39: 668.72 | I39: 677.68 | J39: 683.27 | K39: 672.1 | L39: 657.55 | M39: 95.23698
A40: 31 | B40: BAJAJ-AUTO | C40: 3593.05 | D40: 3593.25 | E40: 3539.80 | F40: 3486.55 | G40: 3433.10 | H40: 3646.50 | I40: 3699.95 | J40: 3753.20 | K40: 3646.7 | L40: 3540 | M40: 5.07087
A41: 32 | B41: BAJFINANCE | C41: 5928.45 | D41: 5980.50 | E41: 5847.95 | F41: 5767.45 | G41: 5634.90 | H41: 6061.00 | I41: 6193.55 | J41: 6274.05 | K41: 6113.05 | L41: 5900 | M41: 11.77933
A42: 33 | B42: BAJAJFINSV | C42: 13630.1 | D42: 13723.77 | E42: 13468.33 | F42: 13306.57 | G42: 13051.13 | H42: 13885.53 | I42: 14140.97 | J42: 14302.73 | K42: 13979.2 | L42: 13562 | M42: 2.56312
A43: 34 | B43: BAJAJHLDNG | C43: 5003.35 | D43: 5030.73 | E43: 4967.62 | F43: 4931.88 | G43: 4868.77 | H43: 5066.47 | I43: 5129.58 | J43: 5165.32 | K43: 5093.85 | L43: 4995 | M43: 0.2168
A44: 35 | B44: BALKRISIND | C44: 1950.6 | D44: 1966.97 | E44: 1923.53 | F44: 1896.47 | G44: 1853.03 | H44: 1994.03 | I44: 2037.47 | J44: 2064.53 | K44: 2010.4 | L44: 1939.9 | M44: 1.71896
A45: 36 | B45: BANDHANBNK | C45: 313.8 | D45: 314.47 | E45: 310.08 | F45: 306.37 | G45: 301.98 | H45: 318.18 | I45: 322.57 | J45: 326.28 | K45: 318.85 | L45: 310.75 | M45: 63.33144
A46: 37 | B46: BANKBARODA | C46: 101 | D46: 102.10 | E46: 99.10 | F46: 97.20 | G46: 94.20 | H46: 104.00 | I46: 107.00 | J46: 108.90 | K46: 105.1 | L46: 100.2 | M46: 160.40305
A47: 38 | B47: BANKINDIA | C47: 45.25 | D47: 45.45 | E47: 44.80 | F47: 44.35 | G47: 43.70 | H47: 45.90 | I47: 46.55 | J47: 47.00 | K47: 46.1 | L47: 45 | M47: 21.60619
A48: 39 | B48: BATAINDIA | C48: 1759.65 | D48: 1778.32 | E48: 1723.63 | F48: 1687.62 | G48: 1632.93 | H48: 1814.33 | I48: 1869.02 | J48: 1905.03 | K48: 1833 | L48: 1742.3 | M48: 3.46419
A49: 40 | B49: BERGEPAINT | C49: 676.6 | D49: 677.57 | E49: 666.83 | F49: 657.07 | G49: 646.33 | H49: 687.33 | I49: 698.07 | J49: 707.83 | K49: 688.3 | L49: 667.8 | M49: 11.82755
A50: 41 | B50: BEL | C50: 222.9 | D50: 224.80 | E50: 220.20 | F50: 217.50 | G50: 212.90 | H50: 227.50 | I50: 232.10 | J50: 234.80 | K50: 229.4 | L50: 222.1 | M50: 44.11653
A51: 42 | B51: BHARATFORG | C51: 631.5 | D51: 636.87 | E51: 624.63 | F51: 617.77 | G51: 605.53 | H51: 643.73 | I51: 655.97 | J51: 662.83 | K51: 649.1 | L51: 630 | M51: 9.6828
A52: 43 | B52: BHEL | C52: 48.35 | D52: 49.00 | E52: 47.45 | F52: 46.55 | G52: 45.00 | H52: 49.90 | I52: 51.45 | J52: 52.35 | K52: 50.55 | L52: 48.1 | M52: 230.48696
A53: 44 | B53: BPCL | C53: 353.45 | D53: 354.28 | E53: 350.57 | F53: 347.68 | G53: 343.97 | H53: 357.17 | I53: 360.88 | J53: 363.77 | K53: 358 | L53: 351.4 | M53: 29.54952
A54: 45 | B54: BHARTIARTL | C54: 719.65 | D54: 719.43 | E54: 710.37 | F54: 701.08 | G54: 692.02 | H54: 728.72 | I54: 737.78 | J54: 747.07 | K54: 728.5 | L54: 710.15 | M54: 67.46893
A55: 46 | B55: BIOCON | C55: 330.8 | D55: 334.10 | E55: 324.80 | F55: 318.80 | G55: 309.50 | H55: 340.10 | I55: 349.40 | J55: 355.40 | K55: 343.4 | L55: 328.1 | M55: 12.77055
A56: 47 | B56: BOSCHLTD | C56: 13521.35 | D56: 13637.63 | E56: 13383.72 | F56: 13246.08 | G56: 12992.17 | H56: 13775.27 | I56: 14029.18 | J56: 14166.82 | K56: 13891.55 | L56: 13500 | M56: 0.19109
A57: 48 | B57: BRITANNIA | C57: 3246.55 | D57: 3267.38 | E57: 3214.17 | F57: 3181.78 | G57: 3128.57 | H57: 3299.77 | I57: 3352.98 | J57: 3385.37 | K57: 3320.6 | L57: 3235 | M57: 2.85192
A58: 49 | B58: INTELLECT | C58: 606.4 | D58: 622.47 | E58: 575.23 | F58: 544.07 | G58: 496.83 | H58: 653.63 | I58: 700.87 | J58: 732.03 | K58: 669.7 | L58: 591.3 | M58: 9.60896
A59: 50 | B59: CANBK | C59: 199.7 | D59: 201.42 | E59: 197.03 | F59: 194.37 | G59: 189.98 | H59: 204.08 | I59: 208.47 | J59: 211.13 | K59: 205.8 | L59: 198.75 | M59: 112.22894
A60: 51 | B60: CASTROLIND | C60: 103.8 | D60: 104.27 | E60: 102.63 | F60: 101.47 | G60: 99.83 | H60: 105.43 | I60: 107.07 | J60: 108.23 | K60: 105.9 | L60: 103.1 | M60: 12.42446
A61: 52 | B61: CHOLAFIN | C61: 637.95 | D61: 639.43 | E61: 629.97 | F61: 621.98 | G61: 612.52 | H61: 647.42 | I61: 656.88 | J61: 664.87 | K61: 648.9 | L61: 631.45 | M61: 27.11145
A62: 53 | B62: CIPLA | C62: 926.15 | D62: 928.10 | E62: 916.60 | F62: 907.05 | G62: 895.55 | H62: 937.65 | I62: 949.15 | J62: 958.70 | K62: 939.6 | L62: 918.55 | M62: 16.62201
A63: 54 | B63: CUB | C63: 121.55 | D63: 122.62 | E63: 119.73 | F63: 117.92 | G63: 115.03 | H63: 124.43 | I63: 127.32 | J63: 129.13 | K63: 125.5 | L63: 120.8 | M63: 6.59939
A64: 55 | B64: COALINDIA | C64: 170.05 | D64: 174.23 | E64: 164.62 | F64: 159.18 | G64: 149.57 | H64: 179.67 | I64: 189.28 | J64: 194.72 | K64: 183.85 | L64: 168.8 | M64: 199.65511
A65: 56 | B65: COFORGE | C65: 3649.3 | D65: 3729.30 | E65: 3554.45 | F65: 3459.60 | G65: 3284.75 | H65: 3824.15 | I65: 3999.00 | J65: 4093.85 | K65: 3904.15 | L65: 3634.45 | M65: 3.41964
A66: 57 | B66: COLPAL | C66: 1589.9 | D66: 1589.03 | E66: 1573.07 | F66: 1556.23 | G66: 1540.27 | H66: 1605.87 | I66: 1621.83 | J66: 1638.67 | K66: 1605 | L66: 1572.2 | M66: 5.03559
A67: 58 | B67: CONCOR | C67: 611.7 | D67: 622.17 | E67: 598.33 | F67: 584.97 | G67: 561.13 | H67: 635.53 | I67: 659.37 | J67: 672.73 | K67: 646 | L67: 608.8 | M67: 19.47575
A68: 59 | B68: COROMANDEL | C68: 882 | D68: 889.95 | E68: 866.90 | F68: 851.80 | G68: 828.75 | H68: 905.05 | I68: 928.10 | J68: 943.20 | K68: 913 | L68: 874.85 | M68: 4.47871
A69: 60 | B69: CROMPTON | C69: 345.55 | D69: 347.52 | E69: 337.13 | F69: 328.72 | G69: 318.33 | H69: 355.93 | I69: 366.32 | J69: 374.73 | K69: 357.9 | L69: 339.1 | M69: 20.33839
A70: 61 | B70: CUMMINSIND | C70: 981.25 | D70: 986.73 | E70: 973.12 | F70: 964.98 | G70: 951.37 | H70: 994.87 | I70: 1008.48 | J70: 1016.62 | K70: 1000.35 | L70: 978.6 | M70: 2.12762
A71: 62 | B71: DLF | C71: 318.2 | D71: 324.40 | E71: 310.30 | F71: 302.40 | G71: 288.30 | H71: 332.30 | I71: 346.40 | J71: 354.30 | K71: 338.5 | L71: 316.5 | M71: 78.09598
A72: 63 | B72: DABUR | C72: 502.55 | D72: 503.53 | E72: 498.37 | F72: 494.18 | G72: 489.02 | H72: 507.72 | I72: 512.88 | J72: 517.07 | K72: 508.7 | L72: 499.35 | M72: 23.05275
A73: 64 | B73: DALBHARAT | C73: 1421.8 | D73: 1424.73 | E73: 1363.32 | F73: 1304.83 | G73: 1243.42 | H73: 1483.22 | I73: 1544.63 | J73: 1603.12 | K73: 1486.15 | L73: 1366.25 | M73: 5.59455
A74: 65 | B74: DEEPAKNTR | C74: 1935 | D74: 1967.67 | E74: 1887.33 | F74: 1839.67 | G74: 1759.33 | H74: 2015.33 | I74: 2095.67 | J74: 2143.33 | K74: 2048 | L74: 1920 | M74: 8.20447
A75: 66 | B75: DHANI | C75: 44.3 | D75: 45.33 | E75: 42.97 | F75: 41.63 | G75: 39.27 | H75: 46.67 | I75: 49.03 | J75: 50.37 | K75: 47.7 | L75: 44 | M75: 18.82363
A76: 67 | B76: DIVISLAB | C76: 4296.35 | D76: 4272.97 | E76: 4233.38 | F76: 4170.42 | G76: 4130.83 | H76: 4335.93 | I76: 4375.52 | J76: 4438.48 | K76: 4312.55 | L76: 4210 | M76: 3.01378
A77: 68 | B77: DIXON | C77: 3680.1 | D77: 3692.47 | E77: 3534.93 | F77: 3389.77 | G77: 3232.23 | H77: 3837.63 | I77: 3995.17 | J77: 4140.33 | K77: 3850 | L77: 3547.3 | M77: 9.07244
A78: 69 | B78: LALPATHLAB | C78: 2316.45 | D78: 2347.15 | E78: 2279.30 | F78: 2242.15 | G78: 2174.30 | H78: 2384.30 | I78: 2452.15 | J78: 2489.30 | K78: 2415 | L78: 2310 | M78: 1.52223
A79: 70 | B79: DRREDDY | C79: 3914 | D79: 3912.67 | E79: 3891.33 | F79: 3868.67 | G79: 3847.33 | H79: 3935.33 | I79: 3956.67 | J79: 3979.33 | K79: 3934 | L79: 3890 | M79: 2.02828
A80: 71 | B80: EICHERMOT | C80: 2415.55 | D80: 2397.40 | E80: 2353.10 | F80: 2290.65 | G80: 2246.35 | H80: 2459.85 | I80: 2504.15 | J80: 2566.60 | K80: 2441.7 | L80: 2334.95 | M80: 8.41473
A81: 72 | B81: EMAMILTD | C81: 472.4 | D81: 466.78 | E81: 458.67 | F81: 444.93 | G81: 436.82 | H81: 480.52 | I81: 488.63 | J81: 502.37 | K81: 474.9 | L81: 453.05 | M81: 2.46277
A82: 73 | B82: ENDURANCE | C82: 1178.45 | D82: 1175.42 | E82: 1158.83 | F82: 1139.22 | G82: 1122.63 | H82: 1195.03 | I82: 1211.62 | J82: 1231.23 | K82: 1192 | L82: 1155.8 | M82: 5.40053
A83: 74 | B83: ESCORTS | C83: 1578.25 | D83: 1580.02 | E83: 1550.23 | F83: 1522.22 | G83: 1492.43 | H83: 1608.03 | I83: 1637.82 | J83: 1665.83 | K83: 1609.8 | L83: 1552 | M83: 4.70516
A84: 75 | B84: EXIDEIND | C84: 145.7 | D84: 147.05 | E84: 144.15 | F84: 142.60 | G84: 139.70 | H84: 148.60 | I84: 151.50 | J84: 153.05 | K84: 149.95 | L84: 145.5 | M84: 14.79316
A85: 76 | B85: FEDERALBNK | C85: 92.4 | D85: 93.08 | E85: 91.17 | F85: 89.93 | G85: 88.02 | H85: 94.32 | I85: 96.23 | J85: 97.47 | K85: 95 | L85: 91.85 | M85: 147.52094
A86: 77 | B86: FORTIS | C86: 242.95 | D86: 243.92 | E86: 235.43 | F86: 227.92 | G86: 219.43 | H86: 251.43 | I86: 259.92 | J86: 267.43 | K86: 252.4 | L86: 236.4 | M86: 10.67819
A87: 78 | B87: GAIL | C87: 148.9 | D87: 151.28 | E87: 145.62 | F87: 142.33 | G87: 136.67 | H87: 154.57 | I87: 160.23 | J87: 163.52 | K87: 156.95 | L87: 148 | M87: 136.84697
A88: 79 | B88: GMRINFRA | C88: 33.55 | D88: 33.92 | E88: 33.03 | F88: 32.52 | G88: 31.63 | H88: 34.43 | I88: 35.32 | J88: 35.83 | K88: 34.8 | L88: 33.4 | M88: 62.44642
A89: 80 | B89: GLAND | C89: 2954.65 | D89: 2984.78 | E89: 2879.87 | F89: 2805.08 | G89: 2700.17 | H89: 3059.57 | I89: 3164.48 | J89: 3239.27 | K89: 3089.7 | L89: 2910 | M89: 2.15051
A90: 81 | B90: GLENMARK | C90: 404.15 | D90: 410.18 | E90: 396.62 | F90: 389.08 | G90: 375.52 | H90: 417.72 | I90: 431.28 | J90: 438.82 | K90: 423.75 | L90: 402.65 | M90: 6.52798
A91: 82 | B91: GODREJCP | C91: 771.3 | D91: 771.65 | E91: 753.90 | F91: 736.50 | G91: 718.75 | H91: 789.05 | I91: 806.80 | J91: 824.20 | K91: 789.4 | L91: 754.25 | M91: 12.78879
A92: 83 | B92: GODREJIND | C92: 468.2 | D92: 471.48 | E92: 461.72 | F92: 455.23 | G92: 445.47 | H92: 477.97 | I92: 487.73 | J92: 494.22 | K92: 481.25 | L92: 465 | M92: 0.75098
A93: 84 | B93: GODREJPROP | C93: 1360.5 | D93: 1376.07 | E93: 1332.53 | F93: 1304.57 | G93: 1261.03 | H93: 1404.03 | I93: 1447.57 | J93: 1475.53 | K93: 1419.6 | L93: 1348.1 | M93: 7.66399
A94: 85 | B94: GRASIM | C94: 1542.1 | D94: 1550.78 | E94: 1525.72 | F94: 1509.33 | G94: 1484.27 | H94: 1567.17 | I94: 1592.23 | J94: 1608.62 | K94: 1575.85 | L94: 1534.4 | M94: 8.53249
A95: 86 | B95: GUJGASLTD | C95: 507.05 | D95: 513.10 | E95: 497.20 | F95: 487.35 | G95: 471.45 | H95: 522.95 | I95: 538.85 | J95: 548.70 | K95: 529 | L95: 503.25 | M95: 13.49691
A96: 87 | B96: GSPL | C96: 253.7 | D96: 256.55 | E96: 249.20 | F96: 244.70 | G96: 237.35 | H96: 261.05 | I96: 268.40 | J96: 272.90 | K96: 263.9 | L96: 252.05 | M96: 4.20976
A97: 88 | B97: HCLTECH | C97: 1072.55 | D97: 1074.72 | E97: 1064.43 | F97: 1056.32 | G97: 1046.03 | H97: 1082.83 | I97: 1093.12 | J97: 1101.23 | K97: 1085 | L97: 1066.6 | M97: 24.73518
A98: 89 | B98: HDFCAMC | C98: 1917.65 | D98: 1929.88 | E98: 1892.77 | F98: 1867.88 | G98: 1830.77 | H98: 1954.77 | I98: 1991.88 | J98: 2016.77 | K98: 1967 | L98: 1905 | M98: 1.71015
A99: 90 | B99: HDFCBANK | C99: 1341.05 | D99: 1336.37 | E99: 1319.73 | F99: 1298.42 | G99: 1281.78 | H99: 1357.68 | I99: 1374.32 | J99: 1395.63 | K99: 1353 | L99: 1315.05 | M99: 100.56906
A100: 91 | B100: HDFCLIFE | C100: 559.2 | D100: 563.37 | E100: 553.83 | F100: 548.47 | G100: 538.93 | H100: 568.73 | I100: 578.27 | J100: 583.63 | K100: 572.9 | L100: 558 | M100: 39.53646
A101: 92 | B101: HAVELLS | C101: 1224.3 | D101: 1218.32 | E101: 1204.98 | F101: 1185.67 | G101: 1172.33 | H101: 1237.63 | I101: 1250.97 | J101: 1270.28 | K101: 1231.65 | L101: 1199 | M101: 10.59607
A102: 93 | B102: HEROMOTOCO | C102: 2469.75 | D102: 2482.57 | E102: 2445.78 | F102: 2421.82 | G102: 2385.03 | H102: 2506.53 | I102: 2543.32 | J102: 2567.28 | K102: 2519.35 | L102: 2458.6 | M102: 6.44415
A103: 94 | B103: HINDALCO | C103: 423 | D103: 428.53 | E103: 414.77 | F103: 406.53 | G103: 392.77 | H103: 436.77 | I103: 450.53 | J103: 458.77 | K103: 442.3 | L103: 420.3 | M103: 96.61841
A104: 95 | B104: HAL | C104: 1550.65 | D104: 1561.22 | E104: 1532.48 | F104: 1514.32 | G104: 1485.58 | H104: 1579.38 | I104: 1608.12 | J104: 1626.28 | K104: 1589.95 | L104: 1543.05 | M104: 4.56654
A105: 96 | B105: HINDCOPPER | C105: 93.6 | D105: 94.87 | E105: 91.93 | F105: 90.27 | G105: 87.33 | H105: 96.53 | I105: 99.47 | J105: 101.13 | K105: 97.8 | L105: 93.2 | M105: 71.14541
A106: 97 | B106: HINDPETRO | C106: 270.5 | D106: 271.07 | E106: 267.58 | F106: 264.67 | G106: 261.18 | H106: 273.98 | I106: 277.47 | J106: 280.38 | K106: 274.55 | L106: 268.15 | M106: 35.69992
A107: 98 | B107: HINDUNILVR | C107: 2180.4 | D107: 2165.77 | E107: 2133.63 | F107: 2086.87 | G107: 2054.73 | H107: 2212.53 | I107: 2244.67 | J107: 2291.43 | K107: 2197.9 | L107: 2119 | M107: 21.62232
A108: 99 | B108: HINDZINC | C108: 300.95 | D108: 303.08 | E108: 297.42 | F108: 293.88 | G108: 288.22 | H108: 306.62 | I108: 312.28 | J108: 315.82 | K108: 308.75 | L108: 299.55 | M108: 5.62023
A109: 100 | B109: HDFC | C109: 2201.3 | D109: 2194.45 | E109: 2167.10 | F109: 2132.90 | G109: 2105.55 | H109: 2228.65 | I109: 2256.00 | J109: 2290.20 | K109: 2221.8 | L109: 2160.25 | M109: 42.05193
A110: 101 | B110: ICICIBANK | C110: 711.3 | D110: 712.10 | E110: 704.20 | F110: 697.10 | G110: 689.20 | H110: 719.20 | I110: 727.10 | J110: 734.20 | K110: 720 | L110: 705 | M110: 127.97419
A111: 102 | B111: ICICIGI | C111: 1267.85 | D111: 1273.73 | E111: 1256.72 | F111: 1245.58 | G111: 1228.57 | H111: 1284.87 | I111: 1301.88 | J111: 1313.02 | K111: 1290.75 | L111: 1262.6 | M111: 2.72485
A112: 103 | B112: ICICIPRULI | C112: 499 | D112: 503.18 | E112: 493.82 | F112: 488.63 | G112: 479.27 | H112: 508.37 | I112: 517.73 | J112: 522.92 | K112: 512.55 | L112: 498 | M112: 10.05028
A113: 104 | B113: ISEC | C113: 485.5 | D113: 490.65 | E113: 476.35 | F113: 467.20 | G113: 452.90 | H113: 499.80 | I113: 514.10 | J113: 523.25 | K113: 504.95 | L113: 481.5 | M113: 6.17231
A114: 105 | B114: IDFCFIRSTB | C114: 37.5 | D114: 37.85 | E114: 36.95 | F114: 36.40 | G114: 35.50 | H114: 38.40 | I114: 39.30 | J114: 39.85 | K114: 38.75 | L114: 37.3 | M114: 212.50096
A115: 106 | B115: ITC | C115: 259.75 | D115: 261.88 | E115: 256.97 | F115: 254.18 | G115: 249.27 | H115: 264.67 | I115: 269.58 | J115: 272.37 | K115: 266.8 | L115: 259.1 | M115: 180.3326
A116: 107 | B116: INDIAMART | C116: 4388.65 | D116: 4411.98 | E116: 4339.97 | F116: 4291.28 | G116: 4219.27 | H116: 4460.67 | I116: 4532.68 | J116: 4581.37 | K116: 4484 | L116: 4363.3 | M116: 0.89589
A117: 108 | B117: INDIANB | C117: 148.7 | D117: 150.03 | E117: 146.07 | F117: 143.43 | G117: 139.47 | H117: 152.67 | I117: 156.63 | J117: 159.27 | K117: 154 | L117: 147.4 | M117: 13.52176
A118: 109 | B118: INDHOTEL | C118: 230.4 | D118: 233.13 | E118: 225.27 | F118: 220.13 | G118: 212.27 | H118: 238.27 | I118: 246.13 | J118: 251.27 | K118: 241 | L118: 228 | M118: 109.66157
A119: 110 | B119: IOC | C119: 122 | D119: 123.18 | E119: 120.07 | F119: 118.13 | G119: 115.02 | H119: 125.12 | I119: 128.23 | J119: 130.17 | K119: 126.3 | L119: 121.25 | M119: 103.75582
A120: 111 | B120: IRCTC | C120: 678.75 | D120: 684.18 | E120: 669.57 | F120: 660.38 | G120: 645.77 | H120: 693.37 | I120: 707.98 | J120: 717.17 | K120: 698.8 | L120: 675 | M120: 14.97882
A121: 112 | B121: IRFC | C121: 21.45 | D121: 21.58 | E121: 21.32 | F121: 21.18 | G121: 20.92 | H121: 21.72 | I121: 21.98 | J121: 22.12 | K121: 21.85 | L121: 21.45 | M121: 66.27695
A122: 113 | B122: IGL | C122: 347.25 | D122: 351.27 | E122: 341.53 | F122: 335.82 | G122: 326.08 | H122: 356.98 | I122: 366.72 | J122: 372.43 | K122: 361 | L122: 345.55 | M122: 18.32039
A123: 114 | B123: INDUSTOWER | C123: 208 | D123: 207.03 | E123: 204.97 | F123: 201.93 | G123: 199.87 | H123: 210.07 | I123: 212.13 | J123: 215.17 | K123: 209.1 | L123: 204 | M123: 57.89382
A124: 115 | B124: INDUSINDBK | C124: 910.75 | D124: 906.25 | E124: 892.50 | F124: 874.25 | G124: 860.50 | H124: 924.50 | I124: 938.25 | J124: 956.50 | K124: 920 | L124: 888 | M124: 39.7256
A125: 116 | B125: NAUKRI | C125: 3704.05 | D125: 3759.03 | E125: 3630.02 | F125: 3555.98 | G125: 3426.97 | H125: 3833.07 | I125: 3962.08 | J125: 4036.12 | K125: 3888.05 | L125: 3685 | M125: 5.47949
A126: 117 | B126: INFY | C126: 1553 | D126: 1556.07 | E126: 1542.98 | F126: 1532.97 | G126: 1519.88 | H126: 1566.08 | I126: 1579.17 | J126: 1589.18 | K126: 1569.15 | L126: 1546.05 | M126: 62.12545
A127: 118 | B127: INDIGO | C127: 1693.4 | D127: 1714.20 | E127: 1666.40 | F127: 1639.40 | G127: 1591.60 | H127: 1741.20 | I127: 1789.00 | J127: 1816.00 | K127: 1762 | L127: 1687.2 | M127: 3.24348
A128: 119 | B128: IPCALAB | C128: 974.95 | D128: 982.87 | E128: 961.23 | F128: 947.52 | G128: 925.88 | H128: 996.58 | I128: 1018.22 | J128: 1031.93 | K128: 1004.5 | L128: 969.15 | M128: 1.77671
A129: 120 | B129: JSWENERGY | C129: 279.25 | D129: 284.58 | E129: 267.67 | F129: 256.08 | G129: 239.17 | H129: 296.17 | I129: 313.08 | J129: 324.67 | K129: 301.5 | L129: 273 | M129: 6.07153
A130: 121 | B130: JSWSTEEL | C130: 645.3 | D130: 655.13 | E130: 633.27 | F130: 621.23 | G130: 599.37 | H130: 667.17 | I130: 689.03 | J130: 701.07 | K130: 677 | L130: 643.1 | M130: 42.93241
A131: 122 | B131: JINDALSTEL | C131: 464.3 | D131: 474.10 | E131: 450.70 | F131: 437.10 | G131: 413.70 | H131: 487.70 | I131: 511.10 | J131: 524.70 | K131: 497.5 | L131: 460.5 | M131: 65.80359
A132: 123 | B132: JUBLFOOD | C132: 479.85 | D132: 483.28 | E132: 471.57 | F132: 463.28 | G132: 451.57 | H132: 491.57 | I132: 503.28 | J132: 511.57 | K132: 495 | L132: 475 | M132: 42.06212
A133: 124 | B133: KOTAKBANK | C133: 1797.15 | D133: 1791.15 | E133: 1773.50 | F133: 1749.85 | G133: 1732.20 | H133: 1814.80 | I133: 1832.45 | J133: 1856.10 | K133: 1808.8 | L133: 1767.5 | M133: 19.89854
A134: 125 | B134: L&TFH | C134: 80 | D134: 80.40 | E134: 78.90 | F134: 77.80 | G134: 76.30 | H134: 81.50 | I134: 83.00 | J134: 84.10 | K134: 81.9 | L134: 79.3 | M134: 87.04144
A135: 126 | B135: LTTS | C135: 3888.8 | D135: 3902.27 | E135: 3847.53 | F135: 3806.27 | G135: 3751.53 | H135: 3943.53 | I135: 3998.27 | J135: 4039.53 | K135: 3957 | L135: 3861 | M135: 2.45282
A136: 127 | B136: LICHSGFIN | C136: 347.1 | D136: 348.25 | E136: 342.95 | F136: 338.80 | G136: 333.50 | H136: 352.40 | I136: 357.70 | J136: 361.85 | K136: 353.55 | L136: 344.1 | M136: 31.34858
A137: 128 | B137: LTI | C137: 4332.15 | D137: 4380.55 | E137: 4269.60 | F137: 4207.05 | G137: 4096.10 | H137: 4443.10 | I137: 4554.05 | J137: 4616.60 | K137: 4491.5 | L137: 4318 | M137: 5.902
A138: 129 | B138: LT | C138: 1607.95 | D138: 1612.85 | E138: 1596.10 | F138: 1584.25 | G138: 1567.50 | H138: 1624.70 | I138: 1641.45 | J138: 1653.30 | K138: 1629.6 | L138: 1601 | M138: 11.7603
A139: 130 | B139: LAURUSLABS | C139: 526.4 | D139: 534.15 | E139: 515.40 | F139: 504.40 | G139: 485.65 | H139: 545.15 | I139: 563.90 | J139: 574.90 | K139: 552.9 | L139: 523.15 | M139: 13.74894
A140: 131 | B140: LUPIN | C140: 714.45 | D140: 723.23 | E140: 703.02 | F140: 691.58 | G140: 671.37 | H140: 734.67 | I140: 754.88 | J140: 766.32 | K140: 743.45 | L140: 711.8 | M140: 7.59189
A141: 132 | B141: MRF | C141: 68810.05 | D141: 68983.32 | E141: 67026.73 | F141: 65243.42 | G141: 63286.83 | H141: 70766.63 | I141: 72723.22 | J141: 74506.53 | K141: 70939.9 | L141: 67200 | M141: 0.28293
A142: 133 | B142: MGL | C142: 747.2 | D142: 755.42 | E142: 734.78 | F142: 722.37 | G142: 701.73 | H142: 767.83 | I142: 788.47 | J142: 800.88 | K142: 776.05 | L142: 743 | M142: 3.78683
A143: 134 | B143: M&MFIN | C143: 171.35 | D143: 173.33 | E143: 168.52 | F143: 165.68 | G143: 160.87 | H143: 176.17 | I143: 180.98 | J143: 183.82 | K143: 178.15 | L143: 170.5 | M143: 37.32146
A144: 135 | B144: M&M | C144: 888.35 | D144: 894.47 | E144: 877.98 | F144: 867.62 | G144: 851.13 | H144: 904.83 | I144: 921.32 | J144: 931.68 | K144: 910.95 | L144: 884.1 | M144: 24.36623
A145: 136 | B145: MANAPPURAM | C145: 107.4 | D145: 108.78 | E145: 105.37 | F145: 103.33 | G145: 99.92 | H145: 110.82 | I145: 114.23 | J145: 116.27 | K145: 112.2 | L145: 106.75 | M145: 41.19695
A146: 137 | B146: MARICO | C146: 502.05 | D146: 498.78 | E146: 492.72 | F146: 483.38 | G146: 477.32 | H146: 508.12 | I146: 514.18 | J146: 523.52 | K146: 504.85 | L146: 489.45 | M146: 15.31282
A147: 138 | B147: MARUTI | C147: 7515.9 | D147: 7480.35 | E147: 7385.70 | F147: 7255.50 | G147: 7160.85 | H147: 7610.55 | I147: 7705.20 | J147: 7835.40 | K147: 7575 | L147: 7350.15 | M147: 6.63616
A148: 139 | B148: MFSL | C148: 702 | D148: 706.05 | E148: 693.95 | F148: 685.90 | G148: 673.80 | H148: 714.10 | I148: 726.20 | J148: 734.25 | K148: 718.15 | L148: 698 | M148: 2.45032
A149: 140 | B149: MINDTREE | C149: 3089.4 | D149: 3133.03 | E149: 3031.37 | F149: 2973.33 | G149: 2871.67 | H149: 3191.07 | I149: 3292.73 | J149: 3350.77 | K149: 3234.7 | L149: 3075 | M149: 7.43704
A150: 141 | B150: MPHASIS | C150: 2650.5 | D150: 2646.77 | E150: 2614.53 | F150: 2578.57 | G150: 2546.33 | H150: 2682.73 | I150: 2714.97 | J150: 2750.93 | K150: 2679 | L150: 2610.8 | M150: 3.01338
A151: 142 | B151: MUTHOOTFIN | C151: 1171.65 | D151: 1185.17 | E151: 1151.48 | F151: 1131.32 | G151: 1097.63 | H151: 1205.33 | I151: 1239.02 | J151: 1259.18 | K151: 1218.85 | L151: 1165 | M151: 6.15861
A152: 143 | B152: NATCOPHARM | C152: 699.4 | D152: 708.87 | E152: 681.88 | F152: 664.37 | G152: 637.38 | H152: 726.38 | I152: 753.37 | J152: 770.88 | K152: 735.85 | L152: 691.35 | M152: 2.79262
A153: 144 | B153: NMDC | C153: 140.85 | D153: 143.25 | E153: 137.65 | F153: 134.45 | G153: 128.85 | H153: 146.45 | I153: 152.05 | J153: 155.25 | K153: 148.85 | L153: 140.05 | M153: 79.32757
A154: 145 | B154: NTPC | C154: 155.45 | D154: 157.07 | E154: 152.88 | F154: 150.32 | G154: 146.13 | H154: 159.63 | I154: 163.82 | J154: 166.38 | K154: 161.25 | L154: 154.5 | M154: 203.22427
A155: 146 | B155: NATIONALUM | C155: 89.35 | D155: 91.27 | E155: 87.08 | F155: 84.82 | G155: 80.63 | H155: 93.53 | I155: 97.72 | J155: 99.98 | K155: 95.45 | L155: 89 | M155: 223.10438
A156: 147 | B156: NAVINFLUOR | C156: 3775.75 | D156: 3780.48 | E156: 3696.32 | F156: 3616.88 | G156: 3532.72 | H156: 3859.92 | I156: 3944.08 | J156: 4023.52 | K156: 3864.65 | L156: 3701.05 | M156: 3.21867
A157: 148 | B157: NESTLEIND | C157: 16520.6 | D157: 16533.87 | E157: 16387.73 | F157: 16254.87 | G157: 16108.73 | H157: 16666.73 | I157: 16812.87 | J157: 16945.73 | K157: 16680 | L157: 16401 | M157: 0.67177
A158: 149 | B158: NAM-INDIA | C158: 277.45 | D158: 280.98 | E158: 272.27 | F158: 267.08 | G158: 258.37 | H158: 286.17 | I158: 294.88 | J158: 300.07 | K158: 289.7 | L158: 275.8 | M158: 5.30609
A159: 150 | B159: OBEROIRLTY | C159: 843.75 | D159: 853.58 | E159: 826.57 | F159: 809.38 | G159: 782.37 | H159: 870.77 | I159: 897.78 | J159: 914.97 | K159: 880.6 | L159: 836.4 | M159: 5.76034
A160: 151 | B160: ONGC | C160: 154.45 | D160: 156.33 | E160: 151.02 | F160: 147.58 | G160: 142.27 | H160: 159.77 | I160: 165.08 | J160: 168.52 | K160: 161.65 | L160: 152.9 | M160: 226.02956
A161: 152 | B161: OIL | C161: 215.25 | D161: 221.05 | E161: 208.05 | F161: 200.85 | G161: 187.85 | H161: 228.25 | I161: 241.25 | J161: 248.45 | K161: 234.05 | L161: 213.85 | M161: 20.81217
A162: 153 | B162: PIIND | C162: 2478.95 | D162: 2518.90 | E162: 2423.40 | F162: 2367.85 | G162: 2272.35 | H162: 2574.45 | I162: 2669.95 | J162: 2725.50 | K162: 2614.4 | L162: 2463.35 | M162: 2.76468
A163: 154 | B163: PAGEIND | C163: 40839.15 | D163: 41281.05 | E163: 39962.15 | F163: 39085.15 | G163: 37766.25 | H163: 42158.05 | I163: 43476.95 | J163: 44353.95 | K163: 42599.95 | L163: 40404.05 | M163: 0.46096
A164: 155 | B164: PETRONET | C164: 214 | D164: 215.70 | E164: 210.60 | F164: 207.20 | G164: 202.10 | H164: 219.10 | I164: 224.20 | J164: 227.60 | K164: 220.8 | L164: 212.3 | M164: 38.75332
A165: 156 | B165: PFIZER | C165: 4217.85 | D165: 4263.32 | E165: 4154.68 | F165: 4091.52 | G165: 3982.88 | H165: 4326.48 | I165: 4435.12 | J165: 4498.28 | K165: 4371.95 | L165: 4200.15 | M165: 0.51834
A166: 157 | B166: PIDILITIND | C166: 2203.25 | D166: 2212.93 | E166: 2182.37 | F166: 2161.48 | G166: 2130.92 | H166: 2233.82 | I166: 2264.38 | J166: 2285.27 | K166: 2243.5 | L166: 2192.05 | M166: 2.5875
A167: 158 | B167: PEL | C167: 1913.85 | D167: 1934.62 | E167: 1884.23 | F167: 1854.62 | G167: 1804.23 | H167: 1964.23 | I167: 2014.62 | J167: 2044.23 | K167: 1985 | L167: 1905 | M167: 4.80944
A168: 159 | B168: POLYCAB | C168: 2393.55 | D168: 2420.88 | E168: 2337.67 | F168: 2281.78 | G168: 2198.57 | H168: 2476.77 | I168: 2559.98 | J168: 2615.87 | K168: 2504.1 | L168: 2365 | M168: 8.16343
A169: 160 | B169: PFC | C169: 110.4 | D169: 111.28 | E169: 109.17 | F169: 107.93 | G169: 105.82 | H169: 112.52 | I169: 114.63 | J169: 115.87 | K169: 113.4 | L169: 110.05 | M169: 27.39804
A170: 161 | B170: POWERGRID | C170: 243.65 | D170: 244.83 | E170: 241.32 | F170: 238.98 | G170: 235.47 | H170: 247.17 | I170: 250.68 | J170: 253.02 | K170: 248.35 | L170: 242.5 | M170: 232.48121
A171: 162 | B171: PRESTIGE | C171: 441.3 | D171: 442.78 | E171: 434.52 | F171: 427.73 | G171: 419.47 | H171: 449.57 | I171: 457.83 | J171: 464.62 | K171: 451.05 | L171: 436 | M171: 3.56483
A172: 163 | B172: PGHH | C172: 13608.25 | D172: 13604.75 | E172: 13449.50 | F172: 13290.75 | G172: 13135.50 | H172: 13763.50 | I172: 13918.75 | J172: 14077.50 | K172: 13760 | L172: 13446 | M172: 0.04919
A173: 164 | B173: PNB | C173: 33.3 | D173: 33.42 | E173: 32.93 | F173: 32.57 | G173: 32.08 | H173: 33.78 | I173: 34.27 | J173: 34.63 | K173: 33.9 | L173: 33.05 | M173: 292.95243
A174: 165 | B174: RBLBANK | C174: 113 | D174: 113.17 | E174: 110.53 | F174: 108.07 | G174: 105.43 | H174: 115.63 | I174: 118.27 | J174: 120.73 | K174: 115.8 | L174: 110.7 | M174: 158.42347
A175: 166 | B175: RECLTD | C175: 120.35 | D175: 121.53 | E175: 118.97 | F175: 117.58 | G175: 115.02 | H175: 122.92 | I175: 125.48 | J175: 126.87 | K175: 124.1 | L175: 120.15 | M175: 22.70185
A176: 167 | B176: RELIANCE | C176: 2474.65 | D176: 2486.42 | E176: 2446.23 | F176: 2417.82 | G176: 2377.63 | H176: 2514.83 | I176: 2555.02 | J176: 2583.43 | K176: 2526.6 | L176: 2458 | M176: 90.04636
A177: 168 | B177: SBICARD | C177: 768.25 | D177: 765.63 | E177: 756.27 | F177: 744.28 | G177: 734.92 | H177: 777.62 | I177: 786.98 | J177: 798.97 | K177: 775 | L177: 753.65 | M177: 12.97042
A178: 169 | B178: SBILIFE | C178: 1081.05 | D178: 1079.95 | E178: 1063.10 | F178: 1045.15 | G178: 1028.30 | H178: 1097.90 | I178: 1114.75 | J178: 1132.70 | K178: 1096.8 | L178: 1062 | M178: 14.10429
A179: 170 | B179: SRF | C179: 2113.15 | D179: 2169.40 | E179: 2043.75 | F179: 1974.35 | G179: 1848.70 | H179: 2238.80 | I179: 2364.45 | J179: 2433.85 | K179: 2295.05 | L179: 2100 | M179: 24.12934
A180: 171 | B180: SANOFI | C180: 6692.55 | D180: 6684.52 | E180: 6649.03 | F180: 6605.52 | G180: 6570.03 | H180: 6728.03 | I180: 6763.52 | J180: 6807.03 | K180: 6720 | L180: 6641 | M180: 0.11659
A181: 172 | B181: SHREECEM | C181: 24300.6 | D181: 24238.88 | E181: 23960.87 | F181: 23621.13 | G181: 23343.12 | H181: 24578.62 | I181: 24856.63 | J181: 25196.37 | K181: 24516.9 | L181: 23899.15 | M181: 0.33489
A182: 173 | B182: SRTRANSFIN | C182: 1160.35 | D182: 1161.10 | E182: 1144.25 | F182: 1128.15 | G182: 1111.30 | H182: 1177.20 | I182: 1194.05 | J182: 1210.15 | K182: 1177.95 | L182: 1145 | M182: 9.02676
A183: 174 | B183: SIEMENS | C183: 2250.35 | D183: 2252.18 | E183: 2196.12 | F183: 2141.88 | G183: 2085.82 | H183: 2306.42 | I183: 2362.48 | J183: 2416.72 | K183: 2308.25 | L183: 2197.95 | M183: 7.27855
A184: 175 | B184: SBIN | C184: 475.2 | D184: 477.08 | E184: 471.62 | F184: 468.03 | G184: 462.57 | H184: 480.67 | I184: 486.13 | J184: 489.72 | K184: 482.55 | L184: 473.5 | M184: 108.84328
A185: 176 | B185: SAIL | C185: 84.1 | D185: 85.37 | E185: 82.28 | F185: 80.47 | G185: 77.38 | H185: 87.18 | I185: 90.27 | J185: 92.08 | K185: 88.45 | L185: 83.55 | M185: 321.90085
A186: 177 | B186: SUNPHARMA | C186: 861.85 | D186: 866.40 | E186: 841.95 | F186: 822.05 | G186: 797.60 | H186: 886.30 | I186: 910.75 | J186: 930.65 | K186: 890.85 | L186: 846.5 | M186: 69.75331
A187: 178 | B187: SUNTV | C187: 436.55 | D187: 440.42 | E187: 431.13 | F187: 425.72 | G187: 416.43 | H187: 445.83 | I187: 455.12 | J187: 460.53 | K187: 449.7 | L187: 435 | M187: 3.55003
A188: 179 | B188: SYNGENE | C188: 567.5 | D188: 564.53 | E188: 557.97 | F188: 548.43 | G188: 541.87 | H188: 574.07 | I188: 580.63 | J188: 590.17 | K188: 571.1 | L188: 555 | M188: 3.19585
A189: 180 | B189: TVSMOTOR | C189: 616.2 | D189: 618.57 | E189: 609.03 | F189: 601.87 | G189: 592.33 | H189: 625.73 | I189: 635.27 | J189: 642.43 | K189: 628.1 | L189: 611.4 | M189: 12.04286
A190: 181 | B190: TATACHEM | C190: 967.35 | D190: 981.90 | E190: 943.85 | F190: 920.35 | G190: 882.30 | H190: 1005.40 | I190: 1043.45 | J190: 1066.95 | K190: 1019.95 | L190: 958.4 | M190: 14.9683
A191: 182 | B191: TATACOMM | C191: 1001.9 | D191: 1012.15 | E191: 981.35 | F191: 960.80 | G191: 930.00 | H191: 1032.70 | I191: 1063.50 | J191: 1084.05 | K191: 1042.95 | L191: 991.6 | M191: 4.87168
A192: 183 | B192: TCS | C192: 3438.75 | D192: 3441.85 | E192: 3418.90 | F192: 3399.05 | G192: 3376.10 | H192: 3461.70 | I192: 3484.65 | J192: 3504.50 | K192: 3464.8 | L192: 3422 | M192: 16.22685
A193: 184 | B193: TATACONSUM | C193: 745.8 | D193: 753.77 | E193: 735.08 | F193: 724.37 | G193: 705.68 | H193: 764.48 | I193: 783.17 | J193: 793.88 | K193: 772.45 | L193: 743.05 | M193: 13.26184
A194: 185 | B194: TATAELXSI | C194: 6815.7 | D194: 6963.90 | E194: 6622.80 | F194: 6429.90 | G194: 6088.80 | H194: 7156.80 | I194: 7497.90 | J194: 7690.80 | K194: 7305 | L194: 6771 | M194: 6.02605
A195: 186 | B195: TATAMOTORS | C195: 391.75 | D195: 396.62 | E195: 384.73 | F195: 377.72 | G195: 365.83 | H195: 403.63 | I195: 415.52 | J195: 422.53 | K195: 408.5 | L195: 389.6 | M195: 165.40303
A196: 187 | B196: TATAPOWER | C196: 222.15 | D196: 225.77 | E196: 217.03 | F196: 211.92 | G196: 203.18 | H196: 230.88 | I196: 239.62 | J196: 244.73 | K196: 234.5 | L196: 220.65 | M196: 302.74946
A197: 188 | B197: TATASTEEL | C197: 1164.9 | D197: 1192.70 | E197: 1130.75 | F197: 1096.60 | G197: 1034.65 | H197: 1226.85 | I197: 1288.80 | J197: 1322.95 | K197: 1254.65 | L197: 1158.55 | M197: 145.53742
A198: 189 | B198: TECHM | C198: 1242.3 | D198: 1249.58 | E198: 1227.72 | F198: 1213.13 | G198: 1191.27 | H198: 1264.17 | I198: 1286.03 | J198: 1300.62 | K198: 1271.45 | L198: 1235 | M198: 28.52416
A199: 190 | B199: RAMCOCEM | C199: 721.8 | D199: 718.45 | E199: 704.45 | F199: 687.10 | G199: 673.10 | H199: 735.80 | I199: 749.80 | J199: 767.15 | K199: 732.45 | L199: 701.1 | M199: 5.11873
A200: 191 | B200: TITAN | C200: 2137.35 | D200: 2149.45 | E200: 2112.90 | F200: 2088.45 | G200: 2051.90 | H200: 2173.90 | I200: 2210.45 | J200: 2234.90 | K200: 2186 | L200: 2125 | M200: 10.92429
A201: 192 | B201: TORNTPHARM | C201: 2579.15 | D201: 2590.20 | E201: 2550.60 | F201: 2522.05 | G201: 2482.45 | H201: 2618.75 | I201: 2658.35 | J201: 2686.90 | K201: 2629.8 | L201: 2561.65 | M201: 0.65506
A202: 193 | B202: TORNTPOWER | C202: 468.6 | D202: 476.62 | E202: 456.43 | F202: 444.27 | G202: 424.08 | H202: 488.78 | I202: 508.97 | J202: 521.13 | K202: 496.8 | L202: 464.45 | M202: 11.53281
A203: 194 | B203: TRENT | C203: 1060.15 | D203: 1075.75 | E203: 1039.40 | F203: 1018.65 | G203: 982.30 | H203: 1096.50 | I203: 1132.85 | J203: 1153.60 | K203: 1112.1 | L203: 1055 | M203: 6.63951
A204: 195 | B204: UPL | C204: 789.8 | D204: 789.67 | E204: 778.68 | F204: 767.57 | G204: 756.58 | H204: 800.78 | I204: 811.77 | J204: 822.88 | K204: 800.65 | L204: 778.55 | M204: 40.27939
A205: 196 | B205: ULTRACEMCO | C205: 6366.45 | D205: 6330.15 | E205: 6236.85 | F205: 6107.25 | G205: 6013.95 | H205: 6459.75 | I205: 6553.05 | J205: 6682.65 | K205: 6423.45 | L205: 6200.55 | M205: 3.59456
... 29 more rows

Sheet MidCap Intra
L5: Back To Main Page
A6: FOR INTRA DAY TRADING | K6: =Main!B10 -> 2022-05-11
A9: Sr.no | B9: Scrip | C9: CLOSE RATE | D9: Pivot Point | E9: Supports | H9: Resistances
E10: S1 | F10: S2 | G10: S3 | H10: R1 | I10: R2 | J10: R3 | K10: HIGH | L10: LOW | M10: Total Trade Quanity in Lakhs
A11: 1 | B11: 3MINDIA | C11: 18106.35 | D11: 18383.77 | E11: 17822.53 | F11: 17538.72 | G11: 16977.48 | H11: 18667.58 | I11: 19228.82 | J11: 19512.63 | K11: 18945 | L11: 18099.95 | M11: 0.05618
A12: 2 | B12: AARTIDRUGS | C12: 426.35 | D12: 431.28 | E12: 420.07 | F12: 413.78 | G12: 402.57 | H12: 437.57 | I12: 448.78 | J12: 455.07 | K12: 442.5 | L12: 425 | M12: 1.28428
A13: 3 | B13: AARTIIND | C13: 769 | D13: 775.63 | E13: 759.57 | F13: 750.13 | G13: 734.07 | H13: 785.07 | I13: 801.13 | J13: 810.57 | K13: 791.7 | L13: 766.2 | M13: 6.3551
A14: 4 | B14: AAVAS | C14: 2306.9 | D14: 2280.47 | E14: 2180.93 | F14: 2054.97 | G14: 1955.43 | H14: 2406.43 | I14: 2505.97 | J14: 2631.93 | K14: 2380 | L14: 2154.5 | M14: 1.4233
A15: 5 | B15: ABB | C15: 2230.55 | D15: 2204.65 | E15: 2103.30 | F15: 1976.05 | G15: 1874.70 | H15: 2331.90 | I15: 2433.25 | J15: 2560.50 | K15: 2306 | L15: 2077.4 | M15: 4.95998
A16: 6 | B16: ABBOTINDIA | C16: 16656.05 | D16: 16701.85 | E16: 16405.70 | F16: 16155.35 | G16: 15859.20 | H16: 16952.20 | I16: 17248.35 | J16: 17498.70 | K16: 16998 | L16: 16451.5 | M16: 0.08385
A17: 7 | B17: ABCAPITAL | C17: 104.15 | D17: 105.03 | E17: 102.22 | F17: 100.28 | G17: 97.47 | H17: 106.97 | I17: 109.78 | J17: 111.72 | K17: 107.85 | L17: 103.1 | M17: 28.32463
A18: 8 | B18: ABFRL | C18: 257.75 | D18: 260.28 | E18: 252.47 | F18: 247.18 | G18: 239.37 | H18: 265.57 | I18: 273.38 | J18: 278.67 | K18: 268.1 | L18: 255 | M18: 12.74445
A19: 9 | B19: ACC | C19: 2198.55 | D19: 2210.98 | E19: 2172.57 | F19: 2146.58 | G19: 2108.17 | H19: 2236.97 | I19: 2275.38 | J19: 2301.37 | K19: 2249.4 | L19: 2185 | M19: 3.65873
A20: 10 | B20: ADANIENT | C20: 2109.5 | D20: 2142.33 | E20: 2064.67 | F20: 2019.83 | G20: 1942.17 | H20: 2187.17 | I20: 2264.83 | J20: 2309.67 | K20: 2220 | L20: 2097.5 | M20: 14.71866
A21: 11 | B21: ADANIGREEN | C21: 2486.7 | D21: 2562.38 | E21: 2385.37 | F21: 2284.03 | G21: 2107.02 | H21: 2663.72 | I21: 2840.73 | J21: 2942.07 | K21: 2739.4 | L21: 2461.05 | M21: 8.18487
A22: 12 | B22: ADANIPORTS | C22: 769.1 | D22: 779.37 | E22: 754.78 | F22: 740.47 | G22: 715.88 | H22: 793.68 | I22: 818.27 | J22: 832.58 | K22: 803.95 | L22: 765.05 | M22: 53.44522
A23: 13 | B23: ADANITRANS | C23: 2482.55 | D23: 2571.82 | E23: 2354.73 | F23: 2226.92 | G23: 2009.83 | H23: 2699.63 | I23: 2916.72 | J23: 3044.53 | K23: 2788.9 | L23: 2444 | M23: 5.38084
A24: 14 | B24: ADVENZYMES | C24: 277.4 | D24: 280.38 | E24: 272.02 | F24: 266.63 | G24: 258.27 | H24: 285.77 | I24: 294.13 | J24: 299.52 | K24: 288.75 | L24: 275 | M24: 0.80801
A25: 15 | B25: AEGISCHEM | C25: 204.45 | D25: 206.58 | E25: 199.42 | F25: 194.38 | G25: 187.22 | H25: 211.62 | I25: 218.78 | J25: 223.82 | K25: 213.75 | L25: 201.55 | M25: 3.82735
A26: 16 | B26: AFFLE | C26: 1079 | D26: 1088.33 | E26: 1045.57 | F26: 1012.13 | G26: 969.37 | H26: 1121.77 | I26: 1164.53 | J26: 1197.97 | K26: 1131.1 | L26: 1054.9 | M26: 1.83468
A27: 17 | B27: AIAENG | C27: 1857.25 | D27: 1857.42 | E27: 1819.83 | F27: 1782.42 | G27: 1744.83 | H27: 1894.83 | I27: 1932.42 | J27: 1969.83 | K27: 1895 | L27: 1820 | M27: 0.39756
A28: 18 | B28: AJANTPHARM | C28: 1658.1 | D28: 1686.47 | E28: 1609.03 | F28: 1559.97 | G28: 1482.53 | H28: 1735.53 | I28: 1812.97 | J28: 1862.03 | K28: 1763.9 | L28: 1637.4 | M28: 2.35592
A29: 19 | B29: ALEMBICLTD | C29: 70.6 | D29: 70.78 | E29: 68.67 | F29: 66.73 | G29: 64.62 | H29: 72.72 | I29: 74.83 | J29: 76.77 | K29: 72.9 | L29: 68.85 | M29: 0.86429
A30: 20 | B30: ALKEM | C30: 2971.55 | D30: 3010.97 | E30: 2910.58 | F30: 2849.62 | G30: 2749.23 | H30: 3071.93 | I30: 3172.32 | J30: 3233.28 | K30: 3111.35 | L30: 2950 | M30: 2.7224
A31: 21 | B31: ALKYLAMINE | C31: 2914.8 | D31: 2912.48 | E31: 2882.32 | F31: 2849.83 | G31: 2819.67 | H31: 2944.97 | I31: 2975.13 | J31: 3007.62 | K31: 2942.65 | L31: 2880 | M31: 0.47207
A32: 22 | B32: ALOKINDS | C32: 22.75 | D32: 23.18 | E32: 22.07 | F32: 21.38 | G32: 20.27 | H32: 23.87 | I32: 24.98 | J32: 25.67 | K32: 24.3 | L32: 22.5 | M32: 138.86871
A33: 23 | B33: AMARAJABAT | C33: 513.45 | D33: 518.05 | E33: 507.40 | F33: 501.35 | G33: 490.70 | H33: 524.10 | I33: 534.75 | J33: 540.80 | K33: 528.7 | L33: 512 | M33: 5.63692
A34: 24 | B34: AMBER | C34: 3470.45 | D34: 3526.72 | E34: 3369.13 | F34: 3267.82 | G34: 3110.23 | H34: 3628.03 | I34: 3785.62 | J34: 3886.93 | K34: 3684.3 | L34: 3425.4 | M34: 0.64659
A35: 25 | B35: AMBUJACEM | C35: 358.2 | D35: 362.37 | E35: 350.83 | F35: 343.47 | G35: 331.93 | H35: 369.73 | I35: 381.27 | J35: 388.63 | K35: 373.9 | L35: 355 | M35: 63.22735
A36: 26 | B36: ANGELONE | C36: 1412.65 | D36: 1429.98 | E36: 1377.97 | F36: 1343.28 | G36: 1291.27 | H36: 1464.67 | I36: 1516.68 | J36: 1551.37 | K36: 1482 | L36: 1395.3 | M36: 9.86438
A37: 27 | B37: ANURAS | C37: 815.7 | D37: 818.02 | E37: 812.28 | F37: 808.87 | G37: 803.13 | H37: 821.43 | I37: 827.17 | J37: 830.58 | K37: 823.75 | L37: 814.6 | M37: 0.45222
A38: 28 | B38: APLAPOLLO | C38: 883.25 | D38: 889.45 | E38: 864.90 | F38: 846.55 | G38: 822.00 | H38: 907.80 | I38: 932.35 | J38: 950.70 | K38: 914 | L38: 871.1 | M38: 2.68739
A39: 29 | B39: APLLTD | C39: 719.25 | D39: 722.92 | E39: 711.83 | F39: 704.42 | G39: 693.33 | H39: 730.33 | I39: 741.42 | J39: 748.83 | K39: 734 | L39: 715.5 | M39: 2.08656
A40: 30 | B40: APOLLOHOSP | C40: 3686.9 | D40: 3710.47 | E40: 3638.23 | F40: 3589.57 | G40: 3517.33 | H40: 3759.13 | I40: 3831.37 | J40: 3880.03 | K40: 3782.7 | L40: 3661.8 | M40: 8.36241
A41: 31 | B41: APOLLOTYRE | C41: 198.75 | D41: 198.50 | E41: 193.40 | F41: 188.05 | G41: 182.95 | H41: 203.85 | I41: 208.95 | J41: 214.30 | K41: 203.6 | L41: 193.15 | M41: 78.41294
A42: 32 | B42: ASAHIINDIA | C42: 414.55 | D42: 421.50 | E42: 403.10 | F42: 391.65 | G42: 373.25 | H42: 432.95 | I42: 451.35 | J42: 462.80 | K42: 439.9 | L42: 410.05 | M42: 0.8132
A43: 33 | B43: ASHOKA | C43: 76.25 | D43: 77.22 | E43: 75.03 | F43: 73.82 | G43: 71.63 | H43: 78.43 | I43: 80.62 | J43: 81.83 | K43: 79.4 | L43: 76 | M43: 5.83453
A44: 34 | B44: ASHOKLEY | C44: 118.7 | D44: 119.17 | E44: 116.73 | F44: 114.77 | G44: 112.33 | H44: 121.13 | I44: 123.57 | J44: 125.53 | K44: 121.6 | L44: 117.2 | M44: 152.08745
A45: 35 | B45: ASIANPAINT | C45: 3086.35 | D45: 3087.03 | E45: 3035.32 | F45: 2984.28 | G45: 2932.57 | H45: 3138.07 | I45: 3189.78 | J45: 3240.82 | K45: 3138.75 | L45: 3036 | M45: 24.60016
A46: 36 | B46: ASTERDM | C46: 172.5 | D46: 175.18 | E46: 167.87 | F46: 163.23 | G46: 155.92 | H46: 179.82 | I46: 187.13 | J46: 191.77 | K46: 182.5 | L46: 170.55 | M46: 3.33118
A47: 37 | B47: ASTRAL | C47: 1849.8 | D47: 1857.45 | E47: 1830.90 | F47: 1812.00 | G47: 1785.45 | H47: 1876.35 | I47: 1902.90 | J47: 1921.80 | K47: 1884 | L47: 1838.55 | M47: 3.82098
A48: 38 | B48: ASTRAZEN | C48: 2656.3 | D48: 2671.13 | E48: 2602.27 | F48: 2548.23 | G48: 2479.37 | H48: 2725.17 | I48: 2794.03 | J48: 2848.07 | K48: 2740 | L48: 2617.1 | M48: 0.0912
A49: 39 | B49: ATGL | C49: 2360.65 | D49: 2366.55 | E49: 2295.10 | F49: 2229.55 | G49: 2158.10 | H49: 2432.10 | I49: 2503.55 | J49: 2569.10 | K49: 2438 | L49: 2301 | M49: 4.69693
A50: 40 | B50: ATUL | C50: 8286.85 | D50: 8340.28 | E50: 8156.57 | F50: 8026.28 | G50: 7842.57 | H50: 8470.57 | I50: 8654.28 | J50: 8784.57 | K50: 8524 | L50: 8210 | M50: 0.51554
A51: 41 | B51: AUBANK | C51: 1262.7 | D51: 1273.23 | E51: 1249.47 | F51: 1236.23 | G51: 1212.47 | H51: 1286.47 | I51: 1310.23 | J51: 1323.47 | K51: 1297 | L51: 1260 | M51: 10.67357
A52: 42 | B52: AUROPHARMA | C52: 603.1 | D52: 608.17 | E52: 594.93 | F52: 586.77 | G52: 573.53 | H52: 616.33 | I52: 629.57 | J52: 637.73 | K52: 621.4 | L52: 600 | M52: 9.90362
A53: 43 | B53: AVANTIFEED | C53: 413.65 | D53: 416.85 | E53: 409.20 | F53: 404.75 | G53: 397.10 | H53: 421.30 | I53: 428.95 | J53: 433.40 | K53: 424.5 | L53: 412.4 | M53: 0.85582
A54: 44 | B54: AXISBANK | C54: 659.75 | D54: 663.13 | E54: 654.17 | F54: 648.58 | G54: 639.62 | H54: 668.72 | I54: 677.68 | J54: 683.27 | K54: 672.1 | L54: 657.55 | M54: 95.23698
A55: 45 | B55: BAJAJ-AUTO | C55: 3593.05 | D55: 3593.25 | E55: 3539.80 | F55: 3486.55 | G55: 3433.10 | H55: 3646.50 | I55: 3699.95 | J55: 3753.20 | K55: 3646.7 | L55: 3540 | M55: 5.07087
A56: 46 | B56: BAJAJCON | C56: 152 | D56: 152.48 | E56: 150.07 | F56: 148.13 | G56: 145.72 | H56: 154.42 | I56: 156.83 | J56: 158.77 | K56: 154.9 | L56: 150.55 | M56: 4.92507
A57: 47 | B57: BAJAJELEC | C57: 977.25 | D57: 992.10 | E57: 956.60 | F57: 935.95 | G57: 900.45 | H57: 1012.75 | I57: 1048.25 | J57: 1068.90 | K57: 1027.6 | L57: 971.45 | M57: 0.64681
A58: 48 | B58: BAJAJFINSV | C58: 13630.1 | D58: 13723.77 | E58: 13468.33 | F58: 13306.57 | G58: 13051.13 | H58: 13885.53 | I58: 14140.97 | J58: 14302.73 | K58: 13979.2 | L58: 13562 | M58: 2.56312
A59: 49 | B59: BAJAJHLDNG | C59: 5003.35 | D59: 5030.73 | E59: 4967.62 | F59: 4931.88 | G59: 4868.77 | H59: 5066.47 | I59: 5129.58 | J59: 5165.32 | K59: 5093.85 | L59: 4995 | M59: 0.2168
A60: 50 | B60: BAJFINANCE | C60: 5928.45 | D60: 5980.50 | E60: 5847.95 | F60: 5767.45 | G60: 5634.90 | H60: 6061.00 | I60: 6193.55 | J60: 6274.05 | K60: 6113.05 | L60: 5900 | M60: 11.77933
A61: 51 | B61: BALAMINES | C61: 2848.2 | D61: 2879.73 | E61: 2789.47 | F61: 2730.73 | G61: 2640.47 | H61: 2938.47 | I61: 3028.73 | J61: 3087.47 | K61: 2970 | L61: 2821 | M61: 0.39803
A62: 52 | B62: BALKRISIND | C62: 1950.6 | D62: 1966.97 | E62: 1923.53 | F62: 1896.47 | G62: 1853.03 | H62: 1994.03 | I62: 2037.47 | J62: 2064.53 | K62: 2010.4 | L62: 1939.9 | M62: 1.71896
A63: 53 | B63: BALRAMCHIN | C63: 397.55 | D63: 404.70 | E63: 388.55 | F63: 379.55 | G63: 363.40 | H63: 413.70 | I63: 429.85 | J63: 438.85 | K63: 420.85 | L63: 395.7 | M63: 33.56392
A64: 54 | B64: BANDHANBNK | C64: 313.8 | D64: 314.47 | E64: 310.08 | F64: 306.37 | G64: 301.98 | H64: 318.18 | I64: 322.57 | J64: 326.28 | K64: 318.85 | L64: 310.75 | M64: 63.33144
A65: 55 | B65: BANKBARODA | C65: 101 | D65: 102.10 | E65: 99.10 | F65: 97.20 | G65: 94.20 | H65: 104.00 | I65: 107.00 | J65: 108.90 | K65: 105.1 | L65: 100.2 | M65: 160.40305
A66: 56 | B66: BANKINDIA | C66: 45.25 | D66: 45.45 | E66: 44.80 | F66: 44.35 | G66: 43.70 | H66: 45.90 | I66: 46.55 | J66: 47.00 | K66: 46.1 | L66: 45 | M66: 21.60619
A67: 57 | B67: BASF | C67: 2668.5 | D67: 2698.90 | E67: 2528.80 | F67: 2389.10 | G67: 2219.00 | H67: 2838.60 | I67: 3008.70 | J67: 3148.40 | K67: 2869 | L67: 2559.2 | M67: 1.37263
A68: 58 | B68: BATAINDIA | C68: 1759.65 | D68: 1778.32 | E68: 1723.63 | F68: 1687.62 | G68: 1632.93 | H68: 1814.33 | I68: 1869.02 | J68: 1905.03 | K68: 1833 | L68: 1742.3 | M68: 3.46419
A69: 59 | B69: BAYERCROP | C69: 4340.8 | D69: 4398.25 | E69: 4242.55 | F69: 4144.30 | G69: 3988.60 | H69: 4496.50 | I69: 4652.20 | J69: 4750.45 | K69: 4553.95 | L69: 4300 | M69: 0.08892
A70: 60 | B70: BBTC | C70: 963.7 | D70: 971.28 | E70: 934.77 | F70: 905.83 | G70: 869.32 | H70: 1000.22 | I70: 1036.73 | J70: 1065.67 | K70: 1007.8 | L70: 942.35 | M70: 0.89825
A71: 61 | B71: BDL | C71: 638.1 | D71: 651.00 | E71: 619.70 | F71: 601.30 | G71: 570.00 | H71: 669.40 | I71: 700.70 | J71: 719.10 | K71: 682.3 | L71: 632.6 | M71: 7.65249
A72: 62 | B72: BEL | C72: 222.9 | D72: 224.80 | E72: 220.20 | F72: 217.50 | G72: 212.90 | H72: 227.50 | I72: 232.10 | J72: 234.80 | K72: 229.4 | L72: 222.1 | M72: 44.11653
A73: 63 | B73: BEML | C73: 1514.35 | D73: 1531.05 | E73: 1484.85 | F73: 1455.35 | G73: 1409.15 | H73: 1560.55 | I73: 1606.75 | J73: 1636.25 | K73: 1577.25 | L73: 1501.55 | M73: 0.63858
A74: 64 | B74: BERGEPAINT | C74: 676.6 | D74: 677.57 | E74: 666.83 | F74: 657.07 | G74: 646.33 | H74: 687.33 | I74: 698.07 | J74: 707.83 | K74: 688.3 | L74: 667.8 | M74: 11.82755
A75: 65 | B75: BHARATFORG | C75: 631.5 | D75: 636.87 | E75: 624.63 | F75: 617.77 | G75: 605.53 | H75: 643.73 | I75: 655.97 | J75: 662.83 | K75: 649.1 | L75: 630 | M75: 9.6828
A76: 66 | B76: BHARATRAS | C76: 13109.6 | D76: 13293.53 | E76: 12837.07 | F76: 12564.53 | G76: 12108.07 | H76: 13566.07 | I76: 14022.53 | J76: 14295.07 | K76: 13750 | L76: 13021 | M76: 0.02091
A77: 67 | B77: BHARTIARTL | C77: 719.65 | D77: 719.43 | E77: 710.37 | F77: 701.08 | G77: 692.02 | H77: 728.72 | I77: 737.78 | J77: 747.07 | K77: 728.5 | L77: 710.15 | M77: 67.46893
A78: 68 | B78: BHEL | C78: 48.35 | D78: 49.00 | E78: 47.45 | F78: 46.55 | G78: 45.00 | H78: 49.90 | I78: 51.45 | J78: 52.35 | K78: 50.55 | L78: 48.1 | M78: 230.48696
A79: 69 | B79: BIOCON | C79: 330.8 | D79: 334.10 | E79: 324.80 | F79: 318.80 | G79: 309.50 | H79: 340.10 | I79: 349.40 | J79: 355.40 | K79: 343.4 | L79: 328.1 | M79: 12.77055
A80: 70 | B80: BIRLACORPN | C80: 978.05 | D80: 990.58 | E80: 962.47 | F80: 946.88 | G80: 918.77 | H80: 1006.17 | I80: 1034.28 | J80: 1049.87 | K80: 1018.7 | L80: 975 | M80: 0.50486
A81: 71 | B81: BLUEDART | C81: 6785.95 | D81: 6751.27 | E81: 6654.63 | F81: 6523.32 | G81: 6426.68 | H81: 6882.58 | I81: 6979.22 | J81: 7110.53 | K81: 6847.9 | L81: 6619.95 | M81: 0.21654
A82: 72 | B82: BLUESTARCO | C82: 1026.65 | D82: 1036.23 | E82: 1000.52 | F82: 974.38 | G82: 938.67 | H82: 1062.37 | I82: 1098.08 | J82: 1124.22 | K82: 1071.95 | L82: 1010.1 | M82: 1.21361
A83: 73 | B83: BOSCHLTD | C83: 13521.35 | D83: 13637.63 | E83: 13383.72 | F83: 13246.08 | G83: 12992.17 | H83: 13775.27 | I83: 14029.18 | J83: 14166.82 | K83: 13891.55 | L83: 13500 | M83: 0.19109
A84: 74 | B84: BPCL | C84: 353.45 | D84: 354.28 | E84: 350.57 | F84: 347.68 | G84: 343.97 | H84: 357.17 | I84: 360.88 | J84: 363.77 | K84: 358 | L84: 351.4 | M84: 29.54952
A85: 75 | B85: BRIGADE | C85: 419.65 | D85: 420.43 | E85: 412.02 | F85: 404.38 | G85: 395.97 | H85: 428.07 | I85: 436.48 | J85: 444.12 | K85: 428.85 | L85: 412.8 | M85: 4.25017
A86: 76 | B86: BRITANNIA | C86: 3246.55 | D86: 3267.38 | E86: 3214.17 | F86: 3181.78 | G86: 3128.57 | H86: 3299.77 | I86: 3352.98 | J86: 3385.37 | K86: 3320.6 | L86: 3235 | M86: 2.85192
A87: 77 | B87: BSE | C87: 753.85 | D87: 769.32 | E87: 734.63 | F87: 715.42 | G87: 680.73 | H87: 788.53 | I87: 823.22 | J87: 842.43 | K87: 804 | L87: 750.1 | M87: 11.2514
A88: 78 | B88: BSOFT | C88: 376.4 | D88: 380.55 | E88: 369.35 | F88: 362.30 | G88: 351.10 | H88: 387.60 | I88: 398.80 | J88: 405.85 | K88: 391.75 | L88: 373.5 | M88: 16.85514
A89: 79 | B89: INTELLECT | C89: 606.4 | D89: 622.47 | E89: 575.23 | F89: 544.07 | G89: 496.83 | H89: 653.63 | I89: 700.87 | J89: 732.03 | K89: 669.7 | L89: 591.3 | M89: 9.60896
A90: 80 | B90: CAMS | C90: 2292.7 | D90: 2322.48 | E90: 2247.22 | F90: 2201.73 | G90: 2126.47 | H90: 2367.97 | I90: 2443.23 | J90: 2488.72 | K90: 2397.75 | L90: 2277 | M90: 1.29907
A91: 81 | B91: CANBK | C91: 199.7 | D91: 201.42 | E91: 197.03 | F91: 194.37 | G91: 189.98 | H91: 204.08 | I91: 208.47 | J91: 211.13 | K91: 205.8 | L91: 198.75 | M91: 112.22894
A92: 82 | B92: CANFINHOME | C92: 504.05 | D92: 507.63 | E92: 491.67 | F92: 479.28 | G92: 463.32 | H92: 520.02 | I92: 535.98 | J92: 548.37 | K92: 523.6 | L92: 495.25 | M92: 19.14202
A93: 83 | B93: CAPLIPOINT | C93: 673.75 | D93: 676.90 | E93: 666.85 | F93: 659.95 | G93: 649.90 | H93: 683.80 | I93: 693.85 | J93: 700.75 | K93: 686.95 | L93: 670 | M93: 0.57195
A94: 84 | B94: CARBORUNIV | C94: 744.4 | D94: 747.47 | E94: 708.93 | F94: 673.47 | G94: 634.93 | H94: 782.93 | I94: 821.47 | J94: 856.93 | K94: 786 | L94: 712 | M94: 1.4409
A95: 85 | B95: CASTROLIND | C95: 103.8 | D95: 104.27 | E95: 102.63 | F95: 101.47 | G95: 99.83 | H95: 105.43 | I95: 107.07 | J95: 108.23 | K95: 105.9 | L95: 103.1 | M95: 12.42446
A96: 86 | B96: CCL | C96: 335.75 | D96: 339.05 | E96: 330.20 | F96: 324.65 | G96: 315.80 | H96: 344.60 | I96: 353.45 | J96: 359.00 | K96: 347.9 | L96: 333.5 | M96: 3.51175
A97: 87 | B97: CDSL | C97: 1148.75 | D97: 1156.42 | E97: 1132.83 | F97: 1116.92 | G97: 1093.33 | H97: 1172.33 | I97: 1195.92 | J97: 1211.83 | K97: 1180 | L97: 1140.5 | M97: 9.95263
A98: 88 | B98: CEATLTD | C98: 1101.5 | D98: 1100.25 | E98: 1081.65 | F98: 1061.80 | G98: 1043.20 | H98: 1120.10 | I98: 1138.70 | J98: 1158.55 | K98: 1118.85 | L98: 1080.4 | M98: 0.74795
A99: 89 | B99: CENTRALBK | C99: 17.7 | D99: 17.82 | E99: 17.38 | F99: 17.07 | G99: 16.63 | H99: 18.13 | I99: 18.57 | J99: 18.88 | K99: 18.25 | L99: 17.5 | M99: 21.10952
A100: 90 | B100: CENTURYPLY | C100: 515.3 | D100: 530.30 | E100: 492.10 | F100: 468.90 | G100: 430.70 | H100: 553.50 | I100: 591.70 | J100: 614.90 | K100: 568.5 | L100: 507.1 | M100: 3.75401
A101: 91 | B101: CENTURYTEX | C101: 725.95 | D101: 733.28 | E101: 712.67 | F101: 699.38 | G101: 678.77 | H101: 746.57 | I101: 767.18 | J101: 780.47 | K101: 753.9 | L101: 720 | M101: 1.22362
A102: 92 | B102: CERA | C102: 3839.15 | D102: 3801.38 | E102: 3552.77 | F102: 3266.38 | G102: 3017.77 | H102: 4087.77 | I102: 4336.38 | J102: 4622.77 | K102: 4050 | L102: 3515 | M102: 1.10835
A103: 93 | B103: CESC | C103: 82.35 | D103: 82.62 | E103: 81.33 | F103: 80.32 | G103: 79.03 | H103: 83.63 | I103: 84.92 | J103: 85.93 | K103: 83.9 | L103: 81.6 | M103: 16.1472
A104: 94 | B104: CGCL | C104: 661.5 | D104: 680.70 | E104: 631.30 | F104: 601.10 | G104: 551.70 | H104: 710.90 | I104: 760.30 | J104: 790.50 | K104: 730.1 | L104: 650.5 | M104: 1.62763
A105: 95 | B105: CGPOWER | C105: 159.6 | D105: 160.62 | E105: 153.98 | F105: 148.37 | G105: 141.73 | H105: 166.23 | I105: 172.87 | J105: 178.48 | K105: 167.25 | L105: 155 | M105: 25.41077
A106: 96 | B106: CHALET | C106: 288.7 | D106: 290.58 | E106: 282.22 | F106: 275.73 | G106: 267.37 | H106: 297.07 | I106: 305.43 | J106: 311.92 | K106: 298.95 | L106: 284.1 | M106: 4.5731
A107: 97 | B107: CHAMBLFERT | C107: 427.45 | D107: 424.95 | E107: 407.50 | F107: 387.55 | G107: 370.10 | H107: 444.90 | I107: 462.35 | J107: 482.30 | K107: 442.4 | L107: 405 | M107: 24.77434
A108: 98 | B108: CHOLAFIN | C108: 637.95 | D108: 639.43 | E108: 629.97 | F108: 621.98 | G108: 612.52 | H108: 647.42 | I108: 656.88 | J108: 664.87 | K108: 648.9 | L108: 631.45 | M108: 27.11145
A109: 99 | B109: CHOLAHLDNG | C109: 605.85 | D109: 604.97 | E109: 594.93 | F109: 584.02 | G109: 573.98 | H109: 615.88 | I109: 625.92 | J109: 636.83 | K109: 615 | L109: 594.05 | M109: 0.58626
A110: 100 | B110: CIPLA | C110: 926.15 | D110: 928.10 | E110: 916.60 | F110: 907.05 | G110: 895.55 | H110: 937.65 | I110: 949.15 | J110: 958.70 | K110: 939.6 | L110: 918.55 | M110: 16.62201
A111: 101 | B111: COALINDIA | C111: 170.05 | D111: 174.23 | E111: 164.62 | F111: 159.18 | G111: 149.57 | H111: 179.67 | I111: 189.28 | J111: 194.72 | K111: 183.85 | L111: 168.8 | M111: 199.65511
A112: 102 | B112: COCHINSHIP | C112: 315.7 | D112: 318.27 | E112: 311.43 | F112: 307.17 | G112: 300.33 | H112: 322.53 | I112: 329.37 | J112: 333.63 | K112: 325.1 | L112: 314 | M112: 0.89937
A113: 103 | B113: COFORGE | C113: 3649.3 | D113: 3729.30 | E113: 3554.45 | F113: 3459.60 | G113: 3284.75 | H113: 3824.15 | I113: 3999.00 | J113: 4093.85 | K113: 3904.15 | L113: 3634.45 | M113: 3.41964
A114: 104 | B114: COLPAL | C114: 1589.9 | D114: 1589.03 | E114: 1573.07 | F114: 1556.23 | G114: 1540.27 | H114: 1605.87 | I114: 1621.83 | J114: 1638.67 | K114: 1605 | L114: 1572.2 | M114: 5.03559
A115: 105 | B115: CONCOR | C115: 611.7 | D115: 622.17 | E115: 598.33 | F115: 584.97 | G115: 561.13 | H115: 635.53 | I115: 659.37 | J115: 672.73 | K115: 646 | L115: 608.8 | M115: 19.47575
A116: 106 | B116: COROMANDEL | C116: 882 | D116: 889.95 | E116: 866.90 | F116: 851.80 | G116: 828.75 | H116: 905.05 | I116: 928.10 | J116: 943.20 | K116: 913 | L116: 874.85 | M116: 4.47871
A117: 107 | B117: CREDITACC | C117: 923.55 | D117: 933.37 | E117: 895.73 | F117: 867.92 | G117: 830.28 | H117: 961.18 | I117: 998.82 | J117: 1026.63 | K117: 971 | L117: 905.55 | M117: 1.11836
A118: 108 | B118: CRISIL | C118: 3238.9 | D118: 3223.17 | E118: 3174.73 | F118: 3110.57 | G118: 3062.13 | H118: 3287.33 | I118: 3335.77 | J118: 3399.93 | K118: 3271.6 | L118: 3159 | M118: 0.32668
A119: 109 | B119: CROMPTON | C119: 345.55 | D119: 347.52 | E119: 337.13 | F119: 328.72 | G119: 318.33 | H119: 355.93 | I119: 366.32 | J119: 374.73 | K119: 357.9 | L119: 339.1 | M119: 20.33839
A120: 110 | B120: CSBBANK | C120: 207.2 | D120: 208.22 | E120: 204.18 | F120: 201.17 | G120: 197.13 | H120: 211.23 | I120: 215.27 | J120: 218.28 | K120: 212.25 | L120: 205.2 | M120: 3.05404
A121: 111 | B121: CUB | C121: 121.55 | D121: 122.62 | E121: 119.73 | F121: 117.92 | G121: 115.03 | H121: 124.43 | I121: 127.32 | J121: 129.13 | K121: 125.5 | L121: 120.8 | M121: 6.59939
A122: 112 | B122: CUMMINSIND | C122: 981.25 | D122: 986.73 | E122: 973.12 | F122: 964.98 | G122: 951.37 | H122: 994.87 | I122: 1008.48 | J122: 1016.62 | K122: 1000.35 | L122: 978.6 | M122: 2.12762
A123: 113 | B123: CYIENT | C123: 827.05 | D123: 839.42 | E123: 809.63 | F123: 792.22 | G123: 762.43 | H123: 856.83 | I123: 886.62 | J123: 904.03 | K123: 869.2 | L123: 822 | M123: 1.51507
A124: 114 | B124: DABUR | C124: 502.55 | D124: 503.53 | E124: 498.37 | F124: 494.18 | G124: 489.02 | H124: 507.72 | I124: 512.88 | J124: 517.07 | K124: 508.7 | L124: 499.35 | M124: 23.05275
A125: 115 | B125: DALBHARAT | C125: 1421.8 | D125: 1424.73 | E125: 1363.32 | F125: 1304.83 | G125: 1243.42 | H125: 1483.22 | I125: 1544.63 | J125: 1603.12 | K125: 1486.15 | L125: 1366.25 | M125: 5.59455
A126: 116 | B126: DBL | C126: 229.75 | D126: 232.97 | E126: 225.28 | F126: 220.82 | G126: 213.13 | H126: 237.43 | I126: 245.12 | J126: 249.58 | K126: 240.65 | L126: 228.5 | M126: 3.57493
A127: 117 | B127: DCBBANK | C127: 81.7 | D127: 81.65 | E127: 81.05 | F127: 80.40 | G127: 79.80 | H127: 82.30 | I127: 82.90 | J127: 83.55 | K127: 82.25 | L127: 81 | M127: 20.25501
A128: 118 | B128: DCMSHRIRAM | C128: 1017.25 | D128: 1022.78 | E128: 1001.67 | F128: 986.08 | G128: 964.97 | H128: 1038.37 | I128: 1059.48 | J128: 1075.07 | K128: 1043.9 | L128: 1007.2 | M128: 1.29617
A129: 119 | B129: DEEPAKNTR | C129: 1935 | D129: 1967.67 | E129: 1887.33 | F129: 1839.67 | G129: 1759.33 | H129: 2015.33 | I129: 2095.67 | J129: 2143.33 | K129: 2048 | L129: 1920 | M129: 8.20447
A130: 120 | B130: DELTACORP | C130: 233.45 | D130: 239.43 | E130: 224.07 | F130: 214.68 | G130: 199.32 | H130: 248.82 | I130: 264.18 | J130: 273.57 | K130: 254.8 | L130: 230.05 | M130: 53.50726
A131: 121 | B131: DHANI | C131: 44.3 | D131: 45.33 | E131: 42.97 | F131: 41.63 | G131: 39.27 | H131: 46.67 | I131: 49.03 | J131: 50.37 | K131: 47.7 | L131: 44 | M131: 18.82363
A132: 122 | B132: DHANUKA | C132: 687 | D132: 693.37 | E132: 668.73 | F132: 650.47 | G132: 625.83 | H132: 711.63 | I132: 736.27 | J132: 754.53 | K132: 718 | L132: 675.1 | M132: 0.25645
A133: 123 | B133: DIVISLAB | C133: 4296.35 | D133: 4272.97 | E133: 4233.38 | F133: 4170.42 | G133: 4130.83 | H133: 4335.93 | I133: 4375.52 | J133: 4438.48 | K133: 4312.55 | L133: 4210 | M133: 3.01378
A134: 124 | B134: DIXON | C134: 3680.1 | D134: 3692.47 | E134: 3534.93 | F134: 3389.77 | G134: 3232.23 | H134: 3837.63 | I134: 3995.17 | J134: 4140.33 | K134: 3850 | L134: 3547.3 | M134: 9.07244
A135: 125 | B135: DLF | C135: 318.2 | D135: 324.40 | E135: 310.30 | F135: 302.40 | G135: 288.30 | H135: 332.30 | I135: 346.40 | J135: 354.30 | K135: 338.5 | L135: 316.5 | M135: 78.09598
A136: 126 | B136: DMART | C136: 3414.95 | D136: 3454.12 | E136: 3362.98 | F136: 3311.02 | G136: 3219.88 | H136: 3506.08 | I136: 3597.22 | J136: 3649.18 | K136: 3545.25 | L136: 3402.15 | M136: 6.96666
A137: 127 | B137: DRREDDY | C137: 3914 | D137: 3912.67 | E137: 3891.33 | F137: 3868.67 | G137: 3847.33 | H137: 3935.33 | I137: 3956.67 | J137: 3979.33 | K137: 3934 | L137: 3890 | M137: 2.02828
A138: 128 | B138: ECLERX | C138: 2126.65 | D138: 2149.80 | E138: 2076.85 | F138: 2027.05 | G138: 1954.10 | H138: 2199.60 | I138: 2272.55 | J138: 2322.35 | K138: 2222.75 | L138: 2100 | M138: 0.22154
A139: 129 | B139: EDELWEISS | C139: 55.9 | D139: 56.78 | E139: 54.72 | F139: 53.53 | G139: 51.47 | H139: 57.97 | I139: 60.03 | J139: 61.22 | K139: 58.85 | L139: 55.6 | M139: 11.56006
A140: 130 | B140: EICHERMOT | C140: 2415.55 | D140: 2397.40 | E140: 2353.10 | F140: 2290.65 | G140: 2246.35 | H140: 2459.85 | I140: 2504.15 | J140: 2566.60 | K140: 2441.7 | L140: 2334.95 | M140: 8.41473
A141: 131 | B141: EIDPARRY | C141: 488.65 | D141: 488.77 | E141: 475.53 | F141: 462.42 | G141: 449.18 | H141: 501.88 | I141: 515.12 | J141: 528.23 | K141: 502 | L141: 475.65 | M141: 7.57661
A142: 132 | B142: EIHOTEL | C142: 138.25 | D142: 139.93 | E142: 133.82 | F142: 129.38 | G142: 123.27 | H142: 144.37 | I142: 150.48 | J142: 154.92 | K142: 146.05 | L142: 135.5 | M142: 4.30025
A143: 133 | B143: ELGIEQUIP | C143: 303.55 | D143: 306.25 | E143: 296.30 | F143: 289.05 | G143: 279.10 | H143: 313.50 | I143: 323.45 | J143: 330.70 | K143: 316.2 | L143: 299 | M143: 3.20361
A144: 134 | B144: EMAMILTD | C144: 472.4 | D144: 466.78 | E144: 458.67 | F144: 444.93 | G144: 436.82 | H144: 480.52 | I144: 488.63 | J144: 502.37 | K144: 474.9 | L144: 453.05 | M144: 2.46277
A145: 135 | B145: ENDURANCE | C145: 1178.45 | D145: 1175.42 | E145: 1158.83 | F145: 1139.22 | G145: 1122.63 | H145: 1195.03 | I145: 1211.62 | J145: 1231.23 | K145: 1192 | L145: 1155.8 | M145: 5.40053
A146: 136 | B146: ENGINERSIN | C146: 60.35 | D146: 60.72 | E146: 59.78 | F146: 59.22 | G146: 58.28 | H146: 61.28 | I146: 62.22 | J146: 62.78 | K146: 61.65 | L146: 60.15 | M146: 14.90375
A147: 137 | B147: EPL | C147: 160.1 | D147: 160.40 | E147: 157.80 | F147: 155.50 | G147: 152.90 | H147: 162.70 | I147: 165.30 | J147: 167.60 | K147: 163 | L147: 158.1 | M147: 4.70049
A148: 138 | B148: EQUITAS | C148: 110.95 | D148: 110.85 | E148: 108.15 | F148: 105.35 | G148: 102.65 | H148: 113.65 | I148: 116.35 | J148: 119.15 | K148: 113.55 | L148: 108.05 | M148: 9.30136
A149: 139 | B149: EQUITASBNK | C149: 52.6 | D149: 52.87 | E149: 51.23 | F149: 49.87 | G149: 48.23 | H149: 54.23 | I149: 55.87 | J149: 57.23 | K149: 54.5 | L149: 51.5 | M149: 32.25973
A150: 140 | B150: ERIS | C150: 669.2 | D150: 669.65 | E150: 661.55 | F150: 653.90 | G150: 645.80 | H150: 677.30 | I150: 685.40 | J150: 693.05 | K150: 677.75 | L150: 662 | M150: 0.52324
A151: 141 | B151: ESCORTS | C151: 1578.25 | D151: 1580.02 | E151: 1550.23 | F151: 1522.22 | G151: 1492.43 | H151: 1608.03 | I151: 1637.82 | J151: 1665.83 | K151: 1609.8 | L151: 1552 | M151: 4.70516
A152: 142 | B152: EXIDEIND | C152: 145.7 | D152: 147.05 | E152: 144.15 | F152: 142.60 | G152: 139.70 | H152: 148.60 | I152: 151.50 | J152: 153.05 | K152: 149.95 | L152: 145.5 | M152: 14.79316
A153: 143 | B153: FACT | C153: 124.45 | D153: 125.05 | E153: 121.70 | F153: 118.95 | G153: 115.60 | H153: 127.80 | I153: 131.15 | J153: 133.90 | K153: 128.4 | L153: 122.3 | M153: 3.7716
A154: 144 | B154: FDC | C154: 251.85 | D154: 251.97 | E154: 247.88 | F154: 243.92 | G154: 239.83 | H154: 255.93 | I154: 260.02 | J154: 263.98 | K154: 256.05 | L154: 248 | M154: 2.69764
A155: 145 | B155: FEDERALBNK | C155: 92.4 | D155: 93.08 | E155: 91.17 | F155: 89.93 | G155: 88.02 | H155: 94.32 | I155: 96.23 | J155: 97.47 | K155: 95 | L155: 91.85 | M155: 147.52094
A156: 146 | B156: FINCABLES | C156: 360 | D156: 361.95 | E156: 354.05 | F156: 348.10 | G156: 340.20 | H156: 367.90 | I156: 375.80 | J156: 381.75 | K156: 369.85 | L156: 356 | M156: 1.70842
A157: 147 | B157: FINEORG | C157: 4421.35 | D157: 4426.80 | E157: 4331.60 | F157: 4241.85 | G157: 4146.65 | H157: 4516.55 | I157: 4611.75 | J157: 4701.50 | K157: 4522 | L157: 4337.05 | M157: 0.22636
A158: 148 | B158: FINPIPE | C158: 145.25 | D158: 139.08 | E158: 131.17 | F158: 117.08 | G158: 109.17 | H158: 153.17 | I158: 161.08 | J158: 175.17 | K158: 147 | L158: 125 | M158: 3.37049
A159: 149 | B159: FLUOROCHEM | C159: 2315.9 | D159: 2328.00 | E159: 2303.80 | F159: 2291.70 | G159: 2267.50 | H159: 2340.10 | I159: 2364.30 | J159: 2376.40 | K159: 2352.2 | L159: 2315.9 | M159: 2.10976
A160: 150 | B160: FORTIS | C160: 242.95 | D160: 243.92 | E160: 235.43 | F160: 227.92 | G160: 219.43 | H160: 251.43 | I160: 259.92 | J160: 267.43 | K160: 252.4 | L160: 236.4 | M160: 10.67819
A161: 151 | B161: FRETAIL | C161: 16.95 | D161: 16.95 | E161: 16.95 | F161: 16.95 | G161: 16.95 | H161: 16.95 | I161: 16.95 | J161: 16.95 | K161: 16.95 | L161: 16.95 | M161: 2.52875
A162: 152 | B162: FSL | C162: 111.85 | D162: 112.90 | E162: 110.45 | F162: 109.05 | G162: 106.60 | H162: 114.30 | I162: 116.75 | J162: 118.15 | K162: 115.35 | L162: 111.5 | M162: 29.56256
A163: 153 | B163: GAEL | C163: 272.4 | D163: 279.03 | E163: 263.37 | F163: 254.33 | G163: 238.67 | H163: 288.07 | I163: 303.73 | J163: 312.77 | K163: 294.7 | L163: 270 | M163: 8.92625
A164: 154 | B164: GAIL | C164: 148.9 | D164: 151.28 | E164: 145.62 | F164: 142.33 | G164: 136.67 | H164: 154.57 | I164: 160.23 | J164: 163.52 | K164: 156.95 | L164: 148 | M164: 136.84697
A165: 155 | B165: GALAXYSURF | C165: 2790.05 | D165: 2783.90 | E165: 2746.15 | F165: 2702.25 | G165: 2664.50 | H165: 2827.80 | I165: 2865.55 | J165: 2909.45 | K165: 2821.65 | L165: 2740 | M165: 0.1025
A166: 156 | B166: GARFIBRES | C166: 2968.1 | D166: 2976.23 | E166: 2871.37 | F166: 2774.63 | G166: 2669.77 | H166: 3072.97 | I166: 3177.83 | J166: 3274.57 | K166: 3081.1 | L166: 2879.5 | M166: 0.15765
A167: 157 | B167: GESHIP | C167: 368.6 | D167: 370.73 | E167: 363.37 | F167: 358.13 | G167: 350.77 | H167: 375.97 | I167: 383.33 | J167: 388.57 | K167: 378.1 | L167: 365.5 | M167: 4.03774
A168: 158 | B168: GICRE | C168: 116.1 | D168: 117.68 | E168: 112.57 | F168: 109.03 | G168: 103.92 | H168: 121.22 | I168: 126.33 | J168: 129.87 | K168: 122.8 | L168: 114.15 | M168: 26.6175
A169: 159 | B169: GILLETTE | C169: 4862.45 | D169: 4907.48 | E169: 4804.97 | F169: 4747.48 | G169: 4644.97 | H169: 4964.97 | I169: 5067.48 | J169: 5124.97 | K169: 5010 | L169: 4850 | M169: 0.04396
A170: 160 | B170: GLAND | C170: 2954.65 | D170: 2984.78 | E170: 2879.87 | F170: 2805.08 | G170: 2700.17 | H170: 3059.57 | I170: 3164.48 | J170: 3239.27 | K170: 3089.7 | L170: 2910 | M170: 2.15051
A171: 161 | B171: GLAXO | C171: 1497.3 | D171: 1506.10 | E171: 1482.20 | F171: 1467.10 | G171: 1443.20 | H171: 1521.20 | I171: 1545.10 | J171: 1560.20 | K171: 1530 | L171: 1491 | M171: 0.20915
A172: 162 | B172: GLENMARK | C172: 404.15 | D172: 410.18 | E172: 396.62 | F172: 389.08 | G172: 375.52 | H172: 417.72 | I172: 431.28 | J172: 438.82 | K172: 423.75 | L172: 402.65 | M172: 6.52798
A173: 163 | B173: GMMPFAUDLR | C173: 4363.7 | D173: 4379.57 | E173: 4274.13 | F173: 4184.57 | G173: 4079.13 | H173: 4469.13 | I173: 4574.57 | J173: 4664.13 | K173: 4485 | L173: 4290 | M173: 0.15772
A174: 164 | B174: GNFC | C174: 816.95 | D174: 816.22 | E174: 777.73 | F174: 738.52 | G174: 700.03 | H174: 855.43 | I174: 893.92 | J174: 933.13 | K174: 854.7 | L174: 777 | M174: 132.62552
A175: 165 | B175: GODFRYPHLP | C175: 1194.45 | D175: 1204.50 | E175: 1163.00 | F175: 1131.55 | G175: 1090.05 | H175: 1235.95 | I175: 1277.45 | J175: 1308.90 | K175: 1246 | L175: 1173.05 | M175: 2.08025
A176: 166 | B176: GODREJAGRO | C176: 506.8 | D176: 524.35 | E176: 484.70 | F176: 462.60 | G176: 422.95 | H176: 546.45 | I176: 586.10 | J176: 608.20 | K176: 564 | L176: 502.25 | M176: 22.15618
A177: 167 | B177: GODREJCP | C177: 771.3 | D177: 771.65 | E177: 753.90 | F177: 736.50 | G177: 718.75 | H177: 789.05 | I177: 806.80 | J177: 824.20 | K177: 789.4 | L177: 754.25 | M177: 12.78879
A178: 168 | B178: GODREJIND | C178: 468.2 | D178: 471.48 | E178: 461.72 | F178: 455.23 | G178: 445.47 | H178: 477.97 | I178: 487.73 | J178: 494.22 | K178: 481.25 | L178: 465 | M178: 0.75098
A179: 169 | B179: GODREJPROP | C179: 1360.5 | D179: 1376.07 | E179: 1332.53 | F179: 1304.57 | G179: 1261.03 | H179: 1404.03 | I179: 1447.57 | J179: 1475.53 | K179: 1419.6 | L179: 1348.1 | M179: 7.66399
A180: 170 | B180: GPPL | C180: 84.45 | D180: 84.72 | E180: 83.43 | F180: 82.42 | G180: 81.13 | H180: 85.73 | I180: 87.02 | J180: 88.03 | K180: 86 | L180: 83.7 | M180: 5.43613
A181: 171 | B181: GRANULES | C181: 252.45 | D181: 255.95 | E181: 246.90 | F181: 241.35 | G181: 232.30 | H181: 261.50 | I181: 270.55 | J181: 276.10 | K181: 265 | L181: 250.4 | M181: 6.34472
A182: 172 | B182: GRAPHITE | C182: 449.65 | D182: 453.25 | E182: 437.05 | F182: 424.45 | G182: 408.25 | H182: 465.85 | I182: 482.05 | J182: 494.65 | K182: 469.45 | L182: 440.65 | M182: 3.45597
A183: 173 | B183: GRASIM | C183: 1542.1 | D183: 1550.78 | E183: 1525.72 | F183: 1509.33 | G183: 1484.27 | H183: 1567.17 | I183: 1592.23 | J183: 1608.62 | K183: 1575.85 | L183: 1534.4 | M183: 8.53249
A184: 174 | B184: GREAVESCOT | C184: 139.85 | D184: 142.43 | E184: 136.42 | F184: 132.98 | G184: 126.97 | H184: 145.87 | I184: 151.88 | J184: 155.32 | K184: 148.45 | L184: 139 | M184: 18.68927
A185: 175 | B185: GRINDWELL | C185: 1702.05 | D185: 1719.93 | E185: 1681.87 | F185: 1661.68 | G185: 1623.62 | H185: 1740.12 | I185: 1778.18 | J185: 1798.37 | K185: 1758 | L185: 1699.75 | M185: 0.31998
A186: 176 | B186: GSFC | C186: 158.3 | D186: 160.75 | E186: 153.75 | F186: 149.20 | G186: 142.20 | H186: 165.30 | I186: 172.30 | J186: 176.85 | K186: 167.75 | L186: 156.2 | M186: 35.2411
A187: 177 | B187: GSPL | C187: 253.7 | D187: 256.55 | E187: 249.20 | F187: 244.70 | G187: 237.35 | H187: 261.05 | I187: 268.40 | J187: 272.90 | K187: 263.9 | L187: 252.05 | M187: 4.20976
A188: 178 | B188: GUJALKALI | C188: 868.55 | D188: 881.95 | E188: 844.40 | F188: 820.25 | G188: 782.70 | H188: 906.10 | I188: 943.65 | J188: 967.80 | K188: 919.5 | L188: 857.8 | M188: 7.85332
A189: 179 | B189: GUJGASLTD | C189: 507.05 | D189: 513.10 | E189: 497.20 | F189: 487.35 | G189: 471.45 | H189: 522.95 | I189: 538.85 | J189: 548.70 | K189: 529 | L189: 503.25 | M189: 13.49691
A190: 180 | B190: HAL | C190: 1550.65 | D190: 1561.22 | E190: 1532.48 | F190: 1514.32 | G190: 1485.58 | H190: 1579.38 | I190: 1608.12 | J190: 1626.28 | K190: 1589.95 | L190: 1543.05 | M190: 4.56654
A191: 181 | B191: HAPPSTMNDS | C191: 957.8 | D191: 967.80 | E191: 941.00 | F191: 924.20 | G191: 897.40 | H191: 984.60 | I191: 1011.40 | J191: 1028.20 | K191: 994.6 | L191: 951 | M191: 2.28881
A192: 182 | B192: HATHWAY | C192: 18.1 | D192: 18.38 | E192: 17.57 | F192: 17.03 | G192: 16.22 | H192: 18.92 | I192: 19.73 | J192: 20.27 | K192: 19.2 | L192: 17.85 | M192: 26.67639
A193: 183 | B193: HATSUN | C193: 1003.45 | D193: 1010.02 | E193: 986.43 | F193: 969.42 | G193: 945.83 | H193: 1027.03 | I193: 1050.62 | J193: 1067.63 | K193: 1033.6 | L193: 993 | M193: 0.29681
A194: 184 | B194: HAVELLS | C194: 1224.3 | D194: 1218.32 | E194: 1204.98 | F194: 1185.67 | G194: 1172.33 | H194: 1237.63 | I194: 1250.97 | J194: 1270.28 | K194: 1231.65 | L194: 1199 | M194: 10.59607
A195: 185 | B195: HCLTECH | C195: 1072.55 | D195: 1074.72 | E195: 1064.43 | F195: 1056.32 | G195: 1046.03 | H195: 1082.83 | I195: 1093.12 | J195: 1101.23 | K195: 1085 | L195: 1066.6 | M195: 24.73518
A196: 186 | B196: HDFC | C196: 2201.3 | D196: 2194.45 | E196: 2167.10 | F196: 2132.90 | G196: 2105.55 | H196: 2228.65 | I196: 2256.00 | J196: 2290.20 | K196: 2221.8 | L196: 2160.25 | M196: 42.05193
A197: 187 | B197: HDFCAMC | C197: 1917.65 | D197: 1929.88 | E197: 1892.77 | F197: 1867.88 | G197: 1830.77 | H197: 1954.77 | I197: 1991.88 | J197: 2016.77 | K197: 1967 | L197: 1905 | M197: 1.71015
A198: 188 | B198: HDFCBANK | C198: 1341.05 | D198: 1336.37 | E198: 1319.73 | F198: 1298.42 | G198: 1281.78 | H198: 1357.68 | I198: 1374.32 | J198: 1395.63 | K198: 1353 | L198: 1315.05 | M198: 100.56906
A199: 189 | B199: HDFCLIFE | C199: 559.2 | D199: 563.37 | E199: 553.83 | F199: 548.47 | G199: 538.93 | H199: 568.73 | I199: 578.27 | J199: 583.63 | K199: 572.9 | L199: 558 | M199: 39.53646
A200: 190 | B200: HEG | C200: 1074 | D200: 1087.80 | E200: 1051.20 | F200: 1028.40 | G200: 991.80 | H200: 1110.60 | I200: 1147.20 | J200: 1170.00 | K200: 1124.4 | L200: 1065 | M200: 1.51936
A201: 191 | B201: HEIDELBERG | C201: 193.6 | D201: 193.37 | E201: 191.73 | F201: 189.87 | G201: 188.23 | H201: 195.23 | I201: 196.87 | J201: 198.73 | K201: 195 | L201: 191.5 | M201: 0.80203
A202: 192 | B202: HEMIPROP | C202: 105.85 | D202: 106.73 | E202: 103.17 | F202: 100.48 | G202: 96.92 | H202: 109.42 | I202: 112.98 | J202: 115.67 | K202: 110.3 | L202: 104.05 | M202: 5.05324
A203: 193 | B203: HEROMOTOCO | C203: 2469.75 | D203: 2482.57 | E203: 2445.78 | F203: 2421.82 | G203: 2385.03 | H203: 2506.53 | I203: 2543.32 | J203: 2567.28 | K203: 2519.35 | L203: 2458.6 | M203: 6.44415
A204: 194 | B204: HFCL | C204: 65.6 | D204: 67.25 | E204: 63.35 | F204: 61.10 | G204: 57.20 | H204: 69.50 | I204: 73.40 | J204: 75.65 | K204: 71.15 | L204: 65 | M204: 76.83872
A205: 195 | B205: HGS | C205: 955.2 | D205: 964.03 | E205: 931.07 | F205: 906.93 | G205: 873.97 | H205: 988.17 | I205: 1021.13 | J205: 1045.27 | K205: 997 | L205: 939.9 | M205: 1.31977
A206: 196 | B206: HIKAL | C206: 395.2 | D206: 396.35 | E206: 381.20 | F206: 367.20 | G206: 352.05 | H206: 410.35 | I206: 425.50 | J206: 439.50 | K206: 411.5 | L206: 382.35 | M206: 3.25156
... 319 more rows

Sheet Bulk Deals
E6: Back To Main Page
A7: Subject : | B7: BULK DEAL | D7: =Main!B10 -> 2022-05-11
A9: Date | B9: Scrip code | C9: Scrip Name | D9: Client Name | E9: Buy / Sell | F9: Quantity Traded | G9: Trade Price / Wt.Avg.trade price | H9: Exchange
A10: 2022-05-10 | B10: 538778 | C10: AKASHDEEP | D10: NAVEEN PAUL | E10: SELL | F10: 65,000 | G10: 47.4 | H10: BSE
A11: 2022-05-10 | B11: 541865 | C11: ASRL | D11: MAHENDRA PRATAPSINH KHENGAR | E11: BUY | F11: 119,750 | G11: 101.4 | H11: BSE
A12: 2022-05-10 | B12: 541865 | C12: ASRL | D12: DINESHBHAI BHANUSHANKAR PANDYA | E12: SELL | F12: 612,096 | G12: 101.83 | H12: BSE
A13: 2022-05-10 | B13: 541865 | C13: ASRL | D13: KEBBEHALI PANCHILINGAIAHUMESH . | E13: BUY | F13: 498,500 | G13: 101.93 | H13: BSE
A14: 2022-05-10 | B14: 539099 | C14: ATHCON | D14: DEEPALI CHETAN THAKKAR | E14: SELL | F14: 40,000 | G14: 15 | H14: BSE
A15: 2022-05-10 | B15: 539621 | C15: BCLENTERPR | D15: YUGAL KISHORE RAMETRA | E15: BUY | F15: 300,000 | G15: 3.25 | H15: BSE
A16: 2022-05-10 | B16: 531909 | C16: CROISSANCE | D16: BRIJESH PANKAJBHAI SHAH | E16: BUY | F16: 350,000 | G16: 4.13 | H16: BSE
A17: 2022-05-10 | B17: 539559 | C17: DDIL | D17: KQUANT ENTERPRISES LLP | E17: BUY | F17: 71,067 | G17: 16 | H17: BSE
A18: 2022-05-10 | B18: 543516 | C18: DHYAANI | D18: ABINASH PRAJAPATI | E18: BUY | F18: 8,000 | G18: 58.26 | H18: BSE
A19: 2022-05-10 | B19: 523708 | C19: EIMCOELECO | D19: AKAAISH MECHATRONICS LTD | E19: BUY | F19: 38,500 | G19: 358 | H19: BSE
A20: 2022-05-10 | B20: 523708 | C20: EIMCOELECO | D20: K B INVESTMENTS LIMITED | E20: SELL | F20: 38,500 | G20: 358 | H20: BSE
A21: 2022-05-10 | B21: 542668 | C21: EVANS | D21: AMEER SAMSUL HUTHA BANU | E21: SELL | F21: 14,000 | G21: 79.5 | H21: BSE
A22: 2022-05-10 | B22: 540377 | C22: IFL | D22: HIRWANI JAYANTIBHAI VAGHELA | E22: SELL | F22: 18,000 | G22: 64.7 | H22: BSE
A23: 2022-05-10 | B23: 540377 | C23: IFL | D23: AMARBHAI PANCHAL | E23: BUY | F23: 18,000 | G23: 64.7 | H23: BSE
A24: 2022-05-10 | B24: 521005 | C24: INDOVATION | D24: GOURAVINGLE | E24: BUY | F24: 19,309 | G24: 24.03 | H24: BSE
A25: 2022-05-10 | B25: 521005 | C25: INDOVATION | D25: GOURAVINGLE | E25: SELL | F25: 11,808 | G25: 24.85 | H25: BSE
A26: 2022-05-10 | B26: 521005 | C26: INDOVATION | D26: JOMYJOHNTHACHUPARAMBIL | E26: SELL | F26: 15,300 | G26: 22.65 | H26: BSE
A27: 2022-05-10 | B27: 521005 | C27: INDOVATION | D27: CHENNA KRISHNAIAH ANNALURU | E27: BUY | F27: 22,150 | G27: 22.77 | H27: BSE
A28: 2022-05-10 | B28: 521005 | C28: INDOVATION | D28: CHENNA KRISHNAIAH ANNALURU | E28: SELL | F28: 49 | G28: 24.95 | H28: BSE
A29: 2022-05-10 | B29: 521005 | C29: INDOVATION | D29: PUNE E STOCK BROKING PRIVATE LIMITED | E29: SELL | F29: 25,000 | G29: 24.95 | H29: BSE
A30: 2022-05-10 | B30: 509709 | C30: INTLCONV | D30: I G E (INDIA) PRIVATE LIMITED | E30: BUY | F30: 2,000,000 | G30: 72.2 | H30: BSE
A31: 2022-05-10 | B31: 509709 | C31: INTLCONV | D31: SURBHIT DABRIWALA | E31: SELL | F31: 1,000,000 | G31: 72 | H31: BSE
A32: 2022-05-10 | B32: 509709 | C32: INTLCONV | D32: YAMINI DABRIWALA | E32: SELL | F32: 1,000,000 | G32: 72.4 | H32: BSE
A33: 2022-05-10 | B33: 532940 | C33: JKIL | D33: GAGANBASE VINCOM PRIVATE LTD | E33: SELL | F33: 820,364 | G33: 228.6 | H33: BSE
A34: 2022-05-10 | B34: 538874 | C34: NEXUSSURGL | D34: RAMAN RAINA | E34: SELL | F34: 50,000 | G34: 11.52 | H34: BSE
A35: 2022-05-10 | B35: 538874 | C35: NEXUSSURGL | D35: KHATTU CONSTRUCTION AND DEVELOPERS PRIVATE LIMITED | E35: BUY | F35: 35,000 | G35: 11.5 | H35: BSE
A36: 2022-05-10 | B36: 543522 | C36: NVENTURES | D36: NIKUNJ STOCK BROKERS LIMITED | E36: BUY | F36: 9,000 | G36: 45.5 | H36: BSE
A37: 2022-05-10 | B37: 543522 | C37: NVENTURES | D37: NIKUNJ STOCK BROKERS LIMITED | E37: SELL | F37: 12,000 | G37: 45.7 | H37: BSE
A38: 2022-05-10 | B38: 543522 | C38: NVENTURES | D38: HARSHA RAJESHBHAI JHAVERI | E38: SELL | F38: 9,000 | G38: 45.68 | H38: BSE
A39: 2022-05-10 | B39: 540386 | C39: ONTIC | D39: VANRAJ DADBHAI KAHOR | E39: BUY | F39: 55,459 | G39: 17.71 | H39: BSE
A40: 2022-05-10 | B40: 531512 | C40: ORIENTTR | D40: YUGAL KISHORE RAMETRA | E40: BUY | F40: 100,000 | G40: 14.21 | H40: BSE
A41: 2022-05-10 | B41: 539143 | C41: PANTH | D41: HANSABEN BHARATKUMAR PATEL | E41: BUY | F41: 229,000 | G41: 23.55 | H41: BSE
A42: 2022-05-10 | B42: 539143 | C42: PANTH | D42: PURAV BHARATBHAI PATEL | E42: BUY | F42: 316,704 | G42: 23.5 | H42: BSE
A43: 2022-05-10 | B43: 539143 | C43: PANTH | D43: HANSABEN BHARATKUMAR PATEL | E43: SELL | F43: 4,800 | G43: 23.7 | H43: BSE
A44: 2022-05-10 | B44: 539143 | C44: PANTH | D44: PURAV BHARATBHAI PATEL | E44: SELL | F44: 183,568 | G44: 23.69 | H44: BSE
A45: 2022-05-10 | B45: 539143 | C45: PANTH | D45: SHREENARAYAN LOHIA SONS HUF | E45: SELL | F45: 100,000 | G45: 23.46 | H45: BSE
A46: 2022-05-10 | B46: 541601 | C46: RAJNISH | D46: TANGO COMMOSALES LLP | E46: BUY | F46: 62,100 | G46: 182.2 | H46: BSE
A47: 2022-05-10 | B47: 541601 | C47: RAJNISH | D47: TANGO COMMOSALES LLP | E47: SELL | F47: 43,200 | G47: 183.6 | H47: BSE
A48: 2022-05-10 | B48: 543256 | C48: RFLL | D48: REKHA GARG | E48: SELL | F48: 94,500 | G48: 19.5 | H48: BSE
A49: 2022-05-10 | B49: 538540 | C49: RLFL | D49: RAJAT SINGH | E49: BUY | F49: 380,000 | G49: 2.09 | H49: BSE
A50: 2022-05-10 | B50: 511760 | C50: SEVENHILL | D50: BRAJESH KUMAR | E50: BUY | F50: 947,658 | G50: 0.89 | H50: BSE
A51: 2022-05-10 | B51: 511447 | C51: SYLPH | D51: ATIT JAIN | E51: SELL | F51: 284,075 | G51: 20.65 | H51: BSE
A52: 2022-05-10 | B52: 533170 | C52: TAMBOLI | D52: SETU SECURITIES PVT LTD | E52: BUY | F52: 50,434 | G52: 93.21 | H52: BSE
A53: 2022-05-10 | B53: 533170 | C53: TAMBOLI | D53: SETU SECURITIES PVT LTD | E53: SELL | F53: 48,188 | G53: 91.83 | H53: BSE
A54: 2022-05-10 | B54: 538569 | C54: TRIVENIENT | D54: SHEELA PRASANNAKUMAR | E54: SELL | F54: 360,000 | G54: 12.26 | H54: BSE
A55: 2022-05-10 | B55: 538569 | C55: TRIVENIENT | D55: KHADARIA FAMILY TRUST | E55: BUY | F55: 360,000 | G55: 12.26 | H55: BSE
A56: 2022-05-10 | B56: AKG | C56: AKG Exim Limited | D56: AMRITA JAIN | E56: BUY | F56: 95,240 | G56: 40.28 | H56: BSE
A57: 2022-05-10 | B57: ASIANTILES | C57: Asian Granito India Limit | D57: VENKATESH BHASKAR SHENOY | E57: BUY | F57: 1,819,890 | G57: 79.83 | H57: NSE
A58: 2022-05-10 | B58: ASIANTILES | C58: Asian Granito India Limit | D58: JITESHKUMAR S TIKADIYA | E58: BUY | F58: 1,282,751 | G58: 82.03 | H58: NSE
A59: 2022-05-10 | B59: ASIANTILES | C59: Asian Granito India Limit | D59: CNM FINVEST PRIVATE LIMITED | E59: BUY | F59: 1,294,541 | G59: 83.61 | H59: NSE
A60: 2022-05-10 | B60: ASIANTILES | C60: Asian Granito India Limit | D60: GRAVITON RESEARCH CAPITAL LLP | E60: BUY | F60: 623,745 | G60: 81.28 | H60: NSE
A61: 2022-05-10 | B61: GNFC | C61: Gujarat Narm Fert Co. | D61: GRAVITON RESEARCH CAPITAL LLP | E61: BUY | F61: 717,997 | G61: 825.15 | H61: NSE
A62: 2022-05-10 | B62: HARIOMPIPE | C62: Hariom Pipe Industries L | D62: VORA FINANCIAL SERVICES PVT LTD | E62: BUY | F62: 25,287 | G62: 204.87 | H62: NSE
A63: 2022-05-10 | B63: LEMERITE | C63: Le Merite Exports Limited | D63: INVESTINO VENTURE LLP . | E63: BUY | F63: 192,000 | G63: 82.65 | H63: NSE
A64: 2022-05-10 | B64: RIIL | C64: Reliance Indl Infra Ltd | D64: XTX MARKETS LLP | E64: BUY | F64: 123,104 | G64: 1016.97 | H64: NSE
A65: 2022-05-10 | B65: RIIL | C65: Reliance Indl Infra Ltd | D65: GRAVITON RESEARCH CAPITAL LLP | E65: BUY | F65: 130,202 | G65: 1020.52 | H65: NSE
A66: 2022-05-10 | B66: SCAPDVR | C66: Stampede Capital Limited | D66: SACHI KAPOOR | E66: BUY | F66: 294,837 | G66: 10.84 | H66: NSE
A67: 2022-05-10 | B67: VCL | C67: Vaxtex Cotfab Limited | D67: PREETI JAIN | E67: BUY | F67: 618,348 | G67: 33.95 | H67: NSE
A68: 2022-05-10 | B68: VIKASECO | C68: Vikas EcoTech Limited | D68: ANKITA VISHAL SHAH | E68: BUY | F68: 10,798,699 | G68: 4.17 | H68: NSE
A69: 2022-05-10 | B69: ZEELEARN | C69: Zee Learn Limited | D69: JAIDEEP SAMPAT | E69: BUY | F69: 2,000,000 | G69: 6.35 | H69: NSE
A70: 2022-05-10 | B70: AKG | C70: AKG Exim Limited | D70: AMRITA JAIN | E70: SELL | F70: 86,072 | G70: 40.2 | H70: NSE
A71: 2022-05-10 | B71: ASIANTILES | C71: Asian Granito India Limit | D71: VIMLA PAWANKUMAR SANGHVI | E71: SELL | F71: 288,275 | G71: 80.94 | H71: NSE
A72: 2022-05-10 | B72: ASIANTILES | C72: Asian Granito India Limit | D72: GRAVITON RESEARCH CAPITAL LLP | E72: SELL | F72: 623,745 | G72: 81.13 | H72: NSE
A73: 2022-05-10 | B73: ASIANTILES | C73: Asian Granito India Limit | D73: VENKATESH BHASKAR SHENOY | E73: SELL | F73: 1,819,890 | G73: 82.8 | H73: NSE
A74: 2022-05-10 | B74: GNFC | C74: Gujarat Narm Fert Co. | D74: GRAVITON RESEARCH CAPITAL LLP | E74: SELL | F74: 840,197 | G74: 825.49 | H74: NSE
A75: 2022-05-10 | B75: HARIOMPIPE | C75: Hariom Pipe Industries L | D75: VORA FINANCIAL SERVICES PVT LTD | E75: SELL | F75: 132,569 | G75: 200.03 | H75: NSE
A76: 2022-05-10 | B76: RIIL | C76: Reliance Indl Infra Ltd | D76: XTX MARKETS LLP | E76: SELL | F76: 131,650 | G76: 1013.24 | H76: NSE
A77: 2022-05-10 | B77: RIIL | C77: Reliance Indl Infra Ltd | D77: GRAVITON RESEARCH CAPITAL LLP | E77: SELL | F77: 130,202 | G77: 1020.18 | H77: NSE
A78: 2022-05-10 | B78: VCL | C78: Vaxtex Cotfab Limited | D78: PREETI JAIN | E78: SELL | F78: 650,600 | G78: 33.96 | H78: NSE
A79: 2022-05-10 | B79: VIKASECO | C79: Vikas EcoTech Limited | D79: ANKITA VISHAL SHAH | E79: SELL | F79: 3,992,166 | G79: 4.18 | H79: NSE

Sheet Call Tracker (Equity & F&O)
M5: Back To Main Page
A6: Retail Research Technical Calls & Fundamental Performance Report for the month of May-2022
M7: =Main!B10 -> 2022-05-11
B8: Positional Call
A9: Sr.no | B9: Date | D9: Company | E9: Rec | F9: Rec Price | G9: Stop Loss*** | H9: Call Closed At | I9: Target | J9: Remark | K9: Profit / Loss per Share | L9: All charges | M9: Net Gain / Loss % | N9: Status | O9: Closed Date | P9: Market Closing Price
A10: 1 | B10: 2022-03-21 | D10: WHIRLPOOL | E10: Buy | F10: 1640 | G10: 1530 | H10: 1675 | I10: 1800-1900 | J10: Profit of Rs.35/- | K10: =H10-F10 -> 35 | L10: =(F10*-0.7)/100 -> -11.48 | M10: =(K10+L10)/F10 -> 1.43% | N10: Successful | O10: 2022-05-02 | R10: H
A11: 2 | B11: 2022-04-13 | D11: CAMS | E11: Buy | F11: 2595 | G11: 2395 | H11: 2395 | I11: 2800-2900 | J11: Loss of Rs.200/- | K11: -200 | L11: -18.17 | M11: -8.41% | N11: Unsuccessful | O11: 2022-05-09 | R11: H
A12: 3 | B12: 2022-04-19 | D12: REDINGTON | E12: Buy | F12: 158 | G12: 149 | H12: 149 | I12: 170-180 | J12: Loss of Rs.9/- | K12: =H12-F12 -> -9 | L12: =(F12*-0.7)/100 -> -1.11 | M12: =(K12+L12)/F12 -> -6.40% | N12: Unsuccessful | O12: 2022-05-05 | R12: H
A13: 4 | B13: 2022-04-20 | D13: IRCTC | E13: Buy | F13: 755 | G13: 695 | H13: 695 | I13: 830-900 | J13: Loss of Rs.60/- | K13: =H13-F13 -> -60 | L13: =(F13*-0.7)/100 -> -5.29 | M13: =(K13+L13)/F13 -> -8.65% | N13: Unsuccessful | O13: 2022-05-10 | R13: H
A14: 5 | B14: 2022-05-09 | D14: ICICIBANK | E14: Buy | F14: 700-710 | G14: 670 | I14: 750-780 | J14: Open | P14: =VLOOKUP(D14,'MidCap Intra'!B29:C583,2,0) -> 711.3
A15: 6 | B15: 2022-05-09 | D15: REDINGTON | E15: Buy | F15: 137-139 | G15: 129 | I15: 150-155 | J15: Open | P15: =VLOOKUP(D15,'MidCap Intra'!B30:C584,2,0) -> 135.95
A20: CLBS = Closing Basis ***
A21: Dividend adjusted <> | F21: Reinitiated $
A22: Part book {} | D22: s | F22: Revised stoploss #
B24: Momentum Call
A25: Sr.no | B25: Date | D25: Company | E25: Rec | F25: Rec Price | G25: Stop Loss | H25: Call Closed At | I25: Target | J25: Remark | K25: Profit / Loss per Share/Lot | L25: All charges | M25: Net Gain / Loss % | N25: Status | O25: Closed Date
A26: 1 | B26: 2022-04-20 | D26: CANBK | E26: Buy | F26: 233.5 | G26: 227 | H26: 227 | I26: 242-250 | J26: Loss of Rs.6.50/- | K26: =H26-F26 -> -6.5 | L26: =(F26*-0.7)/100 -> -1.63 | M26: =(K26+L26)/F26 -> -3.48% | N26: Unsuccessful | O26: 2022-05-04 | R26: H
A27: 2 | B27: 2022-04-21 | D27: SUPREMEIND | E27: Buy | F27: 1980 | G27: 1920 | H27: 1920 | I27: 2050-2100 | J27: Loss of Rs.60/- | K27: =H27-F27 -> -60 | L27: =(F27*-0.7)/100 -> -13.86 | M27: =(K27+L27)/F27 -> -3.73% | N27: Unsuccessful | O27: 2022-05-10 | R27: H
A28: 3 | B28: 2022-04-21 | D28: HDFCBANK | E28: Buy | F28: 1375 | G28: 1340 | H28: 1340 | I28: 1450 | J28: Loss of Rs.35/- | K28: =H28-F28 -> -35 | L28: =(F28*-0.7)/100 -> -9.63 | M28: =(K28+L28)/F28 -> -3.25% | N28: Unsuccessful | O28: 2022-05-06 | R28: H
A29: 4 | B29: 2022-04-22 | D29: MTARTECH | E29: Buy | F29: 1710 | G29: 1647 | H29: 1647 | I29: 1760-1800 | J29: Loss of Rs.63/- | K29: =H29-F29 -> -63 | L29: =(F29*-0.7)/100 -> -11.97 | M29: =(K29+L29)/F29 -> -4.38% | N29: Unsuccessful | O29: 2022-05-04 | R29: H
A30: 5 | B30: 2022-04-25 | D30: TATAPOWER | E30: Buy | F30: 248.5 | G30: 240 | H30: 240 | I30: 265 | J30: Loss of Rs.8.5/- | K30: =H30-F30 -> -8.5 | L30: =(F30*-0.7)/100 -> -1.74 | M30: =(K30+L30)/F30 -> -4.12% | N30: Unsuccessful | O30: 2022-05-04 | R30: H
A31: 6 | B31: 2022-04-28 | D31: AEGISCHEM | E31: Buy | F31: 219.5 | G31: 214 | H31: 214 | I31: 230-232 | J31: Loss of Rs.5.5/- | K31: =H31-F31 -> -5.5 | L31: =(F31*-0.7)/100 -> -1.54 | M31: =(K31+L31)/F31 -> -3.21% | N31: Unsuccessful | O31: 2022-05-04
A32: 7 | B32: 2022-05-05 | D32: CARBORUNIV | E32: Buy | F32: 755.5 | G32: 730 | H32: 730 | I32: 790-00 | J32: Loss of Rs.25.5/- | K32: -25.5 | L32: -5.29 | M32: -4.08% | N32: Unsuccessful | O32: 2022-05-04
A33: 8 | B33: 2022-05-09 | D33: TCS | E33: Buy | F33: 3400 | G33: 3290 | H33: 3455 | I33: 3550-3600 | J33: Profit of Rs.55/- | K33: 55 | L33: =(F33*-0.07)/100 -> -2.38 | M33: 1.55% | N33: Successful | O33: 2022-05-09
A34: 9 | B34: 2022-05-09 | D34: LT | E34: Buy | F34: 1600-1610 | G34: 1550 | I34: 1680-1720 | J34: Open
A35: 10 | B35: 2022-05-10 | D35: CARBORUNIV | E35: Buy | F35: 718-722 | G35: 699 | I35: 760-780 | J35: Open
A36: 11 | B36: 2022-05-10 | D36: SRF | E36: Buy | F36: 2230 | G36: 2160 | H36: 2160 | I36: 2340-2400 | J36: Loss of Rs.70/- | K36: =H36-F36 -> -70 | L36: =(F36*-0.7)/100 -> -15.61 | M36: =(K36+L36)/F36 -> -3.84% | N36: Unsuccessful | O36: 2022-05-10
A39: CLBS = Closing Basis *** | H39: *
A40: Dividend adjusted <> | F40: Reinitiated $
F41: Revised stoploss #
A43: Master Trade High Risk
A44: Sr.no | B44: Date | D44: Company | E44: Rec | F44: Rec Price | G44: Stop Loss | H44: Call Closed At | I44: Target | J44: Remark | K44: Profit / Loss per share | L44: All charges | M44: Gain / Loss per Lot | N44: Lot | O44: Status | P44: Closed Date
A45: 1 | B45: 2022-04-29 | D45: APOLLOHOSP MAY FUT | E45: Buy | F45: 4545 | G45: 4440 | H45: 4440 | I45: 4700-4750 | J45: Loss of Rs.105/- | K45: =H45-F45 -> -105 | L45: =(H45*N45)*0.07% -> 388.50 | M45: =(K45*N45)-L45 -> -13513.5 | N45: 125 | O45: Unsuccessful | P45: 2022-05-02
A46: 2 | B46: 2022-04-29 | D46: HDFCAMC MAY FUT | E46: Buy | F46: 2060 | G46: 1990 | H46: 1990 | I46: 2150-2180 | J46: Loss of Rs.70/- | K46: =H46-F46 -> -70 | L46: 278.60 | M46: =(K46*N46)-L46 -> -14278.6 | N46: 200 | O46: Unsuccessful | P46: 2022-05-04
A47: 3 | B47: 2022-05-02 | D47: COLPAL MAY FUT | E47: Buy | F47: 1624 | G47: 1585 | H47: 1585 | I47: 1670-1720 | J47: Loss of Rs.39/- | K47: =H47-F47 -> -39 | L47: =(H47*N47)*0.07% -> 388.33 | M47: =(K47*N47)-L47 -> -14038.3 | N47: 350 | O47: Unsuccessful | P47: 2022-05-05
A48: 4 | B48: 2022-05-05 | D48: CROMPTON MAY FUT | E48: Buy | F48: 371 | G48: 360 | H48: 360 | I48: 382-390 | J48: Loss of Rs.11/- | K48: -11 | L48: 277.20 | M48: -12377.2 | N48: 1100 | O48: Unsuccessful | P48: 2022-05-06
A49: 5 | B49: 2022-05-05 | D49: JUBLFOOD MAY FUT | E49: Buy | F49: 523.5 | G49: 502 | H49: 502 | I49: 550-560 | J49: Loss of Rs.21.5/- | K49: =H49-F49 -> -21.5 | L49: =(H49*N49)*0.07% -> 193.27 | M49: =(K49*N49)-L49 -> -12018.3 | N49: 550 | O49: Unsuccessful | P49: 2022-05-06
A50: 6 | B50: 2022-05-09 | D50: GSPL MAY FUT | E50: Buy | F50: 255 | G50: 248 | H50: 261 | I50: 262-265 | J50: Profit of Rs.6/- | K50: =H50-F50 -> 6 | L50: =(H50*N50)*0.07% -> 310.59 | M50: =(K50*N50)-L50 -> 9889.4 | N50: 1700 | O50: Successful | P50: 2022-05-09
A51: 7 | B51: 2022-05-09 | D51: MPHASIS MAY FUT | E51: Buy | F51: 2690-2700 | G51: 2625 | I51: 2800-2850 | J51: Open
A52: 8 | B52: 2022-05-09 | D52: PIDILITIND MAY FUT | E52: Buy | F52: 2195 | G52: 2145 | H52: 2232.5 | I52: 2250-2300 | J52: Profit of Rs.37.5/- | K52: =H52-F52 -> 37.5 | L52: =(H52*N52)*0.07% -> 390.69 | M52: =(K52*N52)-L52 -> 8984.3 | N52: 250 | O52: Successful | P52: 2022-05-10
A53: 9 | B53: 2022-05-09 | D53: TCS MAY FUT | E53: Buy | F53: 3430-3440 | G53: 3345 | I53: 3540-3600 | J53: Open
A54: 10 | B54: 2022-05-10 | D54: SRF MAY FUT | E54: Buy | F54: 2225 | G54: 2180 | H54: 2260 | I54: 2270-2300 | J54: Profit of Rs.35/- | K54: =H54-F54 -> 35 | L54: =(H54*N54)*0.07% -> 593.25 | M54: =(K54*N54)-L54 -> 12531.8 | N54: 375 | O54: Successful | P54: 2022-05-10
A55: 11 | B55: 2022-05-10 | D55: SRF MAY FUT | E55: Buy | F55: 2225 | G55: 2180 | H55: 2180 | I55: 2270-2300 | J55: Loss of Rs.45/- | K55: -45 | L55: 572.25 | M55: -17447.3 | N55: 375 | O55: Unsuccessful | P55: 2022-05-10
A56: 12 | B56: 2022-05-10 | D56: PIDILITIND MAY FUT | E56: Buy | F56: 2190-2200 | G56: 2145 | I56: 2250-2300 | J56: Open
A57: 13
A61: Master Trade Medium Risk
A62: Sr.no | B62: Date | D62: Company | E62: Rec | F62: Rec Price | G62: Stop Loss | H62: Call Closed At | I62: Target | J62: Remark | K62: Profit/ Loss per lot | L62: All charges | M62: Gain / Loss per Lot | N62: Lot | O62: Status | P62: Closed Date
A63: 1 | B63: 2022-05-02 | D63: HDFC MAY 2300 CE | E63: Buy | F63: 55.5 | G63: 29 | H63: 29 | I63: 70-80 | J63: Loss of Rs.26.50 | K63: =H63-F63 -> -26.5 | L63: 100.00 | M63: =(K63*N63)-L63 -> -8050.0 | N63: 300 | O63: Unsuccessful | P63: 2022-05-04 | R63: N
A64: 2 | B64: 2022-05-02 | D64: NIFTY 17000 PE 05-MAY | E64: Buy | F64: 82.5 | G64: 40 | H64: 107.5 | I64: 140-165 | J64: Profit of Rs.25 | K64: 25 | L64: 100.00 | M64: 1150.0 | N64: 50 | O64: Successful | P64: 2022-05-04
A65: 3 | B65: 2022-05-04 | D65: NIFTY 17000 CE 05-MAY | E65: Buy | F65: 92.5 | G65: 50 | H65: 50 | I65: 150-170 | J65: Loss of Rs.42.50 | K65: =H65-F65 -> -42.5 | L65: 100.00 | M65: =(K65*N65)-L65 -> -2225.0 | N65: 50 | O65: Unsuccessful | P65: 2022-05-04
A66: 4 | B66: 2022-05-05 | D66: BANKNIFTY 35800 CE 05-MAY | E66: Buy | F66: 85 | G66: 10 | H66: 10 | I66: 200-240 | J66: Loss of Rs.75 | K66: =H66-F66 -> -75 | L66: 100.00 | M66: =(K66*N66)-L66 -> -1975.0 | N66: 25 | O66: Unsuccessful | P66: 2022-05-05
A67: 5 | B67: 2022-05-09 | D67: NIFTY 16400 CE 12-MAY | E67: Buy | F67: 106 | G67: 65 | H67: 127.5 | I67: 160-200 | J67: Profit of Rs.21.5 | K67: 21.5 | L67: 100.00 | M67: 975.0 | N67: 50 | O67: Successful | P67: 2022-05-09
A68: 3 | B68: 2022-05-10 | D68: NIFTY 16500 CE 12-MAY | E68: Buy | F68: 82.5 | G68: 35 | H68: 35 | I68: 120-160 | J68: Loss of Rs.47.50 | K68: -47.5 | L68: 100.00 | M68: -2475.0 | N68: 50 | O68: Unsuccessful | P68: 2022-05-10
A72: Techno -Funda (positional)
A73: Sr.no | B73: Date | D73: Company | E73: Rec | F73: Rec Price | G73: Stop Loss*** | H73: Call Closed At | I73: Target | J73: Remark | K73: Profit / Loss per Share/Lot | L73: All charges | M73: Net Gain / Loss % | N73: Status | O73: Closed Date | P73: Market Closing Price
A74: 1 | B74: 2021-10-19 | D74: ITC | E74: Buy<> | F74: 235.25 | G74: 198 | I74: 320-340 | J74: Open | R74: H
A75: 2 | B75: 2022-03-31 | D75: KEC | E75: Buy | F75: 379 | G75: 348 | H75: 406 | I75: 420-450 | J75: Part profit of Rs.27/- | K75: =H75-F75 -> 27 | L75: =(F75*-0.7)/100 -> -2.65 | M75: =(K75+L75)/F75 -> 6.42% | N75: Successful | O75: 2022-04-06 | P75: =VLOOKUP(D75,'MidCap Intra'!B86:C640,2,0) -> 366.6 | R75: H
A76: 3 | B76: 2022-04-07 | D76: JKLAKSHMI | E76: Buy | F76: 445-455 | G76: 398 | I76: 520-560 | J76: Open | R76: H
A77: 4 | B77: 2022-05-06 | D77: BEL | E77: Buy | F77: 226-230 | G77: 206 | I77: 250-275 | J77: Open
A79: CLBS = Closing Basis *** | F79: Reinitiated $
A80: Dividend adjusted <> | F80: Revised stoploss # | H80: .................
B82: Intrday Call
A83: Sr.no | B83: Date | D83: Company | E83: Rec | F83: Rec Price | G83: Stop Loss | H83: Call Closed At | I83: Target | J83: Remark | K83: Profit / Loss per Share/Lot | L83: Gain / Loss per Lot | M83: Lot | N83: All charges | O83: Net Gain / Loss % | P83: Status | Q83: Closed Date
B96: Investment Idea
A97: Sr.no | B97: Date | D97: Company | E97: Rec | F97: Rec Price | G97: Point of Review | H97: Close Rate | I97: Target | J97: Remark | K97: Profit / Loss per Share | L97: Gain / Loss % | M97: Status | N97: Closed Date
A98: 1 | B98: 2013-11-01 | D98: L&T Finance Holding | E98: Accu | F98: 82.00 | G98: - | H98: 100 | I98: 100.00 | J98: Target Achieved | K98: =H98-F98 -> 18.00 | L98: =K98/F98 -> 21.95% | M98: Successful | N98: 2016-10-14
A99: 2 | B99: 2014-06-04 | D99: Finolex Inds | E99: Buy | F99: 257.00 | G99: - | H99: 300 | I99: 300.00 | J99: Target Achieved | K99: 43.00 | L99: 16.73% | M99: Successful | N99: 2014-07-02
A100: 3 | B100: 2014-07-08 | D100: JK Cement | E100: Buy | F100: 393.00 | G100: - | H100: 468 | I100: 468.00 | J100: Target Achieved | K100: 75.00 | L100: 19.08% | M100: Successful | N100: 2014-08-12
A101: 4 | B101: 2014-08-06 | D101: Finolex Cables | E101: Buy | F101: 205.00 | G101: - | H101: 275 | I101: 250.00 | J101: Target Achieved | K101: 70.00 | L101: 34.15% | M101: Successful | N101: 2014-11-19
A102: 5 | B102: 2014-09-04 | D102: Exide Inds | E102: Buy | F102: 162.00 | G102: - | H102: 190 | I102: 190.00 | J102: Target Achieved | K102: 28.00 | L102: 17.28% | M102: Successful | N102: 2015-01-02
A103: 6 | B103: 2014-09-04 | D103: Deepak Nitrite | E103: Buy | F103: 75.00 | G103: - | H103: 91.5 | I103: 95-100 | J103: Profit of Rs.16.50/- | K103: 16.50 | L103: 22.00% | M103: Successful | N103: 2014-11-11
A104: 7 | B104: 2014-10-01 | D104: Mercks | E104: Buy | F104: 850.00 | G104: - | H104: 982.5 | I104: 1050.00 | J104: Profit of Rs.132.50/- | K104: 132.50 | L104: 15.59% | M104: Successful | N104: 2015-02-04
A105: 8 | B105: 2014-10-01 | D105: Grindwell Norton | E105: Buy | F105: 475.00 | G105: - | H105: 515 | I105: 600.00 | J105: Profit of Rs.40/- | K105: 40.00 | L105: 8.42% | M105: Successful | N105: 2014-10-27
A106: 9 | B106: 2014-10-01 | D106: Snowman Logistics | E106: Buy | F106: 86.00 | G106: - | H106: 99 | I106: 140.00 | J106: Profit of Rs.13.00/- | K106: 13.00 | L106: 15.12% | M106: Successful | N106: 2014-10-27
A107: 10 | B107: 2014-10-14 | D107: Birla Corp | E107: Buy | F107: 496.60 | G107: - | H107: 621 | I107: 580.00 | J107: Target Achieved | K107: 124.40 | L107: 25.05% | M107: Successful | N107: 2016-08-23
A108: 11 | B108: 2014-10-14 | D108: Ultratech Cem | E108: Buy | F108: 2481.90 | G108: - | H108: 2840 | I108: 2870.00 | J108: Profit of Rs.358.10/- | K108: 358.10 | L108: 14.43% | M108: Successful | N108: 2015-01-13
A109: 12 | B109: 2014-10-16 | D109: Sintex Inds | E109: Buy | F109: 84.50 | G109: - | H109: 93 | I109: 110.00 | J109: Profit of Rs.8.50/- | K109: 8.50 | L109: 10.06% | M109: Successful | N109: 2014-10-27
A110: 13 | B110: 2014-10-16 | D110: HSIL | E110: Buy | F110: 401.00 | G110: - | H110: 428 | I110: 450.00 | J110: Profit of Rs.27.00/- | K110: 27.00 | L110: 6.73% | M110: Successful | N110: 2015-01-16
A111: 14 | B111: 2014-10-16 | D111: Eveready Inds | E111: Buy | F111: 101.00 | G111: - | H111: 112 | I111: 120.00 | J111: Profit of Rs.11.00/- | K111: 11.00 | L111: 10.89% | M111: Successful | N111: 2014-10-27
A112: 15 | B112: 2014-11-11 | D112: Pennar Inds | E112: Buy | F112: 59.00 | G112: - | H112: 76 | I112: 76.00 | J112: Target Achieved | K112: 17.00 | L112: 28.81% | M112: Successful | N112: 2017-10-24
A113: 16 | B113: 2014-11-11 | D113: Snowman Logistics | E113: Buy | F113: 99.00 | G113: - | H113: 120 | I113: 120.00 | J113: Profit of Rs.21/- | K113: 21.00 | L113: 21.21% | M113: Successful | N113: 2014-11-17
A114: 17 | B114: 2014-11-13 | D114: Dharamsi Morarji Chem | E114: Buy | F114: 22.00 | G114: - | H114: 33.55 | I114: 32.00 | J114: Profit of Rs 11.55/- | K114: 11.55 | L114: 52.50% | M114: Successful | N114: 2015-07-03
A115: 18 | B115: 2014-12-03 | D115: Tatachem | E115: Buy | F115: 440.00 | G115: - | H115: 520 | I115: 520.00 | J115: Profit of Rs 80.00/- | K115: 80.00 | L115: 18.18% | M115: Successful | N115: 2015-07-23
A116: 19 | B116: 2014-12-03 | D116: Advanta | E116: Buy | F116: 360.00 | G116: - | H116: 427 | I116: 425.00 | J116: Profit of Rs.67.00/- | K116: 67.00 | L116: 18.61% | M116: Successful | N116: 2015-02-23
A117: 20 | B117: 2015-01-08 | D117: GDL | E117: Buy | F117: 360.00 | G117: - | H117: 455 | I117: 420.00 | J117: Profit of Rs.95.00/- | K117: 95.00 | L117: 26.39% | M117: Successful | N117: 2015-01-20
A118: 21 | B118: 2015-01-08 | D118: NRB Bearing | E118: Buy | F118: 130.00 | H118: 175.5 | I118: 165.00 | J118: Profit of Rs 45.50/- | K118: 45.50 | L118: 35.00% | M118: Successful | N118: 2017-12-19
A119: 22 | B119: 2015-02-05 | D119: GSFC | E119: Accu | F119: 98.00 | H119: 120 | I119: 120.00 | J119: Target Achieved | K119: 22.00 | L119: 22.45% | M119: Successful | N119: 2017-01-18
A120: 23 | B120: 2015-02-05 | D120: Sundrmfast | E120: Accu | F120: 196.00 | H120: 262 | I120: 255.00 | J120: Target Achieved | K120: 66.00 | L120: 33.67% | M120: Successful | N120: 2016-08-17
A121: 24 | B121: 2015-03-04 | D121: GPPL | E121: Accu | F121: 235 | H121: 77.00 | I121: 280-285 | J121: Loss of Rs.158/- | K121: -158.00 | L121: -67.23% | M121: Unsuccessful | N121: 2019-02-26
A122: 25 | B122: 2015-03-04 | D122: ORIENTCEM | E122: Accu | F122: 185.00 | H122: 224 | I122: 220-225 | J122: Target Achieved | K122: 39.00 | L122: 21.08% | M122: Successful | N122: 2016-10-04
A123: 26 | B123: 2015-03-27 | D123: PFS | E123: Accu | F123: 49.5 | H123: 15.85 | I123: 67.00 | J123: Loss of Rs.33.65/- | K123: -33.65 | L123: -68% | M123: Unsuccessful | N123: 2019-06-11
A124: 27 | B124: 2015-03-30 | D124: Walchandnagar Ind Ltd | E124: Accu | F124: 183.50 | H124: 219 | I124: 218.00 | J124: Profit of Rs.35.50/- | K124: 35.50 | L124: 19.35% | M124: Successful | N124: 2015-04-09
A125: 28 | B125: 2015-04-20 | D125: Kalpataru Power Transmission Ltd | E125: Accu | F125: =(227+237)/2 -> 232.00 | H125: 298 | I125: 298.00 | J125: Target Achieved | K125: 66.00 | L125: 28.45% | M125: Successful | N125: 2017-03-29
A126: 29 | B126: 2015-05-04 | D126: Mastek Ltd | E126: Buy | F126: 385.00 | H126: =212.5+331 -> 543.5 | I126: 510.00 | J126: Profit of Rs 158.50/- | K126: 158.50 | L126: 41.17% | M126: Successful | N126: 2015-08-19
A127: 30 | B127: 2015-05-04 | D127: Suprajit Eng | E127: Buy | F127: 115.50 | H127: 146 | I127: 142.00 | J127: Profit of Rs 30.50/- | K127: 30.50 | L127: 26.41% | M127: Successful | N127: 2015-07-17
A128: 31 | B128: 2015-05-27 | D128: TCI | E128: Buy | F128: 237.50 | H128: 279.5 | I128: 278.00 | J128: Target Achieved | K128: 42.00 | L128: 17.68% | M128: Successful | N128: 2015-08-06
A129: 32 | B129: 2015-06-19 | D129: HSIL | E129: Accu | F129: 340.00 | H129: 448 | I129: 448.00 | J129: Target Achieved | K129: 108.00 | L129: 31.76% | M129: Successful | N129: 2017-10-10
A130: 33 | B130: 2015-07-06 | D130: Capital First | E130: Accu | F130: 390.00 | H130: 460 | I130: 460.00 | J130: Target Achieved | K130: 70.00 | L130: 17.95% | M130: Successful | N130: 2016-04-18
A131: 34 | B131: 2015-07-10 | D131: Dolphin OffShore | E131: Accu | F131: 122.5 | H131: 61.00 | I131: 172.00 | J131: Loss of Rs.61.50/- | K131: -61.50 | L131: -50.20% | M131: Unsuccessful | N131: 2018-08-21
A132: 35 | B132: 2015-08-03 | D132: Allcargo logistics | E132: Accu | F132: 297.50 | H132: 350 | I132: 360.00 | J132: Profit of Rs 52.50/- | K132: 52.50 | L132: 17.65% | M132: Successful | N132: 2015-08-16
A133: 36 | B133: 2015-08-03 | D133: Camline Fine | E133: Accu | F133: 115.50 | H133: 149 | I133: 140.00 | J133: Profit of Rs 33.50/- | K133: 33.50 | L133: 29.00% | M133: Successful | N133: 2017-01-05
A134: 37 | B134: 2015-09-04 | D134: TCI | E134: Accu | F134: 226.00 | H134: 292 | I134: 292.00 | J134: Target Achieved | K134: 66.00 | L134: 29.20% | M134: Successful | N134: 2015-10-09
A135: 38 | B135: 2015-09-07 | D135: Kalpataru Power Transmission Ltd | E135: Accu | F135: 232.50 | H135: 312.5 | I135: 310.00 | J135: Target Achieved | K135: 80.00 | L135: 34.41% | M135: Successful | N135: 2017-03-29
A136: 39 | B136: 2015-09-21 | D136: LLOYD ELECTRIC & ENG LTD | E136: Accu | F136: 196.50 | H136: 238 | I136: 238.00 | J136: Target Achieved | K136: 41.50 | L136: 21.12% | M136: Successful | N136: 2015-10-14
A137: 40 | B137: 2015-09-24 | D137: L&T Finance Holding | E137: Accu | F137: 65.00 | H137: 82 | I137: 82.00 | J137: Target Achieved | K137: 17.00 | L137: 26.15% | M137: Successful | N137: 2016-07-27
A138: 41 | B138: 2015-10-14 | D138: KEC International ltd | E138: Accu | F138: 144.00 | H138: 182.5 | I138: 181.00 | J138: Target Achieved | K138: 38.50 | L138: 26.74% | M138: Successful | N138: 2017-03-23
A139: 42 | B139: 2015-10-14 | D139: Gruh Finance | E139: Accu | F139: 264.00 | H139: 311 | I139: 311.00 | J139: Target Achieved | K139: 47.00 | L139: 17.80% | M139: Successful | N139: 2016-08-22
A140: 43 | B140: 2015-11-10 | D140: Pidilitind | E140: Buy | F140: 549.50 | H140: 630 | I140: 630.00 | J140: Target Achieved | K140: 80.50 | L140: 14.65% | M140: Successful | N140: 2016-02-19
A141: 44 | B141: 2015-12-04 | D141: Zensar Technology | E141: Accu | F141: 1027.50 | H141: 1315 | I141: 1250.00 | J141: Target Achieved | K141: 287.50 | L141: 27.98% | M141: Successful | N141: 2018-05-24
A142: 45 | B142: 2015-12-29 | D142: Vinati Organics Ltd | E142: Accu | F142: 465.00 | H142: 540 | I142: 540.00 | J142: Target Achieved | K142: 75.00 | L142: 16.13% | M142: Successful | N142: 2016-06-09
A143: 46 | B143: 2016-01-11 | D143: GSFC | E143: Buy | F143: 81.00 | H143: 110 | I143: 110.00 | J143: Target Achieved | K143: 29.00 | L143: 35.80% | M143: Successful | N143: 2017-01-10
A144: 47 | B144: 2016-01-13 | D144: SSWL | E144: Buy | F144: 417.50 | H144: 547 | I144: 535.00 | J144: Target Achieved | K144: 129.50 | L144: 31.02% | M144: Successful | N144: 2016-07-27
A145: 48 | B145: 2016-02-08 | D145: Persistent System Ltd | E145: Accu | F145: 650.00 | H145: 800 | I145: 800.00 | J145: Target Achieved | K145: 150.00 | L145: 23.08% | M145: Successful | N145: 2018-02-23
A146: 49 | B146: 2016-03-04 | D146: UPL | E146: Accu | F146: 437.50 | H146: 504.5 | I146: 522.00 | J146: Profit of Rs.67/- | K146: 67.00 | L146: 15.31% | M146: Successful | N146: 2016-04-20
A147: 50 | B147: 2016-03-09 | D147: Ashoka Buildcon Ltd | E147: Accu | F147: 189.50 | H147: 218 | I147: 218.00 | J147: Target Achieved | K147: 28.50 | L147: 15.04% | M147: Successful | N147: 2017-10-26
A148: 51 | B148: 2016-04-11 | D148: PTC INDIA FIN SERV LTD | E148: Accu | F148: 36.5 | H148: 15.85 | I148: 60.00 | J148: Loss of Rs.20.65/- | K148: -20.65 | L148: -56.58% | M148: Unsuccessful | N148: 2019-06-11
A149: 52 | B149: 2016-04-12 | D149: CAMLINFINE $ | E149: Accu | F149: 93.00 | H149: 149 | I149: 140.00 | J149: Profit of Rs 56/- | K149: 56.00 | L149: 60.22% | M149: Successful | N149: 2017-01-05
A150: 53 | B150: 2016-04-12 | D150: Greaves Cotton Ltd. | E150: Accu | F150: 130.00 | H150: 150 | I150: 150-155 | J150: Target Achieved | K150: 20.00 | L150: 15.38% | M150: Successful | N150: 2016-07-13
A151: 54 | B151: 2016-04-13 | D151: DHFL | E151: Accu | F151: 196.00 | H151: 299 | I151: 299.00 | J151: Target Achieved | K151: 103.00 | L151: 52.55% | M151: Successful | N151: 2016-09-07
A152: 55 | B152: 2016-04-13 | D152: Magma | E152: Accu | F152: 88.00 | H152: 103 | I152: 103.00 | J152: Target Achieved | K152: 15.00 | L152: 17.05% | M152: Successful | N152: 2016-06-09
A153: 56 | B153: 2016-05-02 | D153: KEC International ltd $ | E153: Accu | F153: 127.50 | H153: 148 | I153: 148-150 | J153: Target Achieved | K153: =H153-F153 -> 20.50 | L153: =K153/F153 -> 16.08% | M153: Successful | N153: 2016-07-13
A154: 57 | B154: 2016-05-03 | D154: Mindtree | E154: Accu | F154: 675.00 | H154: 815 | I154: 790-800 | J154: Target Achieved | K154: =H154-F154 -> 140.00 | L154: =K154/F154 -> 20.74% | M154: Successful | N154: 2018-02-23
A155: 58 | B155: 2016-06-01 | D155: Atulauto | E155: Accu | F155: 500 | H155: 232.50 | I155: 565-570 | J155: Loss of Rs.267.50 /- | K155: =H155-F155 -> -267.50 | L155: =K155/F155 -> -53.50% | M155: Unsuccessful | N155: 2019-09-27
A156: 59 | B156: 2016-06-06 | D156: TRITURBINE | E156: Accu | F156: 110.00 | H156: 126.5 | I156: 125.00 | J156: Profit of Rs.16.50/- | K156: =H156-F156 -> 16.50 | L156: =K156/F156 -> 15.00% | M156: Successful | N156: 2016-07-01
A157: 60 | B157: 2016-06-17 | D157: Pennar Industries Ltd | E157: Accu | F157: 44.00 | H157: 69.5 | I157: 69.50 | J157: Profit of Rs.25.50/- | K157: =H157-F157 -> 25.50 | L157: =K157/F157 -> 57.95% | M157: Successful | N157: 2017-08-30
A158: 61 | B158: 2016-06-28 | D158: EVEREADY | E158: Accu | F158: 262.50 | H158: 340 | I158: 333.00 | J158: Profit of Rs.77.50/- | K158: 77.50 | L158: 29.52% | M158: Successful | N158: 2017-10-09
A159: 62 | B159: 2016-06-28 | D159: FIEMIND | E159: Accu | F159: 840.00 | H159: 1230 | I159: 1230.00 | J159: Target Achieved | K159: 390.00 | L159: 46.43% | M159: Successful | N159: 2016-10-06
A160: 63 | B160: 2016-07-05 | D160: Bajaj Corp Ltd | E160: Accu | F160: 395 | H160: =(468.5+342.5)/2 -> 405.50 | I160: 510.00 | J160: Profit of Rs.10.50/- | K160: =H160-F160 -> 10.50 | L160: =K160/F160 -> 3% | M160: Neutral | N160: 2019-05-21
A161: 64 | B161: 2016-08-02 | D161: GPPL $ | E161: Buy | F161: =169.5-12.8 -> 156.7 | H161: 77.00 | I161: 198-200 | J161: Loss of Rs.79.7/- | K161: -79.70 | L161: -50.86% | M161: Unsuccessful | N161: 2019-02-26
A162: 65 | B162: 2016-08-04 | D162: WONDERLA HOLIDAYS LTD | E162: Accu | F162: 400 | H162: 305.00 | I162: 475.00 | J162: Loss of Rs.95/- | K162: -95.00 | L162: -23.75% | M162: Unsuccessful | N162: 2019-05-21
A163: 66 | B163: 2016-08-11 | D163: CAMLINFINE | E163: Accu | F163: 86.50 | H163: 130 | I163: 130.00 | J163: Profit of Rs.43.50/- | K163: 43.50 | L163: 50.29% | M163: Successful | N163: 2017-12-22
A164: 67 | B164: 2016-08-18 | D164: GRANULES | E164: Accu | F164: 133.5 | H164: 126.50 | I164: 178.00 | J164: Exit | K164: -7.00 | L164: -5.24% | M164: Unsuccessful | N164: 2016-09-02
A165: 68 | B165: 2016-08-31 | D165: VA TECH WABAG | E165: Accu | F165: 560.00 | H165: 725 | I165: 725.00 | J165: Target Achieved | K165: 165.00 | L165: 29.46% | M165: Successful | N165: 2016-03-27
A166: 69 | B166: 2016-09-01 | D166: SKIPPER LIMITED | E166: Accu | F166: 160.50 | H166: 210 | I166: 210.00 | J166: Target Achieved | K166: 49.50 | L166: 30.84% | M166: Successful | N166: 2017-05-16
A167: 70 | B167: 2016-10-03 | D167: IFBIND | E167: Accu | F167: 430.00 | H167: 596 | I167: 575.00 | J167: Profit of Rs.166/- | K167: 166.00 | L167: 38.60% | M167: Successful | N167: 2017-02-03
A168: 71 | B168: 2016-10-14 | D168: ASIANTILES | E168: Accu | F168: 280.00 | H168: 345 | I168: 345.00 | J168: Target Achieved | K168: =H168-F168 -> 65.00 | L168: =K168/F168 -> 23.21% | M168: Successful | N168: 2017-03-20
A169: 72 | B169: 2016-10-14 | D169: DEEPIND | E169: Accu | F169: 245.00 | H169: 325.5 | I169: 330.00 | J169: Profit of Rs.80.5/- | K169: 80.50 | L169: =K169/F169 -> 32.86% | M169: Successful | N169: 2017-02-03
A170: 73 | B170: 2016-10-17 | D170: DCBBANK | E170: Accu | F170: 125.00 | H170: 160 | I170: 160.00 | J170: Target Achieved | K170: 35.00 | L170: 28.00% | M170: Successful | N170: 2017-03-09
A171: 74 | B171: 2016-10-17 | D171: ORIENTREF | E171: Accu | F171: 114.00 | H171: 145 | I171: 145.00 | J171: Target Achieved | K171: 31.00 | L171: =K171/F171 -> 27.19% | M171: Successful | N171: 2017-05-04
A172: 75 | B172: 2016-10-17 | D172: GANECOS | E172: Accu | F172: 212.00 | H172: 280 | I172: 276.00 | J172: Profit of Rs.68/- | K172: 68.00 | L172: =K172/F172 -> 32.08% | M172: Successful | N172: 2017-05-03
A173: 76 | B173: 2016-11-04 | D173: NBCC | E173: Accu | F173: 155.00 | H173: 210 | I173: 210.00 | J173: Profit of Rs.55/- | K173: 55.00 | L173: =K173/F173 -> 35.48% | M173: Successful | N173: 2017-07-28
A174: 77 | B174: 2016-12-06 | D174: PRECAM | E174: Accu | F174: 150.5 | H174: 72.50 | I174: 174.00 | J174: Loss of Rs.78/- | K174: -78.00 | L174: -51.83% | M174: Unsuccessful | N174: 2018-08-21
A175: 78 | B175: 2016-12-08 | D175: INFRATEL | E175: Accu | F175: 380.00 | H175: 478 | I175: 468.00 | J175: Target Achieved | K175: =H175-F175 -> 98.00 | L175: =K175/F175 -> 25.79% | M175: Successful | N175: 2017-10-17
A176: 79 | B176: 2016-12-30 | D176: GODREJPROP | E176: Accu | F176: 305.00 | H176: 375 | I176: 375.00 | J176: Target Achieved | K176: =H176-F176 -> 70.00 | L176: =K176/F176 -> 22.95% | M176: Successful | N176: 2017-02-02
A177: 80 | B177: 2017-01-04 | D177: DEEPAKNTR | E177: Accu | F177: 99.50 | H177: 158 | I177: 158.00 | J177: Target Achieved | K177: =H177-F177 -> 58.50 | L177: =K177/F177 -> 58.79% | M177: Successful | N177: 2017-06-12
A178: 81 | B178: 2017-01-04 | D178: DEEPAKNTR | E178: Accu | F178: 99.50 | H178: 158 | I178: 158.00 | J178: Target Achieved | K178: 58.50 | L178: 58.79% | M178: Successful | N178: 2017-06-12
A179: 82 | B179: 2017-02-20 | D179: RECLTD | E179: Accu | F179: 140.50 | H179: 220 | I179: 220.00 | J179: Target Achieved | K179: =H179-F179 -> 79.50 | L179: =K179/F179 -> 56.58% | M179: Successful | N179: 2017-05-09
A180: 83 | B180: 2017-02-20 | D180: SUBROS | E180: Accu | F180: 202.50 | H180: 234 | I180: 234.00 | J180: Target Achieved | K180: 31.50 | L180: 15.56% | M180: Successful | N180: 2017-04-11
A181: 84 | B181: 2017-03-24 | D181: VRLLOG | E181: Accu | F181: 300.50 | H181: 417.5 | I181: 420.00 | J181: Profit of Rs.117/- | K181: =H181-F181 -> 117.00 | L181: =K181/F181 -> 38.94% | M181: Successful | N181: 2017-12-01
A182: 85 | B182: 2017-03-24 | D182: FIEMIND | E182: Accu | F182: 850.00 | H182: 1042.5 | I182: 1023.00 | J182: Profit of Rs 192.50/- | K182: 192.50 | L182: 22.65% | M182: Successful | N182: 2017-04-05
A183: 86 | B183: 2017-04-05 | D183: RATNAMANI | E183: Accu | F183: 785.00 | H183: 930 | I183: 920.00 | J183: Profit of Rs.145/- | K183: =H183-F183 -> 145.00 | L183: =K183/F183 -> 18.47% | M183: Successful | N183: 2017-08-29
A184: 87 | B184: 2017-04-06 | D184: ZEEMEDIA | E184: Accu | F184: 40 | H184: 13.10 | I184: 60.00 | J184: Loss of Rs.26.9/- | K184: -26.90 | L184: -67.25% | M184: Unsuccessful | N184: 2018-02-07
A185: 88 | B185: 2017-04-12 | D185: DABUR | E185: Accu | F185: 289.50 | H185: 354 | I185: 360.00 | J185: Profit of Rs.64.5/- | K185: =H185-F185 -> 64.50 | L185: =K185/F185 -> 22.28% | M185: Successful | N185: 2017-11-01
A186: 89 | B186: 2017-04-20 | D186: KPRMILL | E186: Accu | F186: 700.00 | H186: 840 | I186: 840.00 | J186: Profit of Rs.140/- | K186: 140.00 | L186: 20.00% | M186: Successful | N186: 2017-06-07
A187: 90 | B187: 2017-06-01 | D187: ESSELPACK | E187: Accu | F187: 130.00 | H187: 144.25 | I187: 170.00 | J187: Profit of Rs.14.25/- | K187: 14.25 | L187: 10.96% | M187: Successful | N187: 2019-07-29
A188: 91 | B188: 2017-06-15 | D188: KEI | E188: Accu | F188: 214.50 | H188: 262 | I188: 262.00 | J188: Profit of Rs.47.5/- | K188: 47.50 | L188: 22.14% | M188: Successful | N188: 2017-08-30
A189: 92 | B189: 2017-07-17 | D189: MAYURUNIQ | E189: Accu | F189: 370.00 | H189: 447.5 | I189: 450.00 | J189: Target Achieved | K189: 77.50 | L189: 20.95% | M189: Successful | N189: 2017-10-27
A190: 93 | B190: 2017-07-27 | D190: RAMCOCEM | E190: Accu | F190: 657.50 | H190: 825 | I190: 820.00 | J190: Target Achieved | K190: 167.50 | L190: 25.48% | M190: Successful | N190: 2017-12-21
A191: 94 | B191: 2017-08-17 | D191: FINPIPE | E191: Accu | F191: 605.00 | H191: 750 | I191: 750.00 | J191: Profit of Rs.145/- | K191: 145.00 | L191: 23.97% | M191: Successful | N191: 2017-10-19
A192: 95 | B192: 2017-09-01 | D192: SHK | E192: Accu | F192: 255 | H192: 217.25 | I192: 320.00 | J192: Loss of Rs.37.75/- | K192: -37.75 | L192: -15% | M192: Unsuccessful | N192: 2019-07-15
A193: 96 | B193: 2017-09-19 | D193: SKIPPER | E193: Accu | F193: 215.00 | H193: 258 | I193: 258.00 | J193: Target Achieved | K193: 43.00 | L193: 20.00% | M193: Successful | N193: 2017-11-01
A194: 97 | B194: 2017-09-19 | D194: SKIPPER | E194: Accu | F194: 215.00 | H194: 258 | I194: 258.00 | J194: Target Achieved | K194: 43.00 | L194: 20.00% | M194: Successful | N194: 2017-11-01
A195: 98 | B195: 2017-09-20 | D195: CAMLINFINE$ | E195: Accu | F195: 75.00 | H195: 90 | I195: 90.00 | J195: Profit of Rs.15.00/- | K195: =H195-F195 -> 15.00 | L195: =K195/F195 -> 20.00% | M195: Successful | N195: 2017-10-11
A196: 99 | B196: 2017-10-03 | D196: GNA | E196: Accu | F196: 315.00 | H196: 392 | I196: 384.00 | J196: Profit of Rs.77/- | K196: 77.00 | L196: 24.44% | M196: Successful | N196: 2017-10-09
A197: 100 | B197: 2017-10-05 | D197: NOCIL | E197: Accu | F197: 145.00 | H197: 179 | I197: 180.00 | J197: Profit of Rs.34/- | K197: 34.00 | L197: 23.45% | M197: Successful | N197: 2017-10-17
A198: 101 | B198: 2017-10-06 | D198: CENTURYPLY | E198: Accu | F198: 256.00 | H198: 323 | I198: 320.00 | J198: Target Achieved | K198: 67.00 | L198: 26.17% | M198: Successful | N198: 2017-11-28
A199: 102 | B199: 2017-10-09 | D199: EIHOTEL | E199: Accu | F199: 137.50 | H199: 184 | I199: 183.00 | J199: Profit of Rs.46.5/- | K199: 46.50 | L199: 33.82% | M199: Successful | N199: 2018-01-08
A200: 103 | B200: 2017-10-10 | D200: NRBBEARING | E200: Accu | F200: 125.50 | H200: 158 | I200: 155.00 | J200: Profit of Rs.32.5/- | K200: 32.50 | L200: 25.90% | M200: Successful | N200: 2017-11-28
A201: 104 | B201: 2017-10-10 | D201: BOROSIL | E201: Accu | F201: 895.00 | H201: 1122.5 | I201: 1078.00 | J201: Profit of Rs.227.5/- | K201: 227.50 | L201: 25.42% | M201: Successful | N201: 2018-01-17
A202: 105 | B202: 2017-10-12 | D202: CYIENT | E202: Accu | F202: 525.00 | H202: 629 | I202: 629.00 | J202: Target Achieved | K202: 104.00 | L202: 19.81% | M202: Successful | N202: 2018-01-19
A203: 106 | B203: 2017-11-07 | D203: HATSUN | E203: Accu | F203: 740.00 | H203: 892.5 | I203: 900.00 | J203: Profit of Rs.152.5/- | K203: =H203-F203 -> 152.50 | L203: =K203/F203 -> 20.61% | M203: Successful | N203: 2017-11-13
A204: 107 | B204: 2017-12-04 | D204: SANGHIIND | E204: Accu | F204: 118.50 | H204: 143.5 | I204: 145.00 | J204: Profit of Rs.25/- | K204: =H204-F204 -> 25.00 | L204: =K204/F204 -> 21.10% | M204: Successful | N204: 2017-12-28
A205: 108 | B205: 2017-12-21 | D205: KAJARIACER | E205: Accu | F205: 715 | H205: 500.00 | I205: 872.00 | J205: Loss of Rs.215/- | K205: =H205-F205 -> -215.00 | L205: =K205/F205 -> -30.07% | M205: Unsuccessful | N205: 2019-07-24
A206: 109 | B206: 2017-12-29 | D206: GNA | E206: Accu | F206: 435.00 | H206: 542.5 | I206: 539.00 | J206: Target Achieved | K206: 107.50 | L206: 24.71% | M206: Successful | N206: 2018-04-16
A207: 110 | B207: 2017-12-29 | D207: ZENSARTECH | E207: Accu | F207: 885.00 | H207: 1090 | I207: 1084.00 | J207: Target Achieved | K207: 205.00 | L207: 23.16% | M207: Successful | N207: 2018-04-23
A208: 111 | B208: 2018-04-02 | D208: EVERESTIND | E208: Accu | F208: 478.50 | H208: 442 | I208: 613.00 | J208: Loss of Rs.36.50 /- | K208: =H208-F208 -> -36.50 | L208: =K208/F208 -> -7.63% | M208: Unsuccessful | N208: 2019-10-24
A209: 112 | B209: 2018-04-04 | D209: GPPL$ | E209: Accu | F209: =141.5-7.3 -> 134.2 | H209: 77.00 | I209: 180.00 | J209: Loss of Rs.57.2/- | K209: =H209-F209 -> -57.20 | L209: =K209/F209 -> -42.62% | M209: Unsuccessful | N209: 2019-02-26
A210: 113 | B210: 2018-04-19 | D210: MANPASAND | E210: Accu | F210: 430 | H210: 220.00 | I210: 537.00 | J210: Loss of Rs.210/- | K210: =H210-F210 -> -210.00 | L210: =K210/F210 -> -48.84% | M210: Unsuccessful | N210: 2018-06-01
A211: 114 | B211: 2018-04-30 | D211: HEIDELBERG | E211: Accu | F211: 153.5 | H211: 196 | I211: 196.00 | J211: Profit of Rs.42.50/- | K211: =H211-F211 -> 42.50 | L211: =K211/F211 -> 27.69% | M211: Successful | N211: 2019-05-20
A212: 115 | B212: 2018-07-25 | D212: ZEEMEDIA | E212: Accu | F212: 27.5 | H212: 13.10 | I212: 60.00 | J212: Loss of Rs.14.40/- | K212: -14.40 | L212: -52.36% | M212: Unsuccessful | N212: 2018-02-07
A213: 116 | B213: 2018-08-06 | D213: GABRIEL | E213: Accu | F213: 148.5 | H213: 102 | I213: 182.00 | J213: Loss of Rs.46.50/- | K213: =H213-F213 -> -46.50 | L213: =K213/F213 -> -31.31% | M213: Unsuccessful | N213: 2019-07-15
A214: 117 | B214: 2018-08-23 | D214: INDIANHUME | E214: Accu | F214: 285 | H214: 355 | I214: 364.00 | J214: Profit of Rs.70/- | K214: 70.00 | L214: 24.56% | M214: Successful | N214: 2018-12-21
A215: 118 | B215: 2018-08-29 | D215: GRINDWELL | E215: Accu | F215: 525 | H215: 585 | I215: 635.00 | J215: Profit of Rs.60- | K215: =H215-F215 -> 60.00 | L215: =K215/F215 -> 11.43% | M215: Successful | N215: 2019-07-16
A216: 119 | B216: 2018-10-22 | D216: FINPIPE | E216: Accu | F216: 475 | H216: 574 | I216: 570.00 | J216: Target Achieved | K216: 99.00 | L216: 20.84% | M216: Successful | N216: 2018-10-30
A217: 120 | B217: 2018-10-24 | D217: GULFOILLUB | E217: Accu | F217: 707.5 | H217: 872 | I217: 872.00 | J217: Target Achieved | K217: 164.50 | L217: 23.25% | M217: Successful | N217: 2019-01-17
A218: 121 | B218: 2018-10-25 | D218: DBCORP | E218: Accu | F218: 162 | H218: 204 | I218: 209.00 | J218: Profit of Rs.42/- | K218: 42.00 | L218: 25.93% | M218: Successful | N218: 2019-03-15
A219: 122 | B219: 2018-10-26 | D219: RITES | E219: Accu | F219: 240 | H219: 297 | I219: 297.00 | J219: Target Achieved | K219: 57.00 | L219: 23.75% | M219: Successful | N219: 2018-11-13
A220: 123 | B220: 2018-12-05 | D220: BRIGADE | E220: Accu | F220: 202.5 | H220: 255 | I220: 252.00 | J220: Target Achieved | K220: 52.50 | L220: 25.93% | M220: Successful | N220: 2019-03-18 | R220: V
A221: 124 | B221: 2018-12-31 | D221: JKCEMENT | E221: Accu | F221: 710 | H221: 866 | I221: 866.00 | J221: Target Achieved | K221: 156.00 | L221: 21.97% | M221: Successful | N221: 2019-03-29 | R221: V
A222: 125 | B222: 2019-02-26 | D222: MARICO | E222: Accu | F222: 337.25 | H222: 398.5 | I222: 411.00 | J222: Profit of Rs.61.25/- | K222: 61.25 | L222: 18.16% | M222: Successful | N222: 2019-10-22 | R222: V
A223: 126 | B223: 2019-04-04 | D223: ITDCEM | E223: Accu | F223: 130 | H223: 65 | I223: 158.00 | J223: Loss of Rs.65 /- | K223: -65.00 | L223: -50.00% | M223: Unsuccessful | N223: 2019-09-18 | R223: K
A224: 127 | B224: 2017-10-09 | D224: RECLTD | E224: Accu | F224: 141.5 | H224: 183.5 | I224: 210.00 | J224: Profit of Rs.42/- | K224: 42.00 | L224: 29.68% | M224: Successful | N224: 2017-11-03 | R224: K
A225: 128 | B225: 2017-12-05 | D225: ALLCARGO | E225: Accu | F225: 172.00 | H225: 155.25 | I225: 230.00 | J225: Loss of Rs.16.75/- | K225: -16.75 | L225: -9.74% | M225: Unsuccessful | N225: 2019-11-18 | R225: K
A226: 129 | B226: 2018-10-25 | D226: GODREJCP | E226: Accu | F226: 698.5 | H226: 890 | I226: 890.00 | J226: Profit of Rs.191.50/- | K226: 191.50 | L226: 27.42% | M226: Successful | N226: 2021-05-12 | R226: V
A227: 130 | B227: 2017-05-22 | D227: GREAVESCOT | E227: Accu | F227: 127.6 | H227: 138 | I227: 190.00 | J227: Profit of Rs.10.40 | K227: 10.40 | L227: 8.15% | M227: Successful | N227: 2019-11-05 | R227: K
A228: 131 | B228: 2018-02-27 | D228: MOLDTKPAC | E228: Accu | F228: 317 | H228: 382.5 | I228: 398.00 | J228: Profit of Rs.65.5 | K228: 65.50 | L228: 20.66% | M228: Successful | N228: 2021-02-11 | R228: K
A229: 132 | B229: 2018-03-05 | D229: LICHSGFIN | E229: Accu | F229: =510-14.4 -> 495.60 | H229: 350 | I229: 672.00 | J229: Loss of Rs.145.60/- | K229: -145.60 | L229: -29.38% | M229: Unsuccessful | N229: 2020-02-26 | R229: V
A230: 133 | B230: 2018-05-17 | D230: PHILIPCARB | E230: Accu | F230: 230.30 | H230: 102.5 | I230: 348.00 | J230: Loss of Rs.127.80/- | K230: -127.80 | L230: -55.49% | M230: Unsuccessful | N230: 2020-03-06 | R230: V
A231: 134 | B231: 2018-06-07 | D231: KEC | E231: Accu | F231: =342.5-5.1 -> 337.4 | H231: 412.5 | I231: 439.00 | J231: Profit of Rs.75.10 | K231: 75.10 | L231: 22.26% | M231: Successful | N231: 2021-02-03 | R231: K
A232: 135 | B232: 2018-07-04 | D232: ASHOKLEY | E232: Accu | F232: =127.5-5.53 -> 121.97 | H232: 122.50 | I232: 170.00 | J232: Profit of Rs.0.53/- | K232: 0.53 | L232: 0% | M232: Neutral | N232: 2021-08-23 | R232: V
... 42 more rows
